Workbook

Sheet |
A2: ДОБАВИТЬ
A3: стол по наименованию
A4: Стол | B4: Стол под мойку 1дв., размер: 500 | H4: БАГЕТНАЯ | I4: =IFERROR(VLOOKUP($B4,Столы!$E$3:$F$206,2,0),"-") -> 1101-50 | J4: =IFERROR(VLOOKUP($B4,Столы!$E$2:$K$206,MATCH($H4,Столы!$E$1:$K$1,0),0)*(1+Титул.лист!$P$2),"") -> 3293.58 | K4: 1 | L4: =IFERROR(J4*K4,"") -> 3293.58 | Q4: =I4&". "&A4&". "&B4&". "&H4 -> 1101-50. Стол. Стол под мойку 1дв., размер: 500. БАГЕТНАЯ | R4: =K4 -> 1 | S4: =J4 -> 3293.58 | T4: =L4 -> 3293.58
A5: ДОБАВИТЬ
A6: стол по коду изделия
A7: Стол | B7: =IFERROR(INDEX(Столы!$E$3:$F$206,MATCH(I7,Столы!$F$3:$F$206,0),1),"") ->  | J7: =IFERROR(VLOOKUP($B7,Столы!$E$2:$I$206,MATCH($H7,Столы!$E$1:$I$1,0),0)*(1+Титул.лист!$P$2),"") ->  | K7: 1 | L7: =IFERROR(J7*K7,"") ->  | Q7: =I7&". "&A7&". "&B7&". "&H7 -> . Стол. . | R7: =K7 -> 1 | S7: =J7 ->  | T7: =L7 -> 
A9: ДОБАВИТЬ
A10: Кухня_Стандарт | I10: - | J10: =IFERROR(VLOOKUP($B10,#REF!,MATCH($H10,#REF!,0),0)*(1+Титул.лист!$P$2),"") ->  | K10: 1 | L10: =IFERROR(J10*K10,"") ->  | Q10: =I10&". "&A10&". "&B10&". "&H10 -> -. Кухня_Стандарт. . | R10: =K10 -> 1 | S10: =J10 ->  | T10: =L10 -> 
A12: ДОБАВИТЬ
A13: ШКАФ по наименованию
A14: Шкаф | B14: АЖУР Шкаф ниша 1 дв , размер: 600, h 720 | H14: ЛДСП ПВХ 0,45мм | I14: =IFERROR(VLOOKUP($B14,Шкафы!$H$3:$I$408,2,0),"-") -> - | J14: =IFERROR(VLOOKUP($B14,Шкафы!$H$2:$L$408,MATCH($H14,Шкафы!$H$1:$L$1,0),0)*(1+Титул.лист!$P$2),"") ->  | K14: 1 | L14: =IFERROR(J14*K14,"") ->  | Q14: =I14&". "&A14&". "&B14&". "&H14 -> -. Шкаф. АЖУР Шкаф ниша 1 дв , размер: 600, h 720. ЛДСП ПВХ 0,45мм | R14: =K14 -> 1 | S14: =J14 ->  | T14: =L14 -> 
A15: ДОБАВИТЬ
A16: ШКАФ по коду изделия
A17: Шкаф | B17: =IFERROR(INDEX(Шкафы!$H$3:$I$408,MATCH(I17,Шкафы!$I$3:$I$408,0),1),"") ->  | J17: =IFERROR(VLOOKUP($B17,Шкафы!$H$3:$L$408,MATCH($H17,Шкафы!$H$1:$L$1,0),0)*(1+Титул.лист!$P$2),"") ->  | K17: 1 | L17: =IFERROR(J17*K17,"") ->  | Q17: =I17&". "&A17&". "&B17&". "&H17 -> . Шкаф. . | R17: =K17 -> 1 | S17: =J17 ->  | T17: =L17 -> 
A19: ДОБАВИТЬ
A20: ПЕНАЛ по наименованию
A21: Пенал | I21: =IFERROR(VLOOKUP($B21,'Пенал-полупеналы'!$H$3:$I$95,2,0),"-") -> - | J21: =IFERROR(VLOOKUP($B21,'Пенал-полупеналы'!$H$2:$L$95,MATCH($H21,'Пенал-полупеналы'!$H$1:$L$1,0),0)*(1+Титул.лист!$P$2),"") ->  | K21: 1 | L21: =IFERROR(J21*K21,"") ->  | Q21: =I21&". "&A21&". "&B21&". "&H21 -> -. Пенал. . | R21: =K21 -> 1 | S21: =J21 ->  | T21: =L21 -> 
A22: ДОБАВИТЬ
A23: ПЕНАЛ по коду изделия
A24: Пенал | B24: =IFERROR(INDEX('Пенал-полупеналы'!$H$3:$I$95,MATCH(I24,'Пенал-полупеналы'!$I$3:$I$95,0),1),"") ->  | J24: =IFERROR(VLOOKUP($B24,'Пенал-полупеналы'!$H$2:$L$95,MATCH($H24,'Пенал-полупеналы'!$H$1:$L$1,0),0)*(1+Титул.лист!$P$2),"") ->  | K24: 1 | L24: =IFERROR(J24*K24,"") ->  | Q24: =I24&". "&A24&". "&B24&". "&H24 -> . Пенал. . | R24: =K24 -> 1 | S24: =J24 ->  | T24: =L24 -> 
A26: ДОБАВИТЬ | B26: =IFERROR(J24,0) -> 
A27: РУЧКИ | J27: цена | K27: кол-во
A28: Ручки | B28: FS-040-160, хром матовый | H28: - | I28: - | J28: =IFERROR(VLOOKUP($B28,Ручки!$E$2:$F$3,2,0)*(1+Титул.лист!$P$2),"") ->  | K28: 1 | L28: =IFERROR(J28*K28,"") ->  | Q28: =I28&". "&A28&". "&B28&". "&H28 -> -. Ручки. FS-040-160, хром матовый. - | R28: =K28 -> 1 | S28: =J28 ->  | T28: =L28 -> 
A30: ДОБАВИТЬ | B30: =IFERROR(J28,0) -> 
A31: СТОЛЕШНИЦУ | H31: ценовая к. | J31: цена | K31: пог.метр
A32: Столешница | B32: Замена угловой 26 на 38в. | I32: - | J32: =IFERROR(VLOOKUP($H32,'столешницы,козырьки,багеты'!$D$11:$G$44,MATCH($B32,'столешницы,козырьки,багеты'!$D$10:$G$10,0),0)*(1+Титул.лист!$P$2),"") ->  | K32: 1 | L32: =IFERROR(J32*K32,"") ->  | Q32: =I32&". "&A32&". "&B32&". "&H32 -> -. Столешница. Замена угловой 26 на 38в.. | R32: =K32 -> 1 | S32: =J32 ->  | T32: =L32 -> 
A34: ДОБАВИТЬ
A36: Мойка | H36: - | I36: - | J36: =IFERROR(VLOOKUP($B36,'доп.хар+мойки'!$A$2:$C$17,3,0)*(1+Титул.лист!$P$2),"") ->  | K36: 1 | L36: =IFERROR(J36*K36,"") ->  | Q36: =I36&". "&A36&". "&B36&". "&H36 -> -. Мойка. . - | R36: =K36 -> 1 | S36: =J36 ->  | T36: =L36 -> 
A38: ДОБАВИТЬ
A40: Доп.оборудование | H40: - | I40: - | J40: =IFERROR(VLOOKUP($B40,'доп.хар+мойки'!$D$38:$E$92,2,0)*(1+Титул.лист!$P$2),"") ->  | K40: 1 | L40: =IFERROR(J40*K40,"") ->  | Q40: =I40&". "&A40&". "&B40&". "&H40 -> -. Доп.оборудование. . - | R40: =K40 -> 1 | S40: =J40 ->  | T40: =L40 -> 
A42: ДОБАВИТЬ
A43: Козырек | H43: - | I43: - | J43: =IFERROR(VLOOKUP($B43,'столешницы,козырьки,багеты'!$B$92:$C$97,2,0)*(1+Титул.лист!$P$2),"") ->  | K43: 1 | L43: =IFERROR(J43*K43,"") ->  | Q43: =I43&". "&A43&". "&B43&". "&H43 -> -. Козырек. . - | R43: =K43 -> 1 | S43: =J43 ->  | T43: =L43 -> 
A45: ДОБАВИТЬ
A46: Багет | H46: - | I46: - | J46: =IFERROR(VLOOKUP($B46,'столешницы,козырьки,багеты'!$D$107:$E$109,2,0)*(1+Титул.лист!$P$2),"") ->  | K46: 1 | L46: =IFERROR(J46*K46,"") ->  | Q46: =I46&". "&A46&". "&B46&". "&H46 -> -. Багет. . - | R46: =K46 -> 1 | S46: =J46 ->  | T46: =L46 -> 
A48: ДОБАВИТЬ
A49: Барная стойка | B49: Барная стойка, толщина 26 | H49: 2 ц.к. | I49: - | J49: =IFERROR(VLOOKUP($B49,'столешницы,козырьки,багеты'!$B$122:$E$123,MATCH($H49,'столешницы,козырьки,багеты'!$B$121:$E$121,0),0)*(1+Титул.лист!$P$2),"") -> 2650 | K49: 1 | L49: =IFERROR(J49*K49,"") -> 2650 | Q49: =I49&". "&A49&". "&B49&". "&H49 -> -. Барная стойка. Барная стойка, толщина 26. 2 ц.к. | R49: =K49 -> 1 | S49: =J49 -> 2650 | T49: =L49 -> 2650

Sheet Бланк ЗАКАЗА
A1: Заказчик | J1: Внимание! Заказы принимаются только на оригинальных бланках Заполнение каждого пункта бланка Обязательно! В случае не полного заполнения бланка, заказ изготавливаться НЕ БУДЕТ!!!
A2: Заказ № | F2: от | AC2: № | AD2: Наименование | AE2: к-во | AF2: цена | AG2: сумма
A3: Дата отгрузки | AC3: 1
A4: Количество комплектов данной кухни | I4: Ручка | R4: Опора барной стойки | AC4: 2
A5: ТИП фасада | AC5: 3
A6: Цвет фасада | I6: Сверловка под ручку | R6: Багет 16\ | Y6: шт | AC6: 4
A7: Фрезеровка | L7: (Горизонтально/вертикально) | U7: указать тип и цвет | AC7: 5
C8: (под стекло:рамка с крестом/без креста) | I8: Опоры простые\хром | Y8: шт | AC8: 6
A9: Текстура ПВХ( верт.\ гориз.) | I9: Высота опор 100\150 | R9: Светильники (кол-во) | Y9: компл | AC9: 7
A10: Цвет каркаса | I10: Цоколь ЛДСП\ ПВХ | R10: Планки | Y10: шт | AC10: 8
A11: Цвет столешници | AC11: 9
A12: Тип столешницы | I12: Петли с доводчиком (да\нет) | R12: Профиля для ст. п. | AC12: 10
C13: (26мм/38мм,простая/влагостойкая) | I13: Стен. Панель | P13: шт | AC13: 11
A14: Стекло | L14: ( указать цвет)(Кол-во) | R14: Дополнительные полки | AC14: 12
A15: Мойка | I15: Плинтус Простой\ Rehau \Алюм-й | P15: шт | R15: Примечание | AC15: 13
A16: Вырез под мойку: слева\по центру\справа | AC16: 14
A17: (нужное подчеркнуть) | I17: ( указать тип и цвет вставки) | AC17: 15
A18: Сушилка: простая | E18: встроенная | AC18: 16
C19: (размер) | G19: (размер) | AC19: 17
A20: Эскиз козырька | AC20: 18
J21: H= | M21: Эскиз кухни | AC21: 19
J22: H= | AC22: 20
J23: H= | AC23: 21
AC24: 22
AC25: 23
AC26: 24
AC27: 25
AC28: 26
AC29: 27
AC30: 28
AC31: 29
AC32: 30
AC33: 31
AC34: 32
AC35: 33
B36: С условиями оформления и | AC36: 34
B37: размерами заказа согласен. | AC37: 35
B38: Подпись | AC38: 36
T39: Цена заказа: | U39: =AI47 -> 0 | V39: руб. | AC39: 37
AC40: 38
AC41: 39
AC44: Всего к-тов
AE46: Цена заказа:
AE48: Заказчик:

Sheet Титул.лист
J1: ООО Форт г.Ульяновск | P1: Наценка
J2: 14 Инженерный проезд, д.7а | P2: 0
J3: тел./факс:8 (8422) 24-94-54, 24-94-41
J4: www.fort-mebel.ru
J5: Ваши предложения и пожелания sinerkin@yandex.ru
J6: 8 917-050-76-70 Линда egorova@fort-mebel.ru
E8: Базовая коплектация:
A9: ♦ Каркас из ламинированного ДСП оклеенный кромкой ПВХ 0,4 мм; (Белый, белое дерево,светло серый, венге светлый, | J9: ♦ Столешница постформинг матовая 26мм 1 кат
A10: венге линум, венге светлый, бук бавария, ноче экко, ясень шимо-темный, ясень шимо-светлый) | J10: ♦ Стекло фасадное 4мм.
A11: ♦ Фасад | J11: ♦ Столы рабочие по каркасу 500мм+16мм фасад, ящики глубиной на 400мм
A12: ♦ Облагороженное ДВП белого цвета; | J12: ♦ Ручки Скоба 96 мм (золото,хром) или рейлинг 96 пластик;
A13: ♦ Регулируемая опора пластиковая 100 мм (цоколь ЛДСП); | J13: ♦ Регулируемые навесы .
A14: ♦ Роликовые направляющие для выкатных ящиков или Meтабоксы; | J14: ♦ Шкафы навесные глубиной по каркасу 300мм+16мм фасад .
A15: ♦ Антресольные шкафы( Шкафы горизонтального открывания) комплектуются газлифтами;
J18: Итоговая СТОИМОСТЬ | L18: =SUM(L19:M56) -> 0
B19: Наименование, тип | H19: Материал | I19: Код изделия | J19: Цена | K19: Кол-во | L19: Стоимость
A20: Доп.оборудование | H20: - | I20: - | J20: =IFERROR(VLOOKUP($B20,'доп.хар+мойки'!$D$38:$E$92,2,0)*(1+Титул.лист!$P$2),"") ->  | K20: 1 | L20: =IFERROR(J20*K20,"") ->  | Q20: =I20&". "&A20&". "&B20&". "&H20 -> -. Доп.оборудование. . - | R20: =K20 -> 1 | S20: =J20 ->  | T20: =L20 -> 
A21: Шкаф | B21: АЖУР Шкаф ниша 1 дв , размер: 600, h 720 | H21: ЛДСП ПВХ 0,45мм | I21: =IFERROR(VLOOKUP($B21,Шкафы!$H$3:$I$408,2,0),"-") -> - | J21: =IFERROR(VLOOKUP($B21,Шкафы!$H$2:$L$408,MATCH($H21,Шкафы!$H$1:$L$1,0),0)*(1+Титул.лист!$P$2),"") ->  | K21: 1 | L21: =IFERROR(J21*K21,"") ->  | Q21: =I21&". "&A21&". "&B21&". "&H21 -> -. Шкаф. АЖУР Шкаф ниша 1 дв , размер: 600, h 720. ЛДСП ПВХ 0,45мм | R21: =K21 -> 1 | S21: =J21 ->  | T21: =L21 -> 

Sheet Столы
D1: Размер | F1: Код изделия | G1: МДФ мат. | H1: МДФ глян. | I1: МДФ металл. | J1: МДФ+ПАТИНА | K1: БАГЕТНАЯ | L1: БОСТОН ПВХ/фот.печ. | M1: БОСТОН ЛАК | N1: БОСТОН ЭМАЛЬ
A2: Столы под мойку
B3: Стол под мойку 1дв. | C3: Стол под мойку 1дв. | D3: 500 | E3: =C3&", размер: "&D3 -> Стол под мойку 1дв., размер: 500 | F3: 1101-50 | G3: 1500 | H3: 1620 | I3: 1660 | J3: =0.000716*D3*3910+G3 -> 2899.78 | K3: =0.000716*D3*5010+G3 -> 3293.58 | L3: =0.000716*D3*3130+G3 -> 2620.54 | M3: =0.00072*D3*5110+G3 -> 3339.6 | N3: =0.00072*D3*8910+G3 -> 4707.6
C4: Стол под мойку 1дв. | D4: 600 | E4: =C4&", размер: "&D4 -> Стол под мойку 1дв., размер: 600 | F4: 1101-60 | G4: 1590 | H4: 1740 | I4: 1800 | J4: 3269.736 | K4: =0.000716*D4*5010+G4 -> 3742.296 | L4: =0.000716*D4*3130+G4 -> 2934.648 | M4: =0.00072*D4*5110+G4 -> 3797.52 | N4: =0.00072*D4*8910+G4 -> 5439.12
B5: Стол под мойку 2дв. | C5: Стол под мойку 2дв. | D5: 500 | E5: Стол под мойку 2дв., размер: 500 | F5: 1102-50 | G5: 1540 | H5: 1660 | I5: 1700 | J5: 2939.78 | K5: 3333.58 | L5: 2660.54 | M5: 3379.6 | N5: 4747.6
C6: Стол под мойку 2дв. | D6: 600 | E6: Стол под мойку 2дв., размер: 600 | F6: 1102-60 | G6: 1670 | H6: 1810 | I6: 1880 | J6: 3349.736 | K6: 3822.296 | L6: 3014.648 | M6: 3877.52 | N6: 5519.12
C7: Стол под мойку 2дв. | D7: 800 | E7: Стол под мойку 2дв., размер: 800 | F7: 1102-80 | G7: 2030 | H7: 2220 | I7: 2310 | J7: 4269.648 | K7: 4899.728 | L7: 3822.864 | M7: 4973.36 | N7: 7162.16
B8: Стол под врезную мойку 1дв. | C8: Стол под врезную мойку 1дв. | D8: 500 | E8: Стол под врезную мойку 1дв., размер: 500 | F8: 1105-50 | G8: 2270 | H8: 2400 | I8: 2480 | J8: 3669.78 | K8: 4063.58 | L8: 3390.54 | M8: 4109.6 | N8: 5477.6
C9: Стол под врезную мойку 1дв. | D9: 600 | E9: Стол под врезную мойку 1дв., размер: 600 | F9: 1105-60 | G9: 2290 | H9: 2420 | I9: 2500 | J9: 3969.736 | K9: 4442.296 | L9: 3634.648 | M9: 4497.52 | N9: 6139.12
B10: Стол под врезную мойку 2дв. | C10: Стол под врезную мойку 2дв. | D10: 600 | E10: Стол под врезную мойку 2дв., размер: 600 | F10: 1106-60 | G10: 2310 | H10: 2460 | I10: 2520 | J10: 3989.736 | K10: 4462.296 | L10: 3654.648 | M10: 4517.52 | N10: 6159.12
C11: Стол под врезную мойку 2дв. | D11: 700 | E11: Стол под врезную мойку 2дв., размер: 700 | F11: 1106-70 | G11: 2607 | H11: 2770 | I11: 2850 | J11: 4566.692 | K11: 5118.012 | L11: 4175.756 | M11: =0.00072*D11*5110+G11 -> 5182.44 | N11: 7097.64
C12: Стол под врезную мойку 2дв. | D12: 800 | E12: Стол под врезную мойку 2дв., размер: 800 | F12: 1106-80 | G12: 2870 | H12: 3060 | I12: 3150 | J12: 5109.648 | K12: 5739.728 | L12: 4662.864 | M12: 5813.36 | N12: 8002.16
C13: Стол под врезную мойку 2дв. | D13: 900 | E13: Стол под врезную мойку 2дв., размер: 900 | F13: 1106-90 | G13: 3150 | H13: 3370 | I13: 3460 | J13: 5669.604 | K13: 6378.444 | L13: 5166.972 | M13: 6461.28 | N13: 8923.68
C14: Стол под врезную мойку 2дв. | D14: 1000 | E14: Стол под врезную мойку 2дв., размер: 1000 | F14: 1106-100 | G14: 3420 | H14: 3670 | I14: 3770 | J14: 6219.56 | K14: 7007.16 | L14: 5661.08 | M14: 7099.2 | N14: 9835.2
B15: Стол угловой под мойку врезную 1дв. | C15: Стол угловой под мойку врезную 1дв. | D15: 800х800 | E15: Стол угловой под мойку врезную 1дв., размер: 800х800 | F15: 1109-80 | G15: 4300 | H15: 4400 | I15: 4450 | J15: 5230 | K15: 5490 | L15: =0.24*3130+G15 -> 5051.2 | M15: =0.24*5110+G15 -> 5526.4 | N15: =0.24*8910+G15 -> 6438.4
B16: Стол под мойку врез угл трапеция Л/ПР | C16: Стол под мойку врез угл трапеция Л/ПР | D16: L=600х800*(глубина) | E16: =C16&", размер: "&D16 -> Стол под мойку врез угл трапеция Л/ПР, размер: L=600х800*(глубина) | F16: 1112-80 | G16: 4020 | H16: 4120 | I16: 4170 | J16: 4950 | K16: 5200 | L16: =0.24*3130+G16 -> 4771.2 | M16: =0.24*5110+G16 -> 5246.4 | N16: =0.24*8910+G16 -> 6158.4
B17: Стол под мойку врез угл трапеция радиусный Л/ПР | C17: Стол под мойку врез угл трапеция Л/ПР | D17: L=800х800*(глубина) | E17: Стол под мойку врез угл трапеция Л/ПР, размер: L=800х800*(глубина) | F17: 1114-80 | G17: 6860 | H17: 6960 | I17: 7050 | J17: 8800 | K17: 8900 | L17: нет | M17: нет | N17: 12100
B18: Стол под мойку врез угл трапеция радиусный Л/ПР | C18: Стол под мойку врез угл трапеция Л/ПР | D18: L=600х800*(глубина) | E18: Стол под мойку врез угл трапеция Л/ПР, размер: L=600х800*(глубина) | F18: 1115-80(60) | G18: 6660 | H18: 6760 | I18: 6860 | J18: 8600 | K18: 8700 | L18: нет | M18: нет | N18: 11800
B19: Стол под мойку прямой уг 1дв.(гл.400) | C19: Стол под мойку прямой уг 1дв.(гл.400) | D19: 800 | E19: Стол под мойку прямой уг 1дв.(гл.400), размер: 800 | F19: 1113-80 | G19: 2490 | H19: 2560 | I19: 2600 | J19: =0.000716*400*3910+G19 -> 3609.824 | K19: =0.716*0.4*5010+G19 -> 3924.864 | L19: 3050 | M19: =0.00072*(800-400)*5110+G19 -> 3961.68 | N19: =0.00072*(800-400)*8910+G19 -> 5056.08
B20: Стол под мойку прямой угл. прямой | C20: Стол под мойку прямой угл. прямой | D20: 900 | E20: Стол под мойку прямой угл. прямой, размер: 900 | F20: 1110-90 | G20: 2670 | H20: 2750 | I20: 2780 | J20: =0.716*0.3*3910+G20 -> 3509.868 | K20: 4100 | L20: 3300 | M20: =0.00072*(900-600)*5110+G20 -> 3773.76 | N20: =0.00072*(900-600)*8910+G20 -> 4594.56
C21: Стол под мойку прямой угл. прямой | D21: 1000 | E21: Стол под мойку прямой угл. прямой, размер: 1000 | F21: 1110-100 | G21: 2960 | H21: 3060 | I21: 3090 | J21: =0.000716*500*3910+G21 -> 4359.78 | K21: =0.716*0.4*5010+G21 -> 4394.864 | L21: 3700 | M21: =0.00072*(900-600)*5110+G21 -> 4063.76 | N21: =0.00072*(900-600)*8910+G21 -> 4884.56
A22: Столы рабочие
C23: Стол 1дв. | D23: 150 | E23: =C23&", размер: "&D23 -> Стол 1дв., размер: 150 | F23: 1001-15 | G23: 1200 | H23: 1250 | I23: 1290 | J23: =0.000716*D23*3910+G23 -> 1619.934 | K23: =0.000716*D23*5010+G23 -> 1738.074 | L23: =0.000716*D23*3130+G23 -> 1536.162 | M23: =0.00072*D23*5110+G23 -> 1751.88 | N23: =0.00072*D23*8910+G23 -> 2162.28
A24: * | C24: Стол 1дв. | D24: 200 | E24: Стол 1дв., размер: 200 | F24: 1001-20 | G24: 1250 | H24: 1310 | I24: 1330 | J24: =0.000716*D24*3910+G24 -> 1809.912 | K24: =0.000716*D24*5010+G24 -> 1967.432 | L24: =0.000716*D24*3130+G24 -> 1698.216 | M24: =0.00072*D24*5110+G24 -> 1985.84 | N24: =0.00072*D24*8910+G24 -> 2533.04
C25: Стол 1дв. | D25: 300 | E25: Стол 1дв., размер: 300 | F25: 1001-30 | G25: 1560 | H25: 1640 | I25: 1670 | J25: 2399.868 | K25: 2636.148 | L25: 2232.324 | M25: 2663.76 | N25: 3484.56
C26: Стол 1дв. | D26: 350 | E26: Стол 1дв., размер: 350 | F26: 1001-35 | G26: 1730 | H26: 1800 | I26: 1850 | J26: 2709.846 | K26: 2985.506 | L26: 2514.378 | M26: 3017.72 | N26: 3975.32
B27: Стол 1дв. | C27: Стол 1дв. | D27: 400 | E27: Стол 1дв., размер: 400 | F27: 1001-40 | G27: 1880 | H27: 1980 | I27: 2010 | J27: 2999.824 | K27: 3314.864 | L27: 2776.432 | M27: 3351.68 | N27: 4446.08
C28: Стол 1дв. | D28: 450 | E28: Стол 1дв., размер: 450 | F28: 1001-45 | G28: 2050 | H28: 2160 | I28: 2210 | J28: 3309.802 | K28: 3664.222 | L28: 3058.486 | M28: 3705.64 | N28: 4936.84
C29: Стол 1дв. | D29: 500 | E29: Стол 1дв., размер: 500 | F29: 1001-50 | G29: 2210 | H29: 2330 | I29: 2380 | J29: 3609.78 | K29: 4003.58 | L29: 3330.54 | M29: 4049.6 | N29: 5417.6
C30: Стол 1дв. | D30: 600 | E30: Стол 1дв., размер: 600 | F30: 1001-60 | G30: 2520 | H30: 2670 | I30: 2730 | J30: 4199.736 | K30: 4672.296 | L30: 3864.648 | M30: 4727.52 | N30: 6369.12
B31: Стол 2дв | C31: Стол 2дв | D31: 500 | E31: Стол 2дв , размер: 500 | F31: 1002-50 | G31: 2240 | H31: 2360 | I31: 2410 | J31: 3639.78 | K31: =0.000716*D31*5010+G31 -> 4033.58 | L31: 3360.54 | M31: 4079.6 | N31: 5447.6
C32: Стол 2дв | D32: 600 | E32: Стол 2дв , размер: 600 | F32: 1002-60 | G32: 2560 | H32: 2720 | I32: 2770 | J32: 4239.736 | K32: 4712.296 | L32: 3904.648 | M32: 4767.52 | N32: 6409.12
C33: Стол 2дв | D33: 700 | E33: Стол 2дв , размер: 700 | F33: 1002-70 | G33: 2910 | H33: 3080 | I33: 3160 | J33: 4869.692 | K33: 5421.012 | L33: 4478.756 | M33: 5485.44 | N33: 7400.64
C34: Стол 2дв | D34: 800 | E34: Стол 2дв , размер: 800 | F34: 1002-80 | G34: 3210 | H34: 3400 | I34: 3490 | J34: 5449.648 | K34: 6079.728 | L34: 5002.864 | M34: 6153.36 | N34: 8342.16
C35: Стол 2дв | D35: 900 | E35: Стол 2дв , размер: 900 | F35: 1002-90 | G35: 3540 | H35: 3760 | I35: 3860 | J35: 6059.604 | K35: 6768.444 | L35: 5556.972 | M35: 6851.28 | N35: 9313.68
C36: Стол 1ящ 1дв | D36: 300 | E36: Стол 1ящ 1дв , размер: 300 | F36: 1003-30 | G36: 1780 | H36: 1860 | I36: 1890 | J36: 2619.868 | K36: =0.000716*D36*5010+G36 -> 2856.148 | L36: 2452.324 | M36: 2883.76 | N36: 3704.56
C37: Стол 1ящ 1дв | D37: 350 | E37: Стол 1ящ 1дв , размер: 350 | F37: 1003-35 | G37: 1940 | H37: 2020 | I37: 2060 | J37: 2919.846 | K37: 3195.506 | L37: 2724.378 | M37: 3227.72 | N37: 4185.32
B38: Стол 1ящ 1дв | C38: Стол 1ящ 1дв | D38: 400 | E38: Стол 1ящ 1дв , размер: 400 | F38: 1003-40 | G38: 2120 | H38: 2220 | I38: 2250 | J38: 3239.824 | K38: 3554.864 | L38: 3016.432 | M38: 3591.68 | N38: 4686.08
C39: Стол 1ящ 1дв | D39: 450 | E39: Стол 1ящ 1дв , размер: 450 | F39: 1003-45 | G39: 2290 | H39: 2400 | I39: 2440 | J39: 3549.802 | K39: 3904.222 | L39: 3298.486 | M39: 3945.64 | N39: 5176.84
C40: Стол 1ящ 1дв | D40: 500 | E40: Стол 1ящ 1дв , размер: 500 | F40: 1003-50 | G40: 2480 | H40: 2600 | I40: 2640 | J40: 3879.78 | K40: 4273.58 | L40: 3600.54 | M40: 4319.6 | N40: 5687.6
C41: Стол 1ящ 1дв | D41: 600 | E41: Стол 1ящ 1дв , размер: 600 | F41: 1003-60 | G41: 2790 | H41: 2950 | I41: 3000 | J41: 4469.736 | K41: 4942.296 | L41: 4134.648 | M41: 4997.52 | N41: 6639.12
C42: Стол 1ящ 1дв. Метабокс | D42: 300 | E42: Стол 1ящ 1дв. Метабокс, размер: 300 | F42: 1003-30м | G42: =G36+250 -> 2030 | H42: 2110 | I42: 2140 | J42: 2869.868 | K42: =0.000716*D42*5010+G42 -> 3106.148 | L42: =0.000716*D42*3130+G42 -> 2702.324 | M42: 3133.76 | N42: 3954.56
C43: Стол 1ящ 1дв. Метабокс | D43: 350 | E43: Стол 1ящ 1дв. Метабокс, размер: 350 | F43: 1003-35м | G43: =G37+250 -> 2190 | H43: 2270 | I43: 2310 | J43: 3169.846 | K43: 3445.506 | L43: 2974.378 | M43: 3477.72 | N43: 4435.32
B44: Стол 1ящ 1дв. Метабокс | C44: Стол 1ящ 1дв. Метабокс | D44: 400 | E44: Стол 1ящ 1дв. Метабокс, размер: 400 | F44: 1003-40м | G44: 2370 | H44: 2470 | I44: 2500 | J44: 3489.824 | K44: 3804.864 | L44: 3266.432 | M44: 3841.68 | N44: 4936.08
C45: Стол 1ящ 1дв. Метабокс | D45: 450 | E45: Стол 1ящ 1дв. Метабокс, размер: 450 | F45: 1003-45м | G45: 2540 | H45: 2650 | I45: 2690 | J45: 3799.802 | K45: 4154.222 | L45: 3548.486 | M45: 4195.64 | N45: 5426.84
C46: Стол 1ящ 1дв. Метабокс | D46: 500 | E46: Стол 1ящ 1дв. Метабокс, размер: 500 | F46: 1003-50м | G46: 2730 | H46: 2850 | I46: 2890 | J46: 4129.78 | K46: 4523.58 | L46: 3850.54 | M46: 4569.6 | N46: 5937.6
C47: Стол 1ящ 1дв. Метабокс | D47: 600 | E47: Стол 1ящ 1дв. Метабокс, размер: 600 | F47: 1003-60м | G47: 3040 | H47: 3200 | I47: 3250 | J47: 4719.736 | K47: 5192.296 | L47: 4384.648 | M47: 5247.52 | N47: 6889.12
C48: Стол 1ящ 1дв. Тандембокс | D48: 300 | E48: =C48&", размер: "&D48 -> Стол 1ящ 1дв. Тандембокс, размер: 300 | F48: 1003-30т | G48: =G42+2000 -> 4030 | H48: 4110 | I48: 4140 | J48: 4869.868 | K48: =0.000716*D48*5010+G48 -> 5106.148 | L48: =0.000716*D48*3130+G48 -> 4702.324 | M48: 5133.76 | N48: 5954.56
C49: Стол 1ящ 1дв. Тандембокс | D49: 350 | E49: Стол 1ящ 1дв. Тандембокс, размер: 350 | F49: 1003-35т | G49: =G43+2000 -> 4190 | H49: 4270 | I49: 4310 | J49: 5169.846 | K49: 5445.506 | L49: 4974.378 | M49: 5477.72 | N49: 6435.32
B50: Стол 1ящ 1дв. Тандембокс | C50: Стол 1ящ 1дв. Тандембокс | D50: 400 | E50: Стол 1ящ 1дв. Тандембокс, размер: 400 | F50: 1003-40т | G50: 4370 | H50: 4470 | I50: 4500 | J50: 5489.824 | K50: 5804.864 | L50: 5266.432 | M50: 5841.68 | N50: 6936.08
C51: Стол 1ящ 1дв. Тандембокс | D51: 450 | E51: Стол 1ящ 1дв. Тандембокс, размер: 450 | F51: 1003-45т | G51: 4540 | H51: 4650 | I51: 4690 | J51: 5799.802 | K51: 6154.222 | L51: 5548.486 | M51: 6195.64 | N51: 7426.84
C52: Стол 1ящ 1дв. Тандембокс | D52: 500 | E52: Стол 1ящ 1дв. Тандембокс, размер: 500 | F52: 1003-50т | G52: 4730 | H52: 4850 | I52: 4890 | J52: 6129.78 | K52: 6523.58 | L52: 5850.54 | M52: 6569.6 | N52: 7937.6
C53: Стол 1ящ 1дв. Тандембокс | D53: 600 | E53: Стол 1ящ 1дв. Тандембокс, размер: 600 | F53: 1003-60т | G53: 5040 | H53: 5200 | I53: 5250 | J53: 6719.736 | K53: 7192.296 | L53: 6384.648 | M53: 7247.52 | N53: 8889.12
C54: Стол 1ящ 2дв | D54: 500 | E54: Стол 1ящ 2дв, размер: 500 | F54: 1004-50 | G54: 2520 | H54: 2640 | I54: 2690 | J54: 3919.78 | K54: =0.000716*D54*5010+G54 -> 4313.58 | L54: =0.000716*D54*3130+G54 -> 3640.54 | M54: 4359.6 | N54: 5727.6
B55: Стол 1ящ 2дв | C55: Стол 1ящ 2дв | D55: 600 | E55: Стол 1ящ 2дв, размер: 600 | F55: 1004-60 | G55: 2860 | H55: 3000 | I55: 3070 | J55: 4539.736 | K55: 5012.296 | L55: 4204.648 | M55: 5067.52 | N55: 6709.12
C56: Стол 1ящ 2дв | D56: 700 | E56: Стол 1ящ 2дв, размер: 700 | F56: 1004-70 | G56: 3220 | H56: 3390 | I56: 3460 | J56: 5179.692 | K56: 5731.012 | L56: 4788.756 | M56: 5795.44 | N56: 7710.64
C57: Стол 1ящ 2дв | D57: 800 | E57: Стол 1ящ 2дв, размер: 800 | F57: 1004-80 | G57: 3550 | H57: 3740 | I57: 3830 | J57: 5789.648 | K57: 6419.728 | L57: 5342.864 | M57: 6493.36 | N57: 8682.16
C58: Стол 1ящ 2дв метабокс | D58: 500 | E58: Стол 1ящ 2дв метабокс, размер: 500 | F58: 1004-50м | G58: =G54+250 -> 2770 | H58: 2890 | I58: 2940 | J58: 4169.78 | K58: 4563.58 | L58: 3890.54 | M58: 4609.6 | N58: 5977.6
B59: Стол 1ящ 2дв метабокс | C59: Стол 1ящ 2дв метабокс | D59: 600 | E59: Стол 1ящ 2дв метабокс, размер: 600 | F59: 1004-60м | G59: =G55+250 -> 3110 | H59: 3250 | I59: 3320 | J59: 4789.736 | K59: 5262.296 | L59: 4454.648 | M59: 5317.52 | N59: 6959.12
C60: Стол 1ящ 2дв метабокс | D60: 700 | E60: Стол 1ящ 2дв метабокс, размер: 700 | F60: 1004-70м | G60: 3470 | H60: 3640 | I60: 3710 | J60: 5429.692 | K60: 5981.012 | L60: 5038.756 | M60: 6045.44 | N60: 7960.64
C61: Стол 1ящ 2дв метабокс | D61: 800 | E61: Стол 1ящ 2дв метабокс, размер: 800 | F61: 1004-80м | G61: 3800 | H61: 3990 | I61: 4080 | J61: 6039.648 | K61: 6669.728 | L61: 5592.864 | M61: 6743.36 | N61: 8932.16
C62: Стол 1ящ 2дв Тандембокс | D62: 500 | E62: =C62&", размер: "&D62 -> Стол 1ящ 2дв Тандембокс, размер: 500 | F62: 1004-50т | G62: =G58+2000 -> 4770 | H62: 4890 | I62: 4940 | J62: 6169.78 | K62: 6563.58 | L62: 5890.54 | M62: 6609.6 | N62: 7977.6
B63: Стол 1ящ 2дв тандембокс | C63: Стол 1ящ 2дв Тандембокс | D63: 600 | E63: Стол 1ящ 2дв Тандембокс, размер: 600 | F63: 1004-60т | G63: =G59+2000 -> 5110 | H63: 5250 | I63: 5320 | J63: 6789.736 | K63: 7262.296 | L63: 6454.648 | M63: 7317.52 | N63: 8959.12
C64: Стол 1ящ 2дв Тандембокс | D64: 700 | E64: Стол 1ящ 2дв Тандембокс, размер: 700 | F64: 1004-70т | G64: 5470 | H64: 5640 | I64: 5710 | J64: 7429.692 | K64: 7981.012 | L64: 7038.756 | M64: 8045.44 | N64: 9960.64
C65: Стол 1ящ 2дв Тандембокс | D65: 800 | E65: Стол 1ящ 2дв Тандембокс, размер: 800 | F65: 1004-80т | G65: 5800 | H65: 5990 | I65: 6080 | J65: 8039.648 | K65: 8669.728 | L65: 7592.864 | M65: 8743.36 | N65: 10932.16
B66: Стол 2ящ | C66: Стол 2ящ | D66: 300 | E66: Стол 2ящ, размер: 300 | F66: 1006-30 | G66: 2450 | H66: 2550 | I66: 2600 | J66: 3289.868 | K66: 3526.148 | L66: 3122.324 | M66: 3553.76 | N66: 4374.56
C67: Стол 2ящ | D67: 400 | E67: Стол 2ящ, размер: 400 | F67: 1006-40 | G67: 2490 | H67: 2590 | I67: 2620 | J67: 3609.824 | K67: 3924.864 | L67: 3386.432 | M67: 3961.68 | N67: 5056.08
C68: Стол 2ящ | D68: 450 | E68: Стол 2ящ, размер: 450 | F68: 1006-45 | G68: 2700 | H68: 2860 | I68: 2900 | J68: 3959.802 | K68: 4314.222 | L68: 3708.486 | M68: 4355.64 | N68: 5586.84
C69: Стол 2ящ | D69: 500 | E69: Стол 2ящ, размер: 500 | F69: 1006-50 | G69: 2840 | H69: 2960 | I69: 3000 | J69: 4239.78 | K69: 4633.58 | L69: 3960.54 | M69: 4679.6 | N69: 6047.6
C70: Стол 2ящ | D70: 550 | E70: Стол 2ящ, размер: 550 | F70: 1006-55 | G70: 3100 | H70: 3250 | I70: 3300 | J70: 4639.758 | K70: 5072.938 | L70: 4332.594 | M70: 5123.56 | N70: 6628.36
C71: Стол 2ящ | D71: 600 | E71: Стол 2ящ, размер: 600 | F71: 1006-60 | G71: 3200 | H71: 3350 | I71: 3410 | J71: 4879.736 | K71: 5352.296 | L71: 4544.648 | M71: 5407.52 | N71: 7049.12
C72: Стол 2ящ | D72: 700 | E72: Стол 2ящ, размер: 700 | F72: 1006-70 | G72: 3600 | H72: 3760 | I72: 3840 | J72: 5559.692 | K72: 6111.012 | L72: 5168.756 | M72: 6175.44 | N72: 8090.64
C73: Стол 2ящ | D73: 800 | E73: Стол 2ящ, размер: 800 | F73: 1006-80 | G73: 3950 | H73: 4140 | I73: 4220 | J73: 6189.648 | K73: 6819.728 | L73: 5742.864 | M73: 6893.36 | N73: 9082.16
B74: Стол 2ящ метабокс | C74: Стол 2ящ метабокс | D74: 300 | E74: Стол 2ящ метабокс, размер: 300 | F74: 1006-30м | G74: =G66+700 -> 3150 | H74: 3250 | I74: 3300 | J74: 3989.868 | K74: 4226.148 | L74: 3822.324 | M74: 4253.76 | N74: 5074.56
C75: Стол 2ящ метабокс | D75: 400 | E75: Стол 2ящ метабокс, размер: 400 | F75: 1006-40м | G75: =G67+700 -> 3190 | H75: 3290 | I75: 3320 | J75: 4309.824 | K75: 4624.864 | L75: 4086.432 | M75: 4661.68 | N75: 5756.08
C76: Стол 2ящ метабокс | D76: 450 | E76: Стол 2ящ метабокс, размер: 450 | F76: 1006-45м | G76: 3400 | H76: 3560 | I76: 3600 | J76: 4659.802 | K76: 5014.222 | L76: 4408.486 | M76: 5055.64 | N76: 6286.84
C77: Стол 2ящ метабокс | D77: 500 | E77: Стол 2ящ метабокс, размер: 500 | F77: 1006-50м | G77: 3540 | H77: 3660 | I77: 3700 | J77: 4939.78 | K77: 5333.58 | L77: 4660.54 | M77: 5379.6 | N77: 6747.6
C78: Стол 2ящ метабокс | D78: 550 | E78: Стол 2ящ метабокс, размер: 550 | F78: 1006-55м | G78: 3800 | H78: 3950 | I78: 4000 | J78: 5339.758 | K78: 5772.938 | L78: 5032.594 | M78: 5823.56 | N78: 7328.36
C79: Стол 2ящ метабокс | D79: 600 | E79: Стол 2ящ метабокс, размер: 600 | F79: 1006-60м | G79: 3900 | H79: 4050 | I79: 4110 | J79: 5579.736 | K79: 6052.296 | L79: 5244.648 | M79: 6107.52 | N79: 7749.12
C80: Стол 2ящ метабокс | D80: 700 | E80: Стол 2ящ метабокс, размер: 700 | F80: 1006-70м | G80: 4300 | H80: 4460 | I80: 4540 | J80: 6259.692 | K80: 6811.012 | L80: 5868.756 | M80: 6875.44 | N80: 8790.64
C81: Стол 2ящ метабокс | D81: 800 | E81: =C81&", размер: "&D81 -> Стол 2ящ метабокс, размер: 800 | F81: 1006-80м | G81: 4650 | H81: 4840 | I81: 4920 | J81: 6889.648 | K81: 7519.728 | L81: 6442.864 | M81: 7593.36 | N81: 9782.16
B82: Стол 2ящ тандембокс | C82: Стол 2ящ Тандембокс | D82: 300 | E82: Стол 2ящ Тандембокс, размер: 300 | F82: 1006-30т | G82: =G66+2300*2 -> 7050 | H82: 7150 | I82: 7200 | J82: 7889.868 | K82: 8126.148 | L82: 7722.324 | M82: 8153.76 | N82: 8974.56
C83: Стол 2ящ Тандембокс | D83: 400 | E83: Стол 2ящ Тандембокс, размер: 400 | F83: 1006-40т | G83: =G67+2300*2 -> 7090 | H83: 7190 | I83: 7220 | J83: 8209.824 | K83: 8524.864 | L83: 7986.432 | M83: 8561.68 | N83: 9656.08
C84: Стол 2ящ Тандембокс | D84: 450 | E84: Стол 2ящ Тандембокс, размер: 450 | F84: 1006-45т | G84: 7300 | H84: 7460 | I84: 7500 | J84: 8559.802 | K84: 8914.222 | L84: 8308.486 | M84: 8955.64 | N84: 10186.84
C85: Стол 2ящ Тандембокс | D85: 500 | E85: Стол 2ящ Тандембокс, размер: 500 | F85: 1006-50т | G85: 7440 | H85: 7560 | I85: 7600 | J85: 8839.78 | K85: 9233.58 | L85: 8560.54 | M85: 9279.6 | N85: 10647.6
C86: Стол 2ящ Тандембокс | D86: 550 | E86: Стол 2ящ Тандембокс, размер: 550 | F86: 1006-55т | G86: 7700 | H86: 7850 | I86: 7900 | J86: 9239.758 | K86: 9672.938 | L86: 8932.594 | M86: 9723.56 | N86: 11228.36
C87: Стол 2ящ Тандембокс | D87: 600 | E87: Стол 2ящ Тандембокс, размер: 600 | F87: 1006-60т | G87: 7800 | H87: 7950 | I87: 8010 | J87: 9479.736 | K87: 9952.296 | L87: 9144.648 | M87: 10007.52 | N87: 11649.12
C88: Стол 2ящ Тандембокс | D88: 700 | E88: Стол 2ящ Тандембокс, размер: 700 | F88: 1006-70т | G88: 8200 | H88: 8360 | I88: 8440 | J88: =0.000716*D88*3910+G88 -> 10159.692 | K88: =0.000716*D88*5010+G88 -> 10711.012 | L88: =0.000716*D88*3130+G88 -> 9768.756 | M88: =0.00072*D88*5110+G88 -> 10775.44 | N88: =0.00072*D88*8910+G88 -> 12690.64
C89: Стол 2ящ Тандембокс | D89: 800 | E89: =C89&", размер: "&D89 -> Стол 2ящ Тандембокс, размер: 800 | F89: 1006-80т | G89: 8550 | H89: 8740 | I89: 8820 | J89: 10789.648 | K89: 11419.728 | L89: 10342.864 | M89: 11493.36 | N89: 13682.16
C90: Стол 2ящ 2дв | D90: 600 | E90: Стол 2ящ 2дв , размер: 600 | F90: 1005-60 | G90: 3120 | H90: 3270 | I90: 3330 | J90: 4799.736 | K90: 5272.296 | L90: 4464.648 | M90: 5327.52 | N90: 6969.12
B91: Стол 2ящ 2дв | C91: Стол 2ящ 2дв | D91: 700 | E91: Стол 2ящ 2дв , размер: 700 | F91: 1005-70 | G91: 3500 | H91: 3660 | I91: 3740 | J91: 5459.692 | K91: 6011.012 | L91: 5068.756 | M91: 6075.44 | N91: 7990.64
C92: Стол 2ящ 2дв | D92: 800 | E92: Стол 2ящ 2дв , размер: 800 | F92: 1005-80 | G92: 3830 | H92: 4030 | I92: 4100 | J92: 6069.648 | K92: 6699.728 | L92: 5622.864 | M92: 6773.36 | N92: 8962.16
C93: Стол 2 ящ.2 дв. метабокс | D93: 600 | E93: Стол 2 ящ.2 дв. метабокс, размер: 600 | F93: 1005-60м | G93: =G90+500 -> 3620 | H93: 3770 | I93: 3830 | J93: 5299.736 | K93: 5772.296 | L93: 4964.648 | M93: 5827.52 | N93: 7469.12
B94: Стол 2 ящ.2 дв. метабокс | C94: Стол 2 ящ.2 дв. метабокс | D94: 700 | E94: Стол 2 ящ.2 дв. метабокс, размер: 700 | F94: 1005-70м | G94: 4000 | H94: 4160 | I94: 4240 | J94: 5959.692 | K94: 6511.012 | L94: 5568.756 | M94: 6575.44 | N94: 8490.64
C95: Стол 2 ящ.2 дв. метабокс | D95: 800 | E95: Стол 2 ящ.2 дв. метабокс, размер: 800 | F95: 1005-80м | G95: 4330 | H95: 4530 | I95: 4600 | J95: 6569.648 | K95: 7199.728 | L95: 6122.864 | M95: 7273.36 | N95: 9462.16
C96: Стол 2 ящ.2 дв.Тандембокс | D96: 600 | E96: =C96&", размер: "&D96 -> Стол 2 ящ.2 дв.Тандембокс, размер: 600 | F96: 1005-60т | G96: =G90+2300*2 -> 7720 | H96: 7870 | I96: 7930 | J96: 9399.736 | K96: 9872.296 | L96: 9064.648 | M96: 9927.52 | N96: 11569.12
B97: Стол 2 ящ.2 дв. тандембокс | C97: Стол 2 ящ.2 дв. Тандембокс | D97: 700 | E97: Стол 2 ящ.2 дв. Тандембокс, размер: 700 | F97: 1005-70т | G97: =G91+2300*2 -> 8100 | H97: 8260 | I97: 8340 | J97: 10059.692 | K97: 10611.012 | L97: 9668.756 | M97: 10675.44 | N97: 12590.64
C98: Стол 2 ящ.2 дв.Тандембокс | D98: 800 | E98: Стол 2 ящ.2 дв.Тандембокс, размер: 800 | F98: 1005-80т | G98: 8430 | H98: 8630 | I98: 8700 | J98: 10669.648 | K98: 11299.728 | L98: 10222.864 | M98: 11373.36 | N98: 13562.16
B99: Стол 3ящ. 2 мал, 1 бол. | C99: Стол 3ящ. 2 мал, 1 бол. | D99: 300 | E99: Стол 3ящ. 2 мал, 1 бол., размер: 300 | F99: 1007-30 | G99: 2190 | H99: 2250 | I99: 2290 | J99: 3029.868 | K99: 3266.148 | L99: 2862.324 | M99: 3293.76 | N99: 4114.56
C100: Стол 3ящ. 2 мал, 1 бол. | D100: 400 | E100: Стол 3ящ. 2 мал, 1 бол., размер: 400 | F100: 1007-40 | G100: 2480 | H100: 2560 | I100: 2610 | J100: 3599.824 | K100: 3914.864 | L100: 3376.432 | M100: 3951.68 | N100: 5046.08
C101: Стол 3ящ. 2 мал, 1 бол. | D101: 450 | E101: Стол 3ящ. 2 мал, 1 бол., размер: 450 | F101: 1007-45 | G101: 2800 | H101: 2900 | I101: 3020 | J101: 4059.802 | K101: 4414.222 | L101: 3808.486 | M101: 4455.64 | N101: 5686.84
C102: Стол 3ящ. 2 мал, 1 бол. | D102: 500 | E102: Стол 3ящ. 2 мал, 1 бол., размер: 500 | F102: 1007-50 | G102: 2950 | H102: 3070 | I102: 3120 | J102: 4349.78 | K102: 4743.58 | L102: 4070.54 | M102: 4789.6 | N102: 6157.6
C103: Стол 3ящ. 2 мал, 1 бол. | D103: 600 | E103: Стол 3ящ. 2 мал, 1 бол., размер: 600 | F103: 1007-60 | G103: 3310 | H103: 3450 | I103: 3520 | J103: 4989.736 | K103: 5462.296 | L103: 4654.648 | M103: 5517.52 | N103: 7159.12
C104: Стол 3ящ. 2 мал, 1 бол. | D104: 700 | E104: Стол 3ящ. 2 мал, 1 бол., размер: 700 | F104: 1007-70 | G104: 3700 | H104: 3860 | I104: 3940 | J104: 5659.692 | K104: 6211.012 | L104: 5268.756 | M104: 6275.44 | N104: 8190.64
C105: Стол 3ящ. 2 мал, 1 бол. | D105: 800 | E105: Стол 3ящ. 2 мал, 1 бол., размер: 800 | F105: 1007-80 | G105: 4060 | H105: 4260 | I105: 4330 | J105: 6299.648 | K105: 6929.728 | L105: 5852.864 | M105: 7003.36 | N105: 9192.16
C106: Стол 3ящ. 2 мал, 1 бол. Метабокс | D106: 300 | E106: Стол 3ящ. 2 мал, 1 бол. Метабокс, размер: 300 | F106: 1007-30м | G106: =G99+850 -> 3040 | H106: 3100 | I106: 3140 | J106: 3879.868 | K106: 4116.148 | L106: 3712.324 | M106: 4143.76 | N106: 4964.56
C107: Стол 3ящ. 2 мал, 1 бол. Метабокс | D107: 400 | E107: Стол 3ящ. 2 мал, 1 бол. Метабокс, размер: 400 | F107: 1007-40м | G107: =G100+850 -> 3330 | H107: 3410 | I107: 3460 | J107: 4449.824 | K107: 4764.864 | L107: 4226.432 | M107: 4801.68 | N107: 5896.08
B108: Стол 3ящ. Метабокс | C108: Стол 3ящ. 2 мал, 1 бол. Метабокс | D108: 450 | E108: Стол 3ящ. 2 мал, 1 бол. Метабокс, размер: 450 | F108: 1007-45м | G108: 3650 | H108: 3750 | I108: 3870 | J108: 4909.802 | K108: 5264.222 | L108: 4658.486 | M108: 5305.64 | N108: 6536.84
C109: Стол 3ящ. 2 мал, 1 бол. Метабокс | D109: 500 | E109: Стол 3ящ. 2 мал, 1 бол. Метабокс, размер: 500 | F109: 1007-50м | G109: 3800 | H109: 3920 | I109: 3970 | J109: 5199.78 | K109: 5593.58 | L109: 4920.54 | M109: 5639.6 | N109: 7007.6
C110: Стол 3ящ. 2 мал, 1 бол. Метабокс | D110: 600 | E110: Стол 3ящ. 2 мал, 1 бол. Метабокс, размер: 600 | F110: 1007-60м | G110: 4160 | H110: 4300 | I110: 4370 | J110: 5839.736 | K110: 6312.296 | L110: 5504.648 | M110: 6367.52 | N110: 8009.12
C111: Стол 3ящ. 2 мал, 1 бол. Метабокс | D111: 700 | E111: Стол 3ящ. 2 мал, 1 бол. Метабокс, размер: 700 | F111: 1007-70м | G111: 4550 | H111: 4710 | I111: 4790 | J111: 6509.692 | K111: 7061.012 | L111: 6118.756 | M111: 7125.44 | N111: 9040.64
C112: Стол 3ящ. 2 мал, 1 бол. Метабокс | D112: 800 | E112: Стол 3ящ. 2 мал, 1 бол. Метабокс, размер: 800 | F112: 1007-80м | G112: 4910 | H112: 5110 | I112: 5180 | J112: 7149.648 | K112: 7779.728 | L112: 6702.864 | M112: 7853.36 | N112: 10042.16
C113: Стол 3ящ. 2 мал, 1 бол.Тандембокс | D113: 300 | E113: =C113&", размер: "&D113 -> Стол 3ящ. 2 мал, 1 бол.Тандембокс, размер: 300 | F113: 1007-30т | G113: =G99+2000*2+2300 -> 8490 | H113: 8550 | I113: 8590 | J113: 9329.868 | K113: 9566.148 | L113: 9162.324 | M113: 9593.76 | N113: 10414.56
C114: Стол 3ящ. 2 мал, 1 бол. Тандембокс | D114: 400 | E114: Стол 3ящ. 2 мал, 1 бол. Тандембокс, размер: 400 | F114: 1007-40т | G114: =G100+2000*2+2300 -> 8780 | H114: 8860 | I114: 8910 | J114: 9899.824 | K114: 10214.864 | L114: 9676.432 | M114: 10251.68 | N114: 11346.08
B115: Стол 3ящ. Тандембокс | C115: Стол 3ящ. 2 мал, 1 бол.Тандембокс | D115: 450 | E115: Стол 3ящ. 2 мал, 1 бол.Тандембокс, размер: 450 | F115: 1007-45т | G115: 9100 | H115: 9200 | I115: 9320 | J115: 10359.802 | K115: 10714.222 | L115: 10108.486 | M115: 10755.64 | N115: 11986.84
C116: Стол 3ящ. 2 мал, 1 бол. Тандембокс | D116: 500 | E116: Стол 3ящ. 2 мал, 1 бол. Тандембокс, размер: 500 | F116: 1007-50т | G116: 9250 | H116: 9370 | I116: 9420 | J116: 10649.78 | K116: 11043.58 | L116: 10370.54 | M116: 11089.6 | N116: 12457.6
C117: Стол 3ящ. 2 мал, 1 бол. Тандембокс | D117: 600 | E117: Стол 3ящ. 2 мал, 1 бол. Тандембокс, размер: 600 | F117: 1007-60т | G117: 9610 | H117: 9750 | I117: 9820 | J117: 11289.736 | K117: 11762.296 | L117: 10954.648 | M117: 11817.52 | N117: 13459.12
C118: Стол 3ящ. 2 мал, 1 бол.Тандембокс | D118: 700 | E118: Стол 3ящ. 2 мал, 1 бол.Тандембокс, размер: 700 | F118: 1007-70т | G118: 10000 | H118: 10160 | I118: 10240 | J118: 11959.692 | K118: 12511.012 | L118: 11568.756 | M118: 12575.44 | N118: 14490.64
C119: Стол 3ящ. 2 мал, 1 бол. Тандембокс | D119: 800 | E119: Стол 3ящ. 2 мал, 1 бол. Тандембокс, размер: 800 | F119: 1007-80т | G119: 10360 | H119: 10560 | I119: 10630 | J119: 12599.648 | K119: 13229.728 | L119: 12152.864 | M119: 13303.36 | N119: 15492.16
B120: Стол 4ящ | C120: Стол 4ящ | D120: 300 | E120: Стол 4ящ, размер: 300 | F120: 1009-30 | G120: 2300 | H120: 2360 | I120: 2400 | J120: 3139.868 | K120: 3376.148 | L120: 2972.324 | M120: 3403.76 | N120: 4224.56
C121: Стол 4ящ | D121: 350 | E121: Стол 4ящ, размер: 350 | F121: 1009-35 | G121: 2510 | H121: 2600 | I121: 2630 | J121: 3489.846 | K121: 3765.506 | L121: 3294.378 | M121: 3797.72 | N121: 4755.32
C122: Стол 4ящ | D122: 400 | E122: Стол 4ящ, размер: 400 | F122: 1009-40 | G122: 2690 | H122: 2780 | I122: 2830 | J122: 3809.824 | K122: 4124.864 | L122: 3586.432 | M122: 4161.68 | N122: 5256.08
C123: Стол 4ящ | D123: 450 | E123: Стол 4ящ, размер: 450 | F123: 1009-45 | G123: 2890 | H123: 3000 | I123: 3050 | J123: 4149.802 | K123: 4504.222 | L123: 3898.486 | M123: 4545.64 | N123: 5776.84
C124: Стол 4ящ | D124: 500 | E124: Стол 4ящ, размер: 500 | F124: 1009-50 | G124: 3070 | H124: 3190 | I124: 3240 | J124: 4469.78 | K124: 4863.58 | L124: 4190.54 | M124: 4909.6 | N124: 6277.6
C125: Стол 4ящ | D125: 600 | E125: Стол 4ящ, размер: 600 | F125: 1009-60 | G125: 3460 | H125: 3610 | I125: 3670 | J125: 5139.736 | K125: 5612.296 | L125: 4804.648 | M125: 5667.52 | N125: 7309.12
C126: Стол 4ящ | D126: 700 | E126: Стол 4ящ, размер: 700 | F126: 1009-70 | G126: =G125*0.027+G125 -> 3553.42 | H126: 3707.47 | I126: 3769.09 | J126: 5513.112 | K126: 6064.432 | L126: 5122.176 | M126: 6128.86 | N126: 8044.06
C127: Стол 4ящ | D127: 800 | E127: Стол 4ящ, размер: 800 | F127: 1009-80 | G127: =G126*0.27+G126 -> 4512.8434 | H127: 4708.4869 | I127: 4786.7443 | J127: 6752.4914 | K127: 7382.5714 | L127: 6305.7074 | M127: 7456.2034 | N127: 9645.0034
C128: Стол 4ящ метабокс | D128: 300 | E128: Стол 4ящ метабокс, размер: 300 | F128: 1009-30м | G128: =G120+1000 -> 3300 | H128: 3360 | I128: 3400 | J128: 4139.868 | K128: 4376.148 | L128: 3972.324 | M128: 4403.76 | N128: 5224.56
C129: Стол 4ящ метабокс | D129: 350 | E129: Стол 4ящ метабокс, размер: 350 | F129: 1009-35м | G129: =G121+1000 -> 3510 | H129: 3600 | I129: 3630 | J129: 4489.846 | K129: 4765.506 | L129: 4294.378 | M129: 4797.72 | N129: 5755.32
B130: Стол 4ящ метабокс | C130: Стол 4ящ метабокс | D130: 400 | E130: Стол 4ящ метабокс, размер: 400 | F130: 1009-40м | G130: 3690 | H130: 3780 | I130: 3830 | J130: 4809.824 | K130: 5124.864 | L130: 4586.432 | M130: 5161.68 | N130: 6256.08
C131: Стол 4ящ метабокс | D131: 450 | E131: Стол 4ящ метабокс, размер: 450 | F131: 1009-45м | G131: 3890 | H131: 4000 | I131: 4050 | J131: 5149.802 | K131: 5504.222 | L131: 4898.486 | M131: 5545.64 | N131: 6776.84
C132: Стол 4ящ метабокс | D132: 500 | E132: Стол 4ящ метабокс, размер: 500 | F132: 1009-50м | G132: 4070 | H132: 4190 | I132: 4240 | J132: 5469.78 | K132: 5863.58 | L132: 5190.54 | M132: 5909.6 | N132: 7277.6
C133: Стол 4ящ метабокс | D133: 600 | E133: Стол 4ящ метабокс, размер: 600 | F133: 1009-60м | G133: 4460 | H133: 4610 | I133: 4670 | J133: 6139.736 | K133: 6612.296 | L133: 5804.648 | M133: 6667.52 | N133: 8309.12
C134: Стол 4ящ метабокс | D134: 700 | E134: =C134&", размер: "&D134 -> Стол 4ящ метабокс, размер: 700 | F134: 1009-70м | G134: =G125+1000 -> 4460 | H134: 4610 | I134: 4670 | J134: 6419.692 | K134: 6971.012 | L134: 6028.756 | M134: 7035.44 | N134: 8950.64
C135: Стол 4ящ метабокс | D135: 800 | E135: =C135&", размер: "&D135 -> Стол 4ящ метабокс, размер: 800 | F135: 1009-80м | G135: =G126+1000 -> 4553.42 | H135: 4707.47 | I135: 4769.09 | J135: 6793.068 | K135: 7423.148 | L135: 6346.284 | M135: 7496.78 | N135: 9685.58
C136: Стол 4ящ Тандембокс | D136: 300 | E136: =C136&", размер: "&D136 -> Стол 4ящ Тандембокс, размер: 300 | F136: 1009-30т | G136: =G120+2000*4 -> 10300 | H136: 10360 | I136: 10400 | J136: 11139.868 | K136: 11376.148 | L136: 10972.324 | M136: 11403.76 | N136: 12224.56
C137: Стол 4ящ Тандембокс | D137: 350 | E137: Стол 4ящ Тандембокс, размер: 350 | F137: 1009-35т | G137: =G121+2000*4 -> 10510 | H137: 10600 | I137: 10630 | J137: 11489.846 | K137: 11765.506 | L137: 11294.378 | M137: 11797.72 | N137: 12755.32
C138: Стол 4ящ Тандембокс | D138: 400 | E138: Стол 4ящ Тандембокс, размер: 400 | F138: 1009-40т | G138: =G122+2000*4 -> 10690 | H138: 10780 | I138: 10830 | J138: 11809.824 | K138: 12124.864 | L138: 11586.432 | M138: 12161.68 | N138: 13256.08
B139: Стол 4ящ тандембокс | C139: Стол 4ящ Тандембокс | D139: 450 | E139: Стол 4ящ Тандембокс, размер: 450 | F139: 1009-45т | G139: =G123+2000*4 -> 10890 | H139: 11000 | I139: 11050 | J139: 12149.802 | K139: 12504.222 | L139: 11898.486 | M139: 12545.64 | N139: 13776.84
C140: Стол 4ящ Тандембокс | D140: 500 | E140: Стол 4ящ Тандембокс, размер: 500 | F140: 1009-50т | G140: =G124+2000*4 -> 11070 | H140: 11190 | I140: 11240 | J140: 12469.78 | K140: 12863.58 | L140: 12190.54 | M140: 12909.6 | N140: 14277.6
C141: Стол 4ящ Тандембокс | D141: 600 | E141: Стол 4ящ Тандембокс, размер: 600 | F141: 1009-60т | G141: =G125+2000*4 -> 11460 | H141: 11610 | I141: 11670 | J141: 13139.736 | K141: 13612.296 | L141: 12804.648 | M141: 13667.52 | N141: 15309.12
C142: Стол 4ящ Тандембокс | D142: 700 | E142: Стол 4ящ Тандембокс, размер: 700 | F142: 1009-70т | G142: =G126+2000*4 -> 11553.42 | H142: 11707.47 | I142: 11769.09 | J142: 13513.112 | K142: 14064.432 | L142: 13122.176 | M142: 14128.86 | N142: 16044.06
C143: Стол 4ящ Тандембокс | D143: 800 | E143: Стол 4ящ Тандембокс, размер: 800 | F143: 1009-80т | G143: =G127+2000*4 -> 12512.8434 | H143: 12708.4869 | I143: 12786.7443 | J143: 14752.4914 | K143: 15382.5714 | L143: 14305.7074 | M143: 15456.2034 | N143: 17645.0034
B145: Бутылочница | C145: Бутылочница | D145: 150 | E145: Бутылочница, размер: 150 | F145: 1010-15 | G145: 2400 | H145: 2460 | I145: 2490 | J145: =0.000716*D145*3910+G145 -> 2819.934 | K145: =0.000716*D145*5010+G145 -> 2938.074 | L145: =0.000716*D145*3130+G145 -> 2736.162 | M145: =0.00072*D145*5110+G145 -> 2951.88 | N145: =0.00072*D145*8910+G145 -> 3362.28
C146: Бутылочница | D146: 200 | E146: Бутылочница, размер: 200 | F146: 1010-20 | G146: =G24+1200 -> 2450 | H146: 2510 | I146: 2530 | J146: =0.000716*D146*3910+G146 -> 3009.912 | K146: =0.000716*D146*5010+G146 -> 3167.432 | L146: =0.000716*D146*3130+G146 -> 2898.216 | M146: =0.00072*D146*5110+G146 -> 3185.84 | N146: =0.00072*D146*8910+G146 -> 3733.04
B147: Стол-колонна h=720 (рекомендованно испльзовать с духовым шкафом )БЕЗ ФАСАДА | C147: Стол-колонна h=720 | D147: 50 | E147: =C147&", размер: "&D147 -> Стол-колонна h=720, размер: 50 | F147: 1021-5 | G147: 370 | H147: 370 | I147: 370 | J147: 370 | K147: 370 | L147: нет | M147: нет | N147: нет
B148: Стол-колонна h=720 (рекомендованно испльзовать с духовым шкафом )БЕЗ ФАСАДА | C148: Стол-колонна h=720 | D148: 100 | E148: Стол-колонна h=720, размер: 100 | G148: 500 | H148: 500 | I148: 500 | J148: 500 | K148: 500 | L148: нет | M148: нет | N148: нет
B149: Стол-колонна h=720 (рекомендованно испльзовать с духовым шкафом )БЕЗ ФАСАДА | C149: Стол-колонна h=720 | D149: 150 | E149: Стол-колонна h=720, размер: 150 | G149: 750 | H149: 750 | I149: 750 | J149: 750 | K149: 750 | L149: нет | M149: нет | N149: нет
B150: Стол-колонна h=720 (рекомендованно испльзовать с духовым шкафом )БЕЗ ФАСАДА, с бутылочницей с доводчиком | C150: Стол-колонна h=720 | D150: 150 | E150: Стол-колонна h=720, размер: 150 | G150: 2550 | H150: 2550 | I150: 2550 | J150: 2550 | K150: 2550 | L150: нет | M150: нет | N150: нет
B151: Стол с открытой секцией для СВ-Печи | C151: Стол с открытой секцией для СВ-Печи | D151: 600 | E151: Стол с открытой секцией для СВ-Печи, размер: 600 | F151: 1020-60 | G151: =G71-G71*0.08 -> 2944 | H151: =H71-H71*0.08 -> 3082 | I151: =I71-I71*0.08 -> 3137.2 | J151: =0.000356*D151*3910+G151 -> 3779.176 | K151: =0.000356*D151*5010+G151 -> 4014.136 | L151: =0.000356*D151*3130+G151 -> 3612.568 | M151: =0.000356*600*5110+G151 -> 4035.496 | N151: =0.000356*D151*8910+G151 -> 4847.176
B152: Стол с открытой секцией для СВ-Печи. Метабокс | C152: Стол с открытой секцией для СВ-Печи. Метабокс | D152: 600 | E152: Стол с открытой секцией для СВ-Печи. Метабокс, размер: 600 | F152: 1020-60м | G152: =G151+350 -> 3294 | H152: 3432 | I152: 3487.2 | J152: =0.000356*D152*3910+G152 -> 4129.176 | K152: =0.000356*D152*5010+G152 -> 4364.136 | L152: =0.000356*D152*3130+G152 -> 3962.568 | M152: =0.000356*D152*5110+G152 -> 4385.496 | N152: =0.000356*D152*8910+G152 -> 5197.176
A153: Столы торцевые
B154: Стол торцевой (открытый) | C154: Стол торцевой (открытый) | D154: 200 | E154: Стол торцевой (открытый), размер: 200 | F154: 1012-20 | G154: 850 | H154: 850 | I154: 850 | J154: =G154 -> 850 | K154: =H154 -> 850 | L154: 850 | M154: 850 | N154: 850
C155: Стол торцевой (открытый) | D155: 300 | E155: Стол торцевой (открытый), размер: 300 | F155: 1012-30 | G155: 1060 | H155: 1060 | I155: 1060 | J155: =H155 -> 1060 | K155: =I155 -> 1060 | L155: 1060 | M155: 1060 | N155: 1060
C156: Стол торцевой (открытый) | D156: 400 | E156: Стол торцевой (открытый), размер: 400 | F156: 1012-40 | G156: 1260 | H156: 1260 | I156: 1260 | J156: =G156 -> 1260 | K156: =H156 -> 1260 | L156: 1260 | M156: 1260 | N156: 1260
C157: Стол торцевой | D157: 300 | E157: Стол торцевой, размер: 300 | F157: 1013-30 | G157: 1960 | H157: 2130 | I157: 2210 | J157: =0.5*3910+G157 -> 3915 | K157: =0.5*5010+G157 -> 4465 | L157: =0.5*3130+G157 -> 3525 | M157: =0.5*5110+G157 -> 4515 | N157: =0.5*8910+G157 -> 6415
B158: Стол-радиусный торцевой (открытый) | C158: Стол-радиусный торцевой (открытый) | D158: 300 | E158: Стол-радиусный торцевой (открытый), размер: 300 | F158: 1125-30 | G158: 1210 | H158: 1210 | I158: 1210 | J158: =G158 -> 1210 | K158: =H158 -> 1210 | L158: 1210 | M158: 1210 | N158: 1210
C159: Стол-радиусный торцевой (открытый) | D159: 400 | E159: Стол-радиусный торцевой (открытый), размер: 400 | F159: 1125-40 | G159: 1280 | H159: 1280 | I159: 1280 | J159: =G159 -> 1280 | K159: 1280 | L159: 1280 | M159: 1280 | N159: 1280
B160: Стол радиусный торцевой | C160: Стол радиусный торцевой | D160: 300 | E160: Стол радиусный торцевой, размер: 300 | F160: 1120-30 | G160: 3680 | H160: 3860 | I160: 3940 | J160: 6480 | K160: 6690 | L160: нет | M160: нет | N160: 10265
A161: Столы под встраиваемую технику
B162: Стол под встр.техн.без ящ 600 | C162: Стол под встр.техн.без ящ | D162: 600 | E162: Стол под встр.техн.без ящ, размер: 600 | F162: 1011-60 | G162: 1850 | H162: 1870 | I162: 1880 | J162: 2260 | K162: =0.000176*D162*5010+G162 -> 2379.056 | L162: =0.000176*D162*3130+G162 -> 2180.528 | M162: =0.000176*D162*5110+G162 -> 2389.616 | N162: =0.000176*D162*8910+G162 -> 2790.896
B163: Стол под встр.техн.с ящ 600 | C163: Стол под плиту | D163: 600 | E163: =C163&", размер: "&D163 -> Стол под плиту, размер: 600 | F163: 1011Я-60 | G163: 2000 | H163: 2020 | I163: 2030 | J163: 2420 | K163: =0.000176*D163*5010+G163 -> 2529.056 | L163: =0.000176*D163*3130+G163 -> 2330.528 | M163: =0.000176*D163*5110+G163 -> 2539.616 | N163: =0.000176*D163*8910+G163 -> 2940.896
B164: Стол под стиральную машину 650 | C164: Стол под стиральную машину | D164: 650 | E164: Стол под стиральную машину, размер: 650 | F164: 1126-65 | G164: 1470 | H164: 1470 | I164: 1470 | J164: =G164 -> 1470 | K164: =H164 -> 1470 | L164: =I164 -> 1470 | M164: =J164 -> 1470 | N164: 1470
B165: Стол под стиральную машину 700 | C165: Стол под стиральную машину | D165: 700 | E165: Стол под стиральную машину, размер: 700 | F165: 1126-70 | G165: 1520 | H165: 1520 | I165: 1520 | J165: =G165 -> 1520 | K165: =H165 -> 1520 | L165: =I165 -> 1520 | M165: 1520 | N165: 1520
B166: Комплект для стир. машины 2дв. | C166: Комплект для стир. машины 2дв. | D166: 700 | E166: Комплект для стир. машины 2дв., размер: 700 | F166: 1127-70 | G166: 1450 | H166: 1550 | I166: 1650 | J166: 3410 | K166: =0.000716*D166*5010+G166 -> 3961.012 | L166: =0.000716*D166*3130+G166 -> 3018.756 | M166: =0.00072*5110*D166+G166 -> 4025.44 | N166: =0.00072*D166*8910+G166 -> 5940.64
A167: Столы рабочие глубиной 400
B168: Стол (400) рабочий 1 дверь Л/ПР | C168: Стол (400) рабочий 1 дверь Л/ПР | D168: 150 | E168: Стол (400) рабочий 1 дверь Л/ПР, размер: 150 | F168: 1201-15 | G168: 900 | H168: 930 | I168: 1050 | J168: =0.000716*D168*3910+G168 -> 1319.934 | K168: =0.000716*D168*5010+G168 -> 1438.074 | L168: =0.000716*D168*3130+G168 -> 1236.162 | M168: =0.00072*D168*5110+G168 -> 1451.88 | N168: =0.00072*D168*8910+G168 -> 1862.28
C169: Стол (400) рабочий 1 дверь Л/ПР | D169: 200 | E169: Стол (400) рабочий 1 дверь Л/ПР, размер: 200 | F169: 1201-20 | G169: 1000 | H169: 1030 | I169: 1100 | J169: =0.000716*D169*3910+G169 -> 1559.912 | K169: =0.000716*D169*5010+G169 -> 1717.432 | L169: =0.000716*D169*3130+G169 -> 1448.216 | M169: =0.00072*D169*5110+G169 -> 1735.84 | N169: =0.00072*D169*8910+G169 -> 2283.04
C170: Стол (400) рабочий 1 дверь Л/ПР | D170: 250 | E170: =C170&", размер: "&D170 -> Стол (400) рабочий 1 дверь Л/ПР, размер: 250 | F170: 1201-25 | G170: 1100 | H170: 1200 | I170: 1300 | J170: =0.000716*D170*3910+G170 -> 1799.89 | K170: =0.000716*D170*5010+G170 -> 1996.79 | L170: =0.000716*D170*3130+G170 -> 1660.27 | M170: =0.00072*D170*5110+G170 -> 2019.8 | N170: =0.00072*D170*8910+G170 -> 2703.8
C171: Стол (400) рабочий 1 дверь Л/ПР | D171: 300 | E171: Стол (400) рабочий 1 дверь Л/ПР, размер: 300 | F171: 1201-30 | G171: 1250 | H171: 1350 | I171: 1450 | J171: =0.000716*D171*3910+G171 -> 2089.868 | K171: =0.000716*D171*5010+G171 -> 2326.148 | L171: =0.000716*D171*3130+G171 -> 1922.324 | M171: =0.00072*D171*5110+G171 -> 2353.76 | N171: =0.00072*D171*8910+G171 -> 3174.56
C172: Стол (400) рабочий 1 дверь Л/ПР | D172: 350 | E172: Стол (400) рабочий 1 дверь Л/ПР, размер: 350 | F172: 1201-35 | G172: 1350 | H172: 1400 | I172: 1500 | J172: =0.000716*D172*3910+G172 -> 2329.846 | K172: =0.000716*D172*5010+G172 -> 2605.506 | L172: =0.000716*D172*3130+G172 -> 2134.378 | M172: =0.00072*D172*5110+G172 -> 2637.72 | N172: =0.00072*D172*8910+G172 -> 3595.32
C173: Стол (400) рабочий 1 дверь Л/ПР | D173: 400 | E173: Стол (400) рабочий 1 дверь Л/ПР, размер: 400 | F173: 1201-40 | G173: 1400 | H173: 1500 | I173: 1600 | J173: =0.000716*D173*3910+G173 -> 2519.824 | K173: =0.000716*D173*5010+G173 -> 2834.864 | L173: =0.000716*D173*3130+G173 -> 2296.432 | M173: =0.00072*D173*5110+G173 -> 2871.68 | N173: =0.00072*D173*8910+G173 -> 3966.08
C174: Стол (400) рабочий 1 дверь Л/ПР | D174: 450 | E174: Стол (400) рабочий 1 дверь Л/ПР, размер: 450 | F174: 1201-45 | G174: 1500 | H174: 1630 | I174: 1700 | J174: =0.000716*D174*3910+G174 -> 2759.802 | K174: =0.000716*D174*5010+G174 -> 3114.222 | L174: =0.000716*D174*3130+G174 -> 2508.486 | M174: =0.00072*D174*5110+G174 -> 3155.64 | N174: =0.00072*D174*8910+G174 -> 4386.84
C175: Стол (400) рабочий 1 дверь Л/ПР | D175: 500 | E175: Стол (400) рабочий 1 дверь Л/ПР, размер: 500 | F175: 1201-50 | G175: 1600 | H175: 1650 | I175: 1800 | J175: =0.000716*D175*3910+G175 -> 2999.78 | K175: =0.000716*D175*5010+G175 -> 3393.58 | L175: =0.000716*D175*3130+G175 -> 2720.54 | M175: =0.00072*D175*5110+G175 -> 3439.6 | N175: =0.00072*D175*8910+G175 -> 4807.6
C176: Стол (400) рабочий 1 дверь Л/ПР | D176: 600 | E176: Стол (400) рабочий 1 дверь Л/ПР, размер: 600 | F176: 1201-60 | G176: 1800 | H176: 1900 | I176: 2000 | J176: =0.000716*D176*3910+G176 -> 3479.736 | K176: =0.000716*D176*5010+G176 -> 3952.296 | L176: =0.000716*D176*3130+G176 -> 3144.648 | M176: =0.00072*D176*5110+G176 -> 4007.52 | N176: =0.00072*D176*8910+G176 -> 5649.12
B177: Стол (400) рабочий 2 двери | C177: Стол (400) рабочий 2 двери | D177: 600 | E177: Стол (400) рабочий 2 двери, размер: 600 | F177: 1202-60 | G177: 2000 | H177: 2100 | I177: 2300 | J177: =0.000716*D177*3910+G177 -> 3679.736 | K177: =0.000716*D177*5010+G177 -> 4152.296 | L177: =0.000716*D177*3130+G177 -> 3344.648 | M177: =0.00072*D177*5110+G177 -> 4207.52 | N177: =0.00072*D177*8910+G177 -> 5849.12
C178: Стол (400) рабочий 2 двери | D178: 700 | E178: Стол (400) рабочий 2 двери, размер: 700 | F178: 1202-70 | G178: 2200 | H178: 2300 | I178: 2500 | J178: =0.000716*D178*3910+G178 -> 4159.692 | K178: =0.000716*D178*5010+G178 -> 4711.012 | L178: =0.000716*D178*3130+G178 -> 3768.756 | M178: =0.00072*D178*5110+G178 -> 4775.44 | N178: =0.00072*D178*8910+G178 -> 6690.64
C179: Стол (400) рабочий 2 двери | D179: 800 | E179: Стол (400) рабочий 2 двери, размер: 800 | F179: 1202-80 | G179: 2400 | H179: 2500 | I179: 2700 | J179: =0.000716*D179*3910+G179 -> 4639.648 | K179: =0.000716*D179*5010+G179 -> 5269.728 | L179: =0.000716*D179*3130+G179 -> 4192.864 | M179: =0.00072*D179*5110+G179 -> 5343.36 | N179: =0.00072*D179*8910+G179 -> 7532.16
C180: Стол (400) рабочий 2 двери | D180: 900 | E180: Стол (400) рабочий 2 двери, размер: 900 | F180: 1202-90 | G180: 2600 | H180: 2700 | I180: 2900 | J180: =0.000716*D180*3910+G180 -> 5119.604 | K180: =0.000716*D180*5010+G180 -> 5828.444 | L180: =0.000716*D180*3130+G180 -> 4616.972 | M180: =0.00072*D180*5110+G180 -> 5911.28 | N180: =0.00072*D180*8910+G180 -> 8373.68
C181: Стол (400) рабочий 2 двери | D181: 1000 | E181: Стол (400) рабочий 2 двери, размер: 1000 | F181: 1202-100 | G181: 2800 | H181: 2900 | I181: 3100 | J181: =0.000716*D181*3910+G181 -> 5599.56 | K181: =0.000716*D181*5010+G181 -> 6387.16 | L181: =0.000716*D181*3130+G181 -> 5041.08 | M181: =0.00072*D181*5110+G181 -> 6479.2 | N181: =0.00072*D181*8910+G181 -> 9215.2
B182: Стол (400) H=1020 1дв | C182: Стол (400) H=1020 1дв | D182: 500 | E182: Стол (400) H=1020 1дв, размер: 500 | F182: 1203-50 | G182: 2000 | H182: 2100 | I182: 2300 | J182: =0.000716*D182*3910+G182 -> 3399.78 | K182: =0.000716*D182*5010+G182 -> 3793.58 | L182: =0.000716*D182*3130+G182 -> 3120.54 | M182: =0.00072*D182*5110+G182 -> 3839.6 | N182: =0.00072*D182*8910+G182 -> 5207.6
C183: Стол (400) H=1020 1дв | D183: 600 | E183: Стол (400) H=1020 1дв, размер: 600 | F183: 1203-60 | G183: 2200 | H183: 2300 | I183: 2500 | J183: =0.000716*D183*3910+G183 -> 3879.736 | K183: =0.000716*D183*5010+G183 -> 4352.296 | L183: =0.000716*D183*3130+G183 -> 3544.648 | M183: =0.00072*D183*5110+G183 -> 4407.52 | N183: =0.00072*D183*8910+G183 -> 6049.12
B184: Стол (400) H=1020 2дв | C184: Стол (400) H=1020 2дв | D184: 600 | E184: Стол (400) H=1020 2дв, размер: 600 | F184: 1204-60 | G184: 2400 | H184: 2500 | I184: 2700 | J184: =0.000716*D184*3910+G184 -> 4079.736 | K184: =0.000716*D184*5010+G184 -> 4552.296 | L184: =0.000716*D184*3130+G184 -> 3744.648 | M184: =0.00072*D184*5110+G184 -> 4607.52 | N184: =0.00072*D184*8910+G184 -> 6249.12
B185: Стол (400) рабочий 4 ящика метабокс | C185: Стол (400) рабочий 4 ящика метабокс | D185: 300 | E185: Стол (400) рабочий 4 ящика метабокс, размер: 300 | F185: 1205-30м | G185: 2700 | H185: 2800 | I185: 2900 | J185: =0.000716*D185*3910+G185 -> 3539.868 | K185: =0.000716*D185*5010+G185 -> 3776.148 | L185: =0.000716*D185*3130+G185 -> 3372.324 | M185: =0.00072*D185*5110+G185 -> 3803.76 | N185: =0.00072*D185*8910+G185 -> 4624.56
C186: Стол (400) рабочий 4 ящика метабокс | D186: 350 | E186: Стол (400) рабочий 4 ящика метабокс, размер: 350 | F186: 1205-35м | G186: 2800 | H186: 2900 | I186: 3000 | J186: =0.000716*D186*3910+G186 -> 3779.846 | K186: =0.000716*D186*5010+G186 -> 4055.506 | L186: =0.000716*D186*3130+G186 -> 3584.378 | M186: =0.00072*D186*5110+G186 -> 4087.72 | N186: =0.00072*D186*8910+G186 -> 5045.32
C187: Стол (400) рабочий 4 ящика метабокс | D187: 400 | E187: Стол (400) рабочий 4 ящика метабокс, размер: 400 | F187: 1205-40м | G187: 2900 | H187: 3000 | I187: 3100 | J187: =0.000716*D187*3910+G187 -> 4019.824 | K187: =0.000716*D187*5010+G187 -> 4334.864 | L187: =0.000716*D187*3130+G187 -> 3796.432 | M187: =0.00072*D187*5110+G187 -> 4371.68 | N187: =0.00072*D187*8910+G187 -> 5466.08
C188: Стол (400) рабочий 4 ящика метабокс | D188: 500 | E188: Стол (400) рабочий 4 ящика метабокс, размер: 500 | F188: 1205-50м | G188: 3200 | H188: 3300 | I188: 3400 | J188: =0.000716*D188*3910+G188 -> 4599.78 | K188: =0.000716*D188*5010+G188 -> 4993.58 | L188: =0.000716*D188*3130+G188 -> 4320.54 | M188: =0.00072*D188*5110+G188 -> 5039.6 | N188: =0.00072*D188*8910+G188 -> 6407.6
C189: Стол (400) рабочий 4 ящика метабокс | D189: 600 | E189: Стол (400) рабочий 4 ящика метабокс, размер: 600 | F189: 1205-60м | G189: 3500 | H189: 3600 | I189: 3700 | J189: =0.000716*D189*3910+G189 -> 5179.736 | K189: =0.000716*D189*5010+G189 -> 5652.296 | L189: =0.000716*D189*3130+G189 -> 4844.648 | M189: =0.00072*D189*5110+G189 -> 5707.52 | N189: =0.00072*D189*8910+G189 -> 7349.12
C190: Стол (400) рабочий 4 ящика метабокс | D190: 700 | E190: Стол (400) рабочий 4 ящика метабокс, размер: 700 | F190: 1205-70м | G190: 3700 | H190: 3800 | I190: 3900 | J190: =0.000716*D190*3910+G190 -> 5659.692 | K190: =0.000716*D190*5010+G190 -> 6211.012 | L190: =0.000716*D190*3130+G190 -> 5268.756 | M190: =0.00072*D190*5110+G190 -> 6275.44 | N190: =0.00072*D190*8910+G190 -> 8190.64
C191: Стол (400) рабочий 4 ящика метабокс | D191: 800 | E191: Стол (400) рабочий 4 ящика метабокс, размер: 800 | F191: 1205-80м | G191: 4000 | H191: 4100 | I191: 4200 | J191: =0.000716*D191*3910+G191 -> 6239.648 | K191: =0.000716*D191*5010+G191 -> 6869.728 | L191: =0.000716*D191*3130+G191 -> 5792.864 | M191: =0.00072*D191*5110+G191 -> 6943.36 | N191: =0.00072*D191*8910+G191 -> 9132.16
B192: Стол (400) рабочий 3 ящика метабокс | C192: Стол (400) рабочий 3 ящика метабокс | D192: 300 | E192: =C192&", размер: "&D192 -> Стол (400) рабочий 3 ящика метабокс, размер: 300 | F192: 1206-30м | G192: 2300 | H192: 2400 | I192: 2500 | J192: =0.000716*D192*3910+G192 -> 3139.868 | K192: =0.000716*D192*5010+G192 -> 3376.148 | L192: =0.000716*D192*3130+G192 -> 2972.324 | M192: =0.00072*D192*5110+G192 -> 3403.76 | N192: =0.00072*D192*8910+G192 -> 4224.56
C193: Стол (400) рабочий 3 ящика метабокс | D193: 350 | E193: Стол (400) рабочий 3 ящика метабокс, размер: 350 | F193: 1206-35м | G193: 2400 | H193: 2500 | I193: 2600 | J193: =0.000716*D193*3910+G193 -> 3379.846 | K193: =0.000716*D193*5010+G193 -> 3655.506 | L193: =0.000716*D193*3130+G193 -> 3184.378 | M193: =0.00072*D193*5110+G193 -> 3687.72 | N193: =0.00072*D193*8910+G193 -> 4645.32
C194: Стол (400) рабочий 3 ящика метабокс | D194: 400 | E194: Стол (400) рабочий 3 ящика метабокс, размер: 400 | F194: 1206-40м | G194: 2500 | H194: 2600 | I194: 2700 | J194: =0.000716*D194*3910+G194 -> 3619.824 | K194: =0.000716*D194*5010+G194 -> 3934.864 | L194: =0.000716*D194*3130+G194 -> 3396.432 | M194: =0.00072*D194*5110+G194 -> 3971.68 | N194: =0.00072*D194*8910+G194 -> 5066.08
C195: Стол (400) рабочий 3 ящика метабокс | D195: 500 | E195: Стол (400) рабочий 3 ящика метабокс, размер: 500 | F195: 1206-50м | G195: 2800 | H195: 2900 | I195: 3000 | J195: =0.000716*D195*3910+G195 -> 4199.78 | K195: =0.000716*D195*5010+G195 -> 4593.58 | L195: =0.000716*D195*3130+G195 -> 3920.54 | M195: =0.00072*D195*5110+G195 -> 4639.6 | N195: =0.00072*D195*8910+G195 -> 6007.6
C196: Стол (400) рабочий 3 ящика метабокс | D196: 600 | E196: Стол (400) рабочий 3 ящика метабокс, размер: 600 | F196: 1206-60м | G196: 3050 | H196: 3150 | I196: 3250 | J196: =0.000716*D196*3910+G196 -> 4729.736 | K196: =0.000716*D196*5010+G196 -> 5202.296 | L196: =0.000716*D196*3130+G196 -> 4394.648 | M196: =0.00072*D196*5110+G196 -> 5257.52 | N196: =0.00072*D196*8910+G196 -> 6899.12
C197: Стол (400) рабочий 3 ящика метабокс | D197: 700 | E197: Стол (400) рабочий 3 ящика метабокс, размер: 700 | F197: 1206-70м | G197: 3300 | H197: 3400 | I197: 3500 | J197: =0.000716*D197*3910+G197 -> 5259.692 | K197: =0.000716*D197*5010+G197 -> 5811.012 | L197: =0.000716*D197*3130+G197 -> 4868.756 | M197: =0.00072*D197*5110+G197 -> 5875.44 | N197: =0.00072*D197*8910+G197 -> 7790.64
C198: Стол (400) рабочий 3 ящика метабокс | D198: 800 | E198: Стол (400) рабочий 3 ящика метабокс, размер: 800 | F198: 1206-80м | G198: 3500 | H198: 3600 | I198: 3700 | J198: =0.000716*D198*3910+G198 -> 5739.648 | K198: =0.000716*D198*5010+G198 -> 6369.728 | L198: =0.000716*D198*3130+G198 -> 5292.864 | M198: =0.00072*D198*5110+G198 -> 6443.36 | N198: =0.00072*D198*8910+G198 -> 8632.16
B199: Стол (400) рабочий 2 ящика метабокс | C199: Стол (400) рабочий 2 ящика метабокс | D199: 300 | E199: Стол (400) рабочий 2 ящика метабокс, размер: 300 | F199: 1207-30м | G199: 1900 | H199: 2000 | I199: 2100 | J199: =0.000716*D199*3910+G199 -> 2739.868 | K199: =0.000716*D199*5010+G199 -> 2976.148 | L199: =0.000716*D199*3130+G199 -> 2572.324 | M199: =0.00072*D199*5110+G199 -> 3003.76 | N199: =0.00072*D199*8910+G199 -> 3824.56
C200: Стол (400) рабочий 2 ящика метабокс | D200: 350 | E200: Стол (400) рабочий 2 ящика метабокс, размер: 350 | F200: 1207-35м | G200: 2000 | H200: 2100 | I200: 2200 | J200: =0.000716*D200*3910+G200 -> 2979.846 | K200: =0.000716*D200*5010+G200 -> 3255.506 | L200: =0.000716*D200*3130+G200 -> 2784.378 | M200: =0.00072*D200*5110+G200 -> 3287.72 | N200: =0.00072*D200*8910+G200 -> 4245.32
C201: Стол (400) рабочий 2 ящика метабокс | D201: 400 | E201: Стол (400) рабочий 2 ящика метабокс, размер: 400 | F201: 1207-40м | G201: 2100 | H201: 2200 | I201: 2300 | J201: =0.000716*D201*3910+G201 -> 3219.824 | K201: =0.000716*D201*5010+G201 -> 3534.864 | L201: =0.000716*D201*3130+G201 -> 2996.432 | M201: =0.00072*D201*5110+G201 -> 3571.68 | N201: =0.00072*D201*8910+G201 -> 4666.08
... 5 more rows

Sheet Шкафы
E1: Размер | F1: Высота модуля | I1: Код изделия | J1: МДФ мат. | K1: МДФ глян. | L1: МДФ металл. | M1: МДФ+ПАТИНА | N1: БАГЕТНАЯ | O1: БОСТОН ПВХ/фот.печ. | P1: БОСТОН ЛАК | Q1: БОСТОН ЭМАЛЬ
B2: Шкафы навесные
C3: Шкаф под посудосушитель 1дв | D3: Шкаф под посудосушитель 1дв | E3: 400 | F3: h 600 | G3: h 600 | H3: =D3&", размер: "&E3&", "&G3 -> Шкаф под посудосушитель 1дв , размер: 400, h 600 | I3: 1315-40 | J3: 960 | K3: 1030 | L3: 1070 | M3: =0.0006*E3*3910+J3 -> 1898.4 | N3: =0.0006*E3*5010+J3 -> 2162.4 | O3: =0.0006*E3*3130+J3 -> 1711.2 | P3: =0.0006*E3*5110+J3 -> 2186.4 | Q3: =0.0006*E3*8910+J3 -> 3098.4
D4: Шкаф под посудосушитель 1дв | E4: 500 | G4: h 600 | H4: =D4&", размер: "&E4&", "&G4 -> Шкаф под посудосушитель 1дв , размер: 500, h 600 | I4: 1315-50 | J4: 1120 | K4: 1220 | L4: 1260 | M4: =0.0006*E4*3910+J4 -> 2293 | N4: =0.0006*E4*5010+J4 -> 2623 | O4: =0.0006*E4*3130+J4 -> 2059 | P4: =0.0006*E4*5110+J4 -> 2653 | Q4: =0.0006*E4*8910+J4 -> 3793
D5: Шкаф под посудосушитель 1дв | E5: 600 | G5: h 600 | H5: Шкаф под посудосушитель 1дв , размер: 600, h 600 | I5: 1315-60 | J5: 1280 | K5: 1400 | L5: 1440 | M5: 2687.6 | N5: 3083.6 | O5: 2406.8 | P5: 3119.6 | Q5: 4487.6
D6: Шкаф под посудосушитель 1дв | E6: 500 | F6: h 720 | G6: h 720 | H6: Шкаф под посудосушитель 1дв , размер: 500, h 720 | I6: 1309-50 | J6: 1290 | K6: 1410 | L6: 1450 | M6: =0.000716*E6*3910+J6 -> 2689.78 | N6: =0.00072*E6*5010+J6 -> 3093.6 | O6: =0.00072*E6*3130+J6 -> 2416.8 | P6: =0.00072*E6*5110+J6 -> 3129.6 | Q6: =0.00072*E6*8910+J6 -> 4497.6
D7: Шкаф под посудосушитель 1дв | E7: 600 | G7: h 720 | H7: Шкаф под посудосушитель 1дв , размер: 600, h 720 | I7: 1309-60 | J7: 1440 | K7: 1590 | L7: 1650 | M7: =0.000716*E7*3910+J7 -> 3119.736 | N7: =0.00072*E7*5010+J7 -> 3604.32 | O7: =0.00072*E7*3130+J7 -> 2792.16 | P7: =0.00072*E7*5110+J7 -> 3647.52 | Q7: =0.00072*E7*8910+J7 -> 5289.12
D8: Шкаф под посудосушитель 1дв | E8: 500 | F8: h 920 | G8: h 920 | H8: Шкаф под посудосушитель 1дв , размер: 500, h 920 | I8: 1310-50 | J8: 1630 | K8: 1780 | L8: 1850 | M8: =0.000916*E8*3910+J8 -> 3420.78 | N8: =0.00092*E8*5010+J8 -> 3934.6 | O8: =0.00092*E8*3130+J8 -> 3069.8 | P8: =0.00092*E8*5110+J8 -> 3980.6 | Q8: =0.00092*E8*8910+J8 -> 5728.6
D9: Шкаф под посудосушитель 1дв | E9: 600 | G9: h 920 | H9: Шкаф под посудосушитель 1дв , размер: 600, h 920 | I9: 1310-60 | J9: 1850 | K9: 2030 | L9: 2120 | M9: =0.000916*E9*3910+J9 -> 3998.936 | N9: =0.00092*E9*5010+J9 -> 4615.52 | O9: =0.00092*E9*3130+J9 -> 3577.76 | P9: =0.00092*E9*5110+J9 -> 4670.72 | Q9: =0.00092*E9*8910+J9 -> 6768.32
C10: Шкаф под посудосушитель 1дв 1ст | D10: Шкаф под посудосушитель 1дв 1ст | E10: 500 | F10: h 720 | G10: h 720 | H10: Шкаф под посудосушитель 1дв 1ст, размер: 500, h 720 | I10: 1309-50с | J10: =J144+186 -> 1746 | K10: 1866 | L10: 1916 | M10: =0.000716*E10*3910+J10 -> 3145.78 | N10: =0.00072*E10*5010+J10 -> 3549.6 | O10: =0.00072*E10*3130+J10 -> 2872.8 | P10: =0.00072*E10*5110+J10 -> 3585.6 | Q10: =0.00072*E10*8910+J10 -> 4953.6
D11: Шкаф под посудосушитель 1дв 1ст | E11: 600 | G11: h 720 | H11: Шкаф под посудосушитель 1дв 1ст, размер: 600, h 720 | I11: 1309-60с | J11: =J146+215 -> 1995 | K11: 2155 | L11: 2205 | M11: =0.000716*E11*3910+J11 -> 3674.736 | N11: =0.00072*E11*5010+J11 -> 4159.32 | O11: =0.00072*E11*3130+J11 -> 3347.16 | P11: =0.00072*E11*5110+J11 -> 4202.52 | Q11: =0.00072*E11*8910+J11 -> 5844.12
D12: Шкаф под посудосушитель 1дв 1ст | E12: 500 | F12: h 920 | G12: h 920 | H12: Шкаф под посудосушитель 1дв 1ст, размер: 500, h 920 | I12: 1310-50С | J12: =J151+186 -> 2166 | K12: 2316 | L12: 2386 | M12: =0.000916*E12*3910+J12 -> 3956.78 | N12: =0.00092*E12*5010+J12 -> 4470.6 | O12: =0.00092*E12*3130+J12 -> 3605.8 | P12: =0.00092*E12*5110+J12 -> 4516.6 | Q12: =0.00092*E12*8910+J12 -> 6264.6
D13: Шкаф под посудосушитель 1дв 1ст | E13: 600 | G13: h 920 | H13: Шкаф под посудосушитель 1дв 1ст, размер: 600, h 920 | I13: 1310-60С | J13: =J153+215 -> 2495 | K13: 2675 | L13: 2765 | M13: =0.000916*E13*3910+J13 -> 4643.936 | N13: =0.00092*E13*5010+J13 -> 5260.52 | O13: =0.00092*E13*3130+J13 -> 4222.76 | P13: =0.00092*E13*5110+J13 -> 5315.72 | Q13: =0.00092*E13*8910+J13 -> 7413.32
C14: Шкаф под посудосушитель 2дв. | D14: Шкаф под посудосушитель 2дв. | E14: 600 | F14: h 600 | G14: h 600 | H14: Шкаф под посудосушитель 2дв., размер: 600, h 600 | I14: 1422-60 | J14: 1310 | K14: 1430 | L14: 1470 | M14: =0.000596*E14*3910+J14 -> 2708.216 | N14: =0.0006*E14*5010+J14 -> 3113.6 | O14: =0.0006*E14*3130+J14 -> 2436.8 | P14: =0.0006*E14*5110+J14 -> 3149.6 | Q14: =0.0006*E14*8910+J14 -> 4517.6
D15: Шкаф под посудосушитель 2дв. | E15: 700 | G15: h 600 | H15: Шкаф под посудосушитель 2дв., размер: 700, h 600 | I15: 1422-70 | J15: 1460 | K15: 1610 | L15: 1670 | M15: =0.000596*E15*3910+J15 -> 3091.252 | N15: =0.0006*E15*5010+J15 -> 3564.2 | O15: =0.0006*E15*3130+J15 -> 2774.6 | P15: =0.0006*E15*5110+J15 -> 3606.2 | Q15: =0.0006*E15*8910+J15 -> 5202.2
D16: Шкаф под посудосушитель 2дв. | E16: 800 | G16: h 600 | H16: Шкаф под посудосушитель 2дв., размер: 800, h 600 | I16: 1422-80 | J16: 1610 | K16: 1770 | L16: 1840 | M16: 3474.288 | N16: 4014.8 | O16: 3112.4 | P16: 4062.8 | Q16: 5886.8
D17: Шкаф под посудосушитель 2дв. | E17: 600 | F17: h 720 | G17: h 720 | H17: Шкаф под посудосушитель 2дв., размер: 600, h 720 | I17: 1411-60 | J17: 1480 | K17: 1639 | L17: 1690 | M17: =0.000716*E17*3910+J17 -> 3159.736 | N17: =0.00072*E17*5010+J17 -> 3644.32 | O17: =0.00072*E17*3130+J17 -> 2832.16 | P17: =0.00072*E17*5110+J17 -> 3687.52 | Q17: =0.00072*E17*8910+J17 -> 5329.12
D18: Шкаф под посудосушитель 2дв. | E18: 700 | G18: h 720 | H18: Шкаф под посудосушитель 2дв., размер: 700, h 720 | I18: 1411-70 | J18: 1670 | K18: 1840 | L18: 1910 | M18: =0.000716*E18*3910+J18 -> 3629.692 | N18: =0.00072*E18*5010+J18 -> 4195.04 | O18: =0.00072*E18*3130+J18 -> 3247.52 | P18: =0.00072*E18*5110+J18 -> 4245.44 | Q18: =0.00072*E18*8910+J18 -> 6160.64
D19: Шкаф под посудосушитель 2дв. | E19: 800 | G19: h 720 | H19: Шкаф под посудосушитель 2дв., размер: 800, h 720 | I19: 1411-80 | J19: 1840 | K19: 2020 | L19: 2110 | M19: 4079.648 | N19: 4725.76 | O19: 3642.88 | P19: 4783.36 | Q19: 6972.16
D20: Шкаф под посудосушитель 2дв. | E20: 600 | F20: h 920 | G20: h 920 | H20: Шкаф под посудосушитель 2дв., размер: 600, h 920 | I20: 1412-60 | J20: 1880 | K20: 2070 | L20: 2140 | M20: =0.000916*E20*3910+J20 -> 4028.936 | N20: =0.00092*E20*5010+J20 -> 4645.52 | O20: =0.00092*E20*3130+J20 -> 3607.76 | P20: =0.00092*E20*5110+J20 -> 4700.72 | Q20: =0.00092*E20*8910+J20 -> 6798.32
D21: Шкаф под посудосушитель 2дв. | E21: 700 | G21: h 920 | H21: Шкаф под посудосушитель 2дв., размер: 700, h 920 | I21: 1412-80 | J21: 2110 | K21: 2330 | L21: 2420 | M21: =0.000916*E21*3910+J21 -> 4617.092 | N21: =0.00092*E21*5010+J21 -> 5336.44 | O21: =0.00092*E21*3130+J21 -> 4125.72 | P21: =0.00092*E21*5110+J21 -> 5400.84 | Q21: =0.00092*E21*8910+J21 -> 7848.04
D22: Шкаф под посудосушитель 2дв. | E22: 800 | G22: h 920 | H22: Шкаф под посудосушитель 2дв., размер: 800, h 920 | I22: 1412-80 | J22: 2340 | K22: 2600 | L22: 2690 | M22: 5205.248 | N22: 6027.36 | O22: 4643.68 | P22: 6100.96 | Q22: 8897.76
C23: Шкаф под посудосушитель 2дв.2ст. | D23: Шкаф под посудосушитель 2дв.2ст. | E23: 600 | F23: h 720 | G23: h 720 | H23: Шкаф под посудосушитель 2дв.2ст., размер: 600, h 720 | I23: 1411-60С | J23: =J154+215 -> 1995 | K23: 2155 | L23: 2205 | M23: =0.000716*E23*3910+J23 -> 3674.736 | N23: =0.00072*E23*5010+J23 -> 4159.32 | O23: =0.00072*E23*3130+J23 -> 3347.16 | P23: =0.0006*E23*5110+J23 -> 3834.6 | Q23: =0.00072*E23*8910+J23 -> 5844.12
D24: Шкаф под посудосушитель 2дв.2ст. | E24: 600 | F24: h 920 | G24: h 920 | H24: Шкаф под посудосушитель 2дв.2ст., размер: 600, h 920 | I24: 1412-60 | J24: =J157+215 -> 2465 | K24: 2655 | L24: 2735 | M24: =0.000916*E24*3910+J24 -> 4613.936 | N24: =0.00092*E24*5010+J24 -> 5230.52 | O24: =0.00092*E24*3130+J24 -> 4192.76 | P24: =0.00092*E24*5110+J24 -> 5285.72 | Q24: =0.00092*E24*8910+J24 -> 7383.32
D25: Шкаф под посудосушитель 2дв.2ст. | E25: 800 | G25: h 920 | H25: Шкаф под посудосушитель 2дв.2ст., размер: 800, h 920 | I25: 1412-80 | J25: =J159+240 -> 3130 | K25: 3390 | L25: 3480 | M25: =0.000916*E25*3910+J25 -> 5995.248 | N25: =0.00092*E25*5010+J25 -> 6817.36 | O25: =0.00092*E25*3130+J25 -> 5433.68 | P25: =0.00092*E25*5110+J25 -> 6890.96 | Q25: =0.00092*E25*8910+J25 -> 9687.76
C26: Шкаф (300) угл прямой (ФП 20) Л/ПР | D26: Шкаф (300) угл прямой (ФП 20) Н=600 Л/ПР | E26: 600 | F26: h 600 | G26: h 600 | H26: Шкаф (300) угл прямой (ФП 20) Н=600 Л/ПР, размер: 600, h 600 | I26: 1850-60 | J26: 1790 | K26: 1890 | L26: 1990 | M26: =0.0006*(600-300)*3910+J26 -> 2493.8 | N26: =0.0006*E26*5010+J26 -> 3593.6 | O26: =0.0006*E26*3130+J26 -> 2916.8 | P26: =0.0006*E26*5110+J26 -> 3629.6 | Q26: =0.0006*(E26-300)*8910+J26 -> 3393.8
D27: Шкаф (300) угл прямой (ФП 20) Н=600 Л/ПР | E27: 700 | G27: h 600 | H27: Шкаф (300) угл прямой (ФП 20) Н=600 Л/ПР, размер: 700, h 600 | I27: 1850-70 | J27: 1950 | K27: 2050 | L27: 2150 | M27: =0.0006*(600-300)*3910+J27 -> 2653.8 | N27: =0.0006*E27*5010+J27 -> 4054.2 | O27: =0.0006*E27*3130+J27 -> 3264.6 | P27: =0.0006*E27*5110+J27 -> 4096.2 | Q27: =0.0006*(E27-300)*8910+J27 -> 4088.4
D28: Шкаф (300) угл прямой (ФП 20) Н=600 Л/ПР | E28: 800 | G28: h 600 | H28: Шкаф (300) угл прямой (ФП 20) Н=600 Л/ПР, размер: 800, h 600 | I28: 1850-80 | J28: 2110 | K28: 2210 | L28: 2310 | M28: 2813.8 | N28: 4514.8 | O28: 3612.4 | P28: 4562.8 | Q28: 4783
D29: Шкаф (300) угл прямой (ФП 20) Н=600 Л/ПР | E29: 600 | F29: h 720 | G29: h 720 | H29: Шкаф (300) угл прямой (ФП 20) Н=600 Л/ПР, размер: 600, h 720 | I29: 1851-60 | J29: 1940 | K29: 2040 | L29: 2140 | M29: =0.000716*(600-300)*3910+J29 -> 2779.868 | N29: =0.00072*E29*5010+J29 -> 4104.32 | O29: =0.00072*E29*3130+J29 -> 3292.16 | P29: =0.00072*E29*5110+J29 -> 4147.52 | Q29: =0.00072*(E29-300)*8910+J29 -> 3864.56
D30: Шкаф (300) угл прямой (ФП 20) Н=600 Л/ПР | E30: 700 | G30: h 720 | H30: Шкаф (300) угл прямой (ФП 20) Н=600 Л/ПР, размер: 700, h 720 | I30: 1851-70 | J30: 2110 | K30: 2210 | L30: 2310 | M30: =0.000716*(600-300)*3910+J30 -> 2949.868 | N30: =0.00072*E30*5010+J30 -> 4635.04 | O30: =0.00072*E30*3130+J30 -> 3687.52 | P30: =0.00072*E30*5110+J30 -> 4685.44 | Q30: =0.00072*(E30-300)*8910+J30 -> 4676.08
D31: Шкаф (300) угл прямой (ФП 20) Н=600 Л/ПР | E31: 800 | G31: h 720 | H31: Шкаф (300) угл прямой (ФП 20) Н=600 Л/ПР, размер: 800, h 720 | I31: 1851-80 | J31: 2290 | K31: 2390 | L31: 2490 | M31: 3129.868 | N31: 5175.76 | O31: 4092.88 | P31: 5233.36 | Q31: 5497.6
D32: Шкаф (300) угл прямой (ФП 20) Н=600 Л/ПР | E32: 600 | F32: h 920 | G32: h 920 | H32: Шкаф (300) угл прямой (ФП 20) Н=600 Л/ПР, размер: 600, h 920 | I32: 1852-60 | J32: 2280 | K32: 2380 | L32: 2480 | M32: =0.000916*(E32-300)*3910+J32 -> 3354.468 | N32: =0.00092*E32*5010+J32 -> 5045.52 | O32: =0.00092*E32*3130+J32 -> 4007.76 | P32: =0.00092*E32*5110+J32 -> 5100.72 | Q32: =0.00092*E32*8910+J32 -> 7198.32
D33: Шкаф (300) угл прямой (ФП 20) Н=600 Л/ПР | E33: 700 | G33: h 920 | H33: Шкаф (300) угл прямой (ФП 20) Н=600 Л/ПР, размер: 700, h 920 | I33: 1852-70 | J33: 2510 | K33: 2610 | L33: 2710 | M33: =0.000916*(E33-300)*3910+J33 -> 3942.624 | N33: =0.00092*E33*5010+J33 -> 5736.44 | O33: =0.00092*E33*3130+J33 -> 4525.72 | P33: =0.00092*E33*5110+J33 -> 5800.84 | Q33: =0.00092*E33*8910+J33 -> 8248.04
D34: Шкаф (300) угл прямой (ФП 20) Н=600 Л/ПР | E34: 800 | G34: h 920 | H34: Шкаф (300) угл прямой (ФП 20) Н=600 Л/ПР, размер: 800, h 920 | I34: 1852-80 | J34: 2740 | K34: 2840 | L34: 2940 | M34: 4530.78 | N34: 6427.36 | O34: 5043.68 | P34: 6500.96 | Q34: 9297.76
C35: Шкаф антресольный | D35: Шкаф антресольный | E35: 400 | F35: h 300 | G35: h 300 | H35: Шкаф антресольный, размер: 400, h 300 | I35: 1311-40 | J35: =J44-20 -> 750 | K35: 810 | L35: 830 | M35: =0.0003*E35*3910+J35 -> 1219.2 | N35: =0.0003*E35*5010+J35 -> 1351.2 | O35: =0.0003*E35*3130+J35 -> 1125.6 | P35: =0.0003*E35*5110+J35 -> 1363.2 | Q35: =0.0003*E35*8910+J35 -> 1819.2
D36: Шкаф антресольный | E36: 450 | G36: h 300 | H36: Шкаф антресольный, размер: 450, h 300 | I36: 1311-45 | J36: =J45-20 -> 830 | K36: 880 | L36: 880 | M36: =0.0003*E36*3910+J36 -> 1357.85 | N36: =0.0003*E36*5010+J36 -> 1506.35 | O36: =0.0003*E36*3130+J36 -> 1252.55 | P36: =0.0003*E36*5110+J36 -> 1519.85 | Q36: =0.0003*E36*8910+J36 -> 2032.85
D37: Шкаф антресольный | E37: 500 | G37: h 300 | H37: Шкаф антресольный, размер: 500, h 300 | I37: 1311-50 | J37: 860 | K37: 910 | L37: 940 | M37: 1446.5 | N37: 1611.5 | O37: 1329.5 | P37: 1626.5 | Q37: 2196.5
D38: Шкаф антресольный | E38: 550 | G38: h 300 | H38: Шкаф антресольный, размер: 550, h 300 | I38: 1311-55 | J38: 930 | K38: 990 | L38: 1030 | M38: 1575.15 | N38: 1756.65 | O38: 1446.45 | P38: 1773.15 | Q38: 2400.15
D39: Шкаф антресольный | E39: 600 | G39: h 300 | H39: Шкаф антресольный, размер: 600, h 300 | I39: 1311-60 | J39: 960 | K39: 1040 | L39: 1070 | M39: 1663.8 | N39: 1861.8 | O39: 1523.4 | P39: 1879.8 | Q39: 2563.8
D40: Шкаф антресольный | E40: 650 | G40: h 300 | H40: Шкаф антресольный, размер: 650, h 300 | I40: 1311-65 | J40: 1130 | K40: 1180 | L40: 1230 | M40: 1892.45 | N40: 2106.95 | O40: 1740.35 | P40: 2126.45 | Q40: 2867.45
D41: Шкаф антресольный | E41: 700 | G41: h 300 | H41: Шкаф антресольный, размер: 700, h 300 | I41: 1311-70 | J41: 1160 | K41: 1230 | L41: 1280 | M41: 1981.1 | N41: 2212.1 | O41: 1817.3 | P41: 2233.1 | Q41: 3031.1
D42: Шкаф антресольный | E42: 750 | G42: h 300 | H42: Шкаф антресольный, размер: 750, h 300 | I42: 1311-75 | J42: 1230 | K42: 1330 | L42: 1350 | M42: 2109.75 | N42: 2357.25 | O42: 1934.25 | P42: 2379.75 | Q42: 3234.75
D43: Шкаф антресольный | E43: 800 | G43: h 300 | H43: Шкаф антресольный, размер: 800, h 300 | I43: 1311-80 | J43: 1260 | K43: 1360 | L43: 1390 | M43: 2198.4 | N43: 2462.4 | O43: 2011.2 | P43: 2486.4 | Q43: 3398.4
D44: Шкаф антресольный | E44: 400 | F44: h 360 | G44: h 360 | H44: Шкаф антресольный, размер: 400, h 360 | I44: 1311-40 | J44: 770 | K44: 830 | L44: 850 | M44: =0.000396*E44*3910+J44 -> 1389.344 | N44: =0.00036*E44*5010+J44 -> 1491.44 | O44: =0.00036*E44*3130+J44 -> 1220.72 | P44: =0.00036*E44*5110+J44 -> 1505.84 | Q44: =0.00036*E44*8910+J44 -> 2053.04
D45: Шкаф антресольный | E45: 450 | G45: h 360 | H45: Шкаф антресольный, размер: 450, h 360 | I45: 1311-45 | J45: 850 | K45: 900 | L45: 900 | M45: =0.000396*E45*3910+J45 -> 1546.762 | N45: =0.00036*E45*5010+J45 -> 1661.62 | O45: =0.00036*E45*3130+J45 -> 1357.06 | P45: =0.00036*E45*5110+J45 -> 1677.82 | Q45: =0.00036*E45*8910+J45 -> 2293.42
D46: Шкаф антресольный | E46: 500 | G46: h 360 | H46: Шкаф антресольный, размер: 500, h 360 | I46: 1311-50 | J46: 880 | K46: 930 | L46: 960 | M46: 1654.18 | N46: 1781.8 | O46: 1443.4 | P46: 1799.8 | Q46: 2483.8
D47: Шкаф антресольный | E47: 550 | G47: h 360 | H47: Шкаф антресольный, размер: 550, h 360 | I47: 1311-55 | J47: 950 | K47: 1010 | L47: 1050 | M47: 1801.598 | N47: 1941.98 | O47: 1569.74 | P47: 1961.78 | Q47: 2714.18
D48: Шкаф антресольный | E48: 600 | G48: h 360 | H48: Шкаф антресольный, размер: 600, h 360 | I48: 1311-60 | J48: 980 | K48: 1060 | L48: 1090 | M48: 1909.016 | N48: 2062.16 | O48: 1656.08 | P48: 2083.76 | Q48: 2904.56
D49: Шкаф антресольный | E49: 650 | G49: h 360 | H49: Шкаф антресольный, размер: 650, h 360 | I49: 1311-65 | J49: 1150 | K49: 1200 | L49: 1250 | M49: 2156.434 | N49: 2322.34 | O49: 1882.42 | P49: 2345.74 | Q49: 3234.94
D50: Шкаф антресольный | E50: 700 | G50: h 360 | H50: Шкаф антресольный, размер: 700, h 360 | I50: 1311-70 | J50: 1180 | K50: 1250 | L50: 1300 | M50: 2263.852 | N50: 2442.52 | O50: 1968.76 | P50: 2467.72 | Q50: 3425.32
D51: Шкаф антресольный | E51: 750 | G51: h 360 | H51: Шкаф антресольный, размер: 750, h 360 | I51: 1311-75 | J51: 1250 | K51: 1350 | L51: 1370 | M51: 2411.27 | N51: 2602.7 | O51: 2095.1 | P51: 2629.7 | Q51: 3655.7
D52: Шкаф антресольный | E52: 800 | G52: h 360 | H52: Шкаф антресольный, размер: 800, h 360 | I52: 1311-80 | J52: 1280 | K52: 1380 | L52: 1410 | M52: 2518.688 | N52: 2722.88 | O52: 2181.44 | P52: 2751.68 | Q52: 3846.08
D53: Шкаф антресольный | E53: 400 | F53: h 400 | G53: h 400 | H53: Шкаф антресольный, размер: 400, h 400 | I53: 1312-40 | J53: =J62-20 -> 904 | K53: 976 | L53: 1000 | M53: =0.0004*E53*3910+J53 -> 1529.6 | N53: =0.0004*E53*5010+J53 -> 1705.6 | O53: =0.0004*E53*3130+J53 -> 1404.8 | P53: =0.0004*E53*5110+J53 -> 1721.6 | Q53: =0.0004*E53*8910+J53 -> 2329.6
D54: Шкаф антресольный | E54: 450 | G54: h 400 | H54: Шкаф антресольный, размер: 450, h 400 | I54: 1312-45 | J54: =J63-20 -> 1000 | K54: 1060 | L54: 1080 | M54: =0.0004*E54*3910+J54 -> 1703.8 | N54: =0.0004*E54*5010+J54 -> 1901.8 | O54: =0.0004*E54*3130+J54 -> 1563.4 | P54: =0.0004*E54*5110+J54 -> 1919.8 | Q54: =0.0004*E54*8910+J54 -> 2603.8
D55: Шкаф антресольный | E55: 500 | G55: h 400 | H55: Шкаф антресольный, размер: 500, h 400 | I55: 1312-50 | J55: 1036 | K55: 1096 | L55: 1132 | M55: 1818 | N55: 2038 | O55: 1662 | P55: 2058 | Q55: 2818
D56: Шкаф антресольный | E56: 550 | G56: h 400 | H56: Шкаф антресольный, размер: 550, h 400 | I56: 1312-55 | J56: 1120 | K56: 1192 | L56: 1240 | M56: 1980.2 | N56: 2222.2 | O56: 1808.6 | P56: 2244.2 | Q56: 3080.2
D57: Шкаф антресольный | E57: 600 | G57: h 400 | H57: Шкаф антресольный, размер: 600, h 400 | I57: 1312-60 | J57: 1156 | K57: 1252 | L57: 1288 | M57: 2094.4 | N57: 2358.4 | O57: 1907.2 | P57: 2382.4 | Q57: 3294.4
D58: Шкаф антресольный | E58: 650 | G58: h 400 | H58: Шкаф антресольный, размер: 650, h 400 | I58: 1312-65 | J58: 1360 | K58: 1420 | L58: 1480 | M58: 2376.6 | N58: 2662.6 | O58: 2173.8 | P58: 2688.6 | Q58: 3676.6
D59: Шкаф антресольный | E59: 700 | G59: h 400 | H59: Шкаф антресольный, размер: 700, h 400 | I59: 1312-70 | J59: 1396 | K59: 1480 | L59: 1540 | M59: 2490.8 | N59: 2798.8 | O59: 2272.4 | P59: 2826.8 | Q59: 3890.8
D60: Шкаф антресольный | E60: 750 | G60: h 400 | H60: Шкаф антресольный, размер: 750, h 400 | I60: 1312-75 | J60: 1480 | K60: 1600 | L60: 1624 | M60: 2653 | N60: 2983 | O60: 2419 | P60: 3013 | Q60: 4153
D61: Шкаф антресольный | E61: 800 | G61: h 400 | H61: Шкаф антресольный, размер: 800, h 400 | I61: 1312-80 | J61: 1516 | K61: 1636 | L61: 1672 | M61: 2767.2 | N61: 3119.2 | O61: 2517.6 | P61: 3151.2 | Q61: 4367.2
D62: Шкаф антресольный | E62: 400 | F62: h 460 | G62: h 460 | H62: Шкаф антресольный, размер: 400, h 460 | I62: 1312-40 | J62: =J44*0.2+J44 -> 924 | K62: 996 | L62: 1020 | M62: =0.00046*E62*3910+J62 -> 1643.44 | N62: =0.00046*E62*5010+J62 -> 1845.84 | O62: =0.00046*E62*3130+J62 -> 1499.92 | P62: =0.00046*E62*5110+J62 -> 1864.24 | Q62: =0.00046*E62*8910+J62 -> 2563.44
D63: Шкаф антресольный | E63: 450 | G63: h 460 | H63: Шкаф антресольный, размер: 450, h 460 | I63: 1312-45 | J63: 1020 | K63: 1080 | L63: 1100 | M63: =0.00046*E63*3910+J63 -> 1829.37 | N63: =0.00046*E63*5010+J63 -> 2057.07 | O63: =0.00046*E63*3130+J63 -> 1667.91 | P63: =0.00046*E63*5110+J63 -> 2077.77 | Q63: =0.00046*E63*8910+J63 -> 2864.37
D64: Шкаф антресольный | E64: 500 | G64: h 460 | H64: Шкаф антресольный, размер: 500, h 460 | I64: 1312-50 | J64: 1056 | K64: 1116 | L64: 1152 | M64: 1955.3 | N64: 2208.3 | O64: 1775.9 | P64: 2231.3 | Q64: 3105.3
D65: Шкаф антресольный | E65: 550 | G65: h 460 | H65: Шкаф антресольный, размер: 550, h 460 | I65: 1312-55 | J65: 1140 | K65: 1212 | L65: 1260 | M65: 2129.23 | N65: 2407.53 | O65: 1931.89 | P65: 2432.83 | Q65: 3394.23
D66: Шкаф антресольный | E66: 600 | G66: h 460 | H66: Шкаф антресольный, размер: 600, h 460 | I66: 1312-60 | J66: 1176 | K66: 1272 | L66: 1308 | M66: 2255.16 | N66: 2558.76 | O66: 2039.88 | P66: 2586.36 | Q66: 3635.16
D67: Шкаф антресольный | E67: 650 | G67: h 460 | H67: Шкаф антресольный, размер: 650, h 460 | I67: 1312-65 | J67: 1380 | K67: 1440 | L67: 1500 | M67: 2549.09 | N67: 2877.99 | O67: 2315.87 | P67: 2907.89 | Q67: 4044.09
D68: Шкаф антресольный | E68: 700 | G68: h 460 | H68: =D68&", размер: "&E68&", "&G68 -> Шкаф антресольный, размер: 700, h 460 | I68: 1312-70 | J68: 1416 | K68: 1500 | L68: 1560 | M68: 2675.02 | N68: 3029.22 | O68: 2423.86 | P68: 3061.42 | Q68: 4285.02
D69: Шкаф антресольный | E69: 750 | G69: h 460 | H69: Шкаф антресольный, размер: 750, h 460 | I69: 1312-75 | J69: 1500 | K69: 1620 | L69: 1644 | M69: 2848.95 | N69: 3228.45 | O69: 2579.85 | P69: 3262.95 | Q69: 4573.95
D70: Шкаф антресольный | E70: 800 | G70: h 460 | H70: Шкаф антресольный, размер: 800, h 460 | I70: 1312-80 | J70: 1536 | K70: 1656 | L70: 1692 | M70: 2974.88 | N70: 3379.68 | O70: 2687.84 | P70: 3416.48 | Q70: 4814.88
C71: Шкаф антресольный стекло | D71: Шкаф антресольный стекло | E71: 400 | F71: h 360 | G71: h 360 | H71: Шкаф антресольный стекло, размер: 400, h 360 | I71: 1311-40с | J71: 860 | K71: 910 | L71: 930 | M71: =0.00036*E71*3910+J71 -> 1423.04 | N71: =0.00036*E71*5010+J71 -> 1581.44 | O71: =0.00036*E71*3130+J71 -> 1310.72 | P71: =0.00036*E71*5110+J71 -> 1595.84 | Q71: =0.00036*E71*8910+J71 -> 2143.04
D72: Шкаф антресольный стекло | E72: 450 | G72: h 360 | H72: Шкаф антресольный стекло, размер: 450, h 360 | I72: 1311-45с | J72: 950 | K72: 1030 | L72: 1050 | M72: =0.00036*E72*3910+J72 -> 1583.42 | N72: =0.00036*E72*5010+J72 -> 1761.62 | O72: =0.00036*E72*3130+J72 -> 1457.06 | P72: =0.00036*E72*5110+J72 -> 1777.82 | Q72: =0.00036*E72*8910+J72 -> 2393.42
D73: Шкаф антресольный стекло | E73: 500 | G73: h 360 | H73: Шкаф антресольный стекло, размер: 500, h 360 | I73: 1311-50с | J73: 990 | K73: 1050 | L73: 1070 | M73: 1693.8 | N73: 1891.8 | O73: 1553.4 | P73: 1909.8 | Q73: 2593.8
D74: Шкаф антресольный стекло | E74: 550 | G74: h 360 | H74: Шкаф антресольный стекло, размер: 550, h 360 | I74: 1311-55с | J74: 1080 | K74: 1150 | L74: 1200 | M74: 1854.18 | N74: 2071.98 | O74: 1699.74 | P74: 2091.78 | Q74: 2844.18
D75: Шкаф антресольный стекло | E75: 600 | G75: h 360 | H75: Шкаф антресольный стекло, размер: 600, h 360 | I75: 1311-60с | J75: 1110 | K75: 1190 | L75: 1220 | M75: 1954.56 | N75: 2192.16 | O75: 1786.08 | P75: 2213.76 | Q75: 3034.56
D76: Шкаф антресольный стекло | E76: 650 | G76: h 360 | H76: Шкаф антресольный стекло, размер: 650, h 360 | I76: 1311-65с | J76: 1200 | K76: 1300 | L76: 1320 | M76: 2114.94 | N76: 2372.34 | O76: 1932.42 | P76: 2395.74 | Q76: 3284.94
D77: Шкаф антресольный стекло | E77: 700 | G77: h 360 | H77: Шкаф антресольный стекло, размер: 700, h 360 | I77: 1311-70с | J77: 1250 | K77: 1330 | L77: 1370 | M77: 2235.32 | N77: 2512.52 | O77: 2038.76 | P77: 2537.72 | Q77: 3495.32
D78: Шкаф антресольный стекло | E78: 750 | G78: h 360 | H78: Шкаф антресольный стекло, размер: 750, h 360 | I78: 1311-75с | J78: 1350 | K78: 1450 | L78: 1480 | M78: 2405.7 | N78: 2702.7 | O78: 2195.1 | P78: 2729.7 | Q78: 3755.7
D79: Шкаф антресольный стекло | E79: 800 | G79: h 360 | H79: Шкаф антресольный стекло, размер: 800, h 360 | I79: 1311-80с | J79: 1370 | K79: 1470 | L79: 1510 | M79: 2496.08 | N79: 2812.88 | O79: 2271.44 | P79: 2841.68 | Q79: 3936.08
D80: Шкаф антресольный стекло | E80: 400 | F80: h 460 | G80: h 460 | H80: Шкаф антресольный стекло, размер: 400, h 460 | I80: 1312-40с | J80: =J71*0.2+J71 -> 1032 | K80: 1092 | L80: 1116 | M80: =0.00046*E80*3910+J80 -> 1751.44 | N80: =0.00046*E80*5010+J80 -> 1953.84 | O80: =0.00046*E80*3130+J80 -> 1607.92 | P80: =0.00046*E80*5110+J80 -> 1972.24 | Q80: =0.00046*E80*8910+J80 -> 2671.44
D81: Шкаф антресольный стекло | E81: 450 | G81: h 460 | H81: Шкаф антресольный стекло, размер: 450, h 460 | I81: 1312-45с | J81: 1140 | K81: 1236 | L81: 1260 | M81: =0.00046*E81*3910+J81 -> 1949.37 | N81: =0.00046*E81*5010+J81 -> 2177.07 | O81: =0.00046*E81*3130+J81 -> 1787.91 | P81: =0.00046*E81*5110+J81 -> 2197.77 | Q81: =0.00046*E81*8910+J81 -> 2984.37
D82: Шкаф антресольный стекло | E82: 500 | G82: h 460 | H82: Шкаф антресольный стекло, размер: 500, h 460 | I82: 1312-50с | J82: 1188 | K82: 1260 | L82: 1284 | M82: 2087.3 | N82: 2340.3 | O82: 1907.9 | P82: 2363.3 | Q82: 3237.3
D83: Шкаф антресольный стекло | E83: 550 | G83: h 460 | H83: Шкаф антресольный стекло, размер: 550, h 460 | I83: 1312-55с | J83: 1296 | K83: 1380 | L83: 1440 | M83: 2285.23 | N83: 2563.53 | O83: 2087.89 | P83: 2588.83 | Q83: 3550.23
D84: Шкаф антресольный стекло | E84: 600 | G84: h 460 | H84: Шкаф антресольный стекло, размер: 600, h 460 | I84: 1312-60с | J84: 1332 | K84: 1428 | L84: 1464 | M84: 2411.16 | N84: 2714.76 | O84: 2195.88 | P84: 2742.36 | Q84: 3791.16
D85: Шкаф антресольный стекло | E85: 650 | G85: h 460 | H85: Шкаф антресольный стекло, размер: 650, h 460 | I85: 1312-65с | J85: 1440 | K85: 1560 | L85: 1584 | M85: 2609.09 | N85: 2937.99 | O85: 2375.87 | P85: 2967.89 | Q85: 4104.09
D86: Шкаф антресольный стекло | E86: 700 | G86: h 460 | H86: Шкаф антресольный стекло, размер: 700, h 460 | I86: 1312-70с | J86: 1500 | K86: 1596 | L86: 1644 | M86: 2759.02 | N86: 3113.22 | O86: 2507.86 | P86: 3145.42 | Q86: 4369.02
D87: Шкаф антресольный стекло | E87: 750 | G87: h 460 | H87: Шкаф антресольный стекло, размер: 750, h 460 | I87: 1312-75с | J87: 1620 | K87: 1740 | L87: 1776 | M87: 2968.95 | N87: 3348.45 | O87: 2699.85 | P87: 3382.95 | Q87: 4693.95
D88: Шкаф антресольный стекло | E88: 800 | G88: h 460 | H88: Шкаф антресольный стекло, размер: 800, h 460 | I88: 1312-80с | J88: 1644 | K88: 1764 | L88: 1812 | M88: 3082.88 | N88: 3487.68 | O88: 2795.84 | P88: 3524.48 | Q88: 4922.88
C89: Шкаф настенный 1д | D89: Шкаф настенный 1д | E89: 300 | F89: h540 | G89: h 540 | H89: =D89&", размер: "&E89&", "&G89 -> Шкаф настенный 1д, размер: 300, h 540 | I89: 1318-30 | J89: 800 | K89: 850 | L89: 900 | M89: =0.00054*E89*3910+J89 -> 1433.42 | N89: =0.00054*E89*5010+J89 -> 1611.62 | O89: =0.00054*E89*3130+J89 -> 1307.06 | P89: =0.00054*E89*5110+J89 -> 1627.82 | Q89: =0.00054*E89*8910+J89 -> 2243.42
D90: Шкаф настенный 1д | E90: 350 | G90: h 540 | H90: Шкаф настенный 1д, размер: 350, h 540 | I90: 1318-35 | J90: 900 | K90: 950 | L90: 1000 | M90: =0.00054*E90*3910+J90 -> 1638.99 | N90: =0.00054*E90*5010+J90 -> 1846.89 | O90: =0.00054*E90*3130+J90 -> 1491.57 | P90: =0.00054*E90*5110+J90 -> 1865.79 | Q90: =0.00054*E90*8910+J90 -> 2583.99
D91: Шкаф настенный 1д | E91: 400 | G91: h 540 | H91: Шкаф настенный 1д, размер: 400, h 540 | I91: 1318-40 | J91: 950 | K91: 1050 | L91: 1070 | M91: 1794.56 | N91: 2032.16 | O91: 1626.08 | P91: 2053.76 | Q91: 2874.56
D92: Шкаф настенный 1д | E92: 450 | G92: h 540 | H92: Шкаф настенный 1д, размер: 450, h 540 | I92: 1318-45 | J92: 1050 | K92: 1100 | L92: 1170 | M92: 2000.13 | N92: 2267.43 | O92: 1810.59 | P92: 2291.73 | Q92: 3215.13
D93: Шкаф настенный 1д | E93: 500 | G93: h 540 | H93: Шкаф настенный 1д, размер: 500, h 540 | I93: 1318-50 | J93: 1100 | K93: 1200 | L93: 1230 | M93: 2155.7 | N93: 2452.7 | O93: 1945.1 | P93: 2479.7 | Q93: 3505.7
D94: Шкаф настенный 1д | E94: 600 | G94: h 540 | H94: Шкаф настенный 1д, размер: 600, h 540 | I94: 1318-60 | J94: 1240 | K94: 1350 | L94: 1420 | M94: 2506.84 | N94: 2863.24 | O94: 2254.12 | P94: 2895.64 | Q94: 4126.84
D95: Шкаф настенный 1д | E95: 300 | F95: h 600 | G95: h 600 | H95: Шкаф настенный 1д, размер: 300, h 600 | I95: 1316-30 | J95: 870 | K95: 920 | L95: 950 | M95: =0.0006*E95*3910+J95 -> 1573.8 | N95: =0.0006*E95*5010+J95 -> 1771.8 | O95: =0.0006*E95*3130+J95 -> 1433.4 | P95: =0.0006*E95*5110+J95 -> 1789.8 | Q95: =0.0006*E95*8910+J95 -> 2473.8
D96: Шкаф настенный 1д | E96: 350 | G96: h 600 | H96: Шкаф настенный 1д, размер: 350, h 600 | I96: 1316-35 | J96: 950 | K96: 1010 | L96: 1050 | M96: =0.0006*E96*3910+J96 -> 1771.1 | N96: =0.0006*E96*5010+J96 -> 2002.1 | O96: =0.0006*E96*3130+J96 -> 1607.3 | P96: =0.0006*E96*5110+J96 -> 2023.1 | Q96: =0.0006*E96*8910+J96 -> 2821.1
D97: Шкаф настенный 1д | E97: 400 | G97: h 600 | H97: Шкаф настенный 1д, размер: 400, h 600 | I97: 1316-40 | J97: 1020 | K97: 1100 | L97: 1130 | M97: 1958.4 | N97: 2222.4 | O97: 1771.2 | P97: 2246.4 | Q97: 3158.4
D98: Шкаф настенный 1д | E98: 450 | G98: h 600 | H98: Шкаф настенный 1д, размер: 450, h 600 | I98: 1316-45 | J98: 1110 | K98: 1200 | L98: 1240 | M98: 2165.7 | N98: 2462.7 | O98: 1955.1 | P98: 2489.7 | Q98: 3515.7
D99: Шкаф настенный 1д | E99: 500 | G99: h 600 | H99: Шкаф настенный 1д, размер: 500, h 600 | I99: 1316-50 | J99: 1200 | K99: 1300 | L99: 1340 | M99: 2373 | N99: 2703 | O99: 2139 | P99: 2733 | Q99: 3873
D100: Шкаф настенный 1д | E100: 600 | G100: h 600 | H100: Шкаф настенный 1д, размер: 600, h 600 | I100: 1316-60 | J100: 1360 | K100: 1490 | L100: 1530 | M100: 2767.6 | N100: 3163.6 | O100: 2486.8 | P100: 3199.6 | Q100: 4567.6
D101: Шкаф настенный 1д | E101: 200 | F101: h 720 | G101: h 720 | H101: Шкаф настенный 1д, размер: 200, h 720 | I101: 1301-20 | J101: 780 | K101: 840 | L101: 860 | M101: =0.00072*E101*3910+J101 -> 1343.04 | N101: =0.00072*E101*5010+J101 -> 1501.44 | O101: =0.00072*E101*3130+J101 -> 1230.72 | P101: =0.00072*E101*5110+J101 -> 1515.84 | Q101: =0.00072*E101*8910+J101 -> 2063.04
D102: Шкаф настенный 1д | E102: 300 | G102: h 720 | H102: Шкаф настенный 1д, размер: 300, h 720 | I102: 1301-30 | J102: 960 | K102: 1030 | L102: 1070 | M102: =0.00072*E102*3910+J102 -> 1804.56 | N102: =0.00072*E102*5010+J102 -> 2042.16 | O102: =0.00072*E102*3130+J102 -> 1636.08 | P102: =0.00072*E102*5110+J102 -> 2063.76 | Q102: =0.00072*E102*8910+J102 -> 2884.56
D103: Шкаф настенный 1д | E103: 350 | G103: h 720 | H103: Шкаф настенный 1д, размер: 350, h 720 | I103: 1301-35 | J103: 1070 | K103: 1140 | L103: 1190 | M103: 2055.32 | N103: 2332.52 | O103: 1858.76 | P103: 2357.72 | Q103: 3315.32
D104: Шкаф настенный 1д | E104: 400 | G104: h 720 | H104: Шкаф настенный 1д, размер: 400, h 720 | I104: 1301-40 | J104: 1170 | K104: 1270 | L104: 1300 | M104: 2296.08 | N104: 2612.88 | O104: 2071.44 | P104: 2641.68 | Q104: 3736.08
D105: Шкаф настенный 1д | E105: 450 | G105: h 720 | H105: Шкаф настенный 1д, размер: 450, h 720 | I105: 1301-45 | J105: 1262 | K105: 1370 | L105: 1420 | M105: 2528.84 | N105: 2885.24 | O105: 2276.12 | P105: 2917.64 | Q105: 4148.84
D106: Шкаф настенный 1д | E106: 500 | G106: h 720 | H106: Шкаф настенный 1д, размер: 500, h 720 | I106: 1301-50 | J106: 1352 | K106: 1470 | L106: 1520 | M106: 2759.6 | N106: 3155.6 | O106: 2478.8 | P106: 3191.6 | Q106: 4559.6
D107: Шкаф настенный 1д | E107: 550 | G107: h 720 | H107: Шкаф настенный 1д, размер: 550, h 720 | I107: 1301-55 | J107: 1500 | K107: 1650 | L107: 1700 | M107: 3048.36 | N107: 3483.96 | O107: 2739.48 | P107: 3523.56 | Q107: 5028.36
D108: Шкаф настенный 1д | E108: 600 | G108: h 720 | H108: Шкаф настенный 1д, размер: 600, h 720 | I108: 1301-60 | J108: 1520 | K108: 1670 | L108: 1730 | M108: 3209.12 | N108: 3684.32 | O108: 2872.16 | P108: 3727.52 | Q108: 5369.12
D109: Шкаф настенный 1д | E109: 200 | F109: h 920 | G109: h 920 | H109: Шкаф настенный 1д, размер: 200, h 920 | I109: 1305-20 | J109: 1130 | K109: 1250 | L109: 1280 | M109: =0.000916*E109*3910+J109 -> 1846.312 | N109: =0.00092*E109*5010+J109 -> 2051.84 | O109: =0.00092*E109*3130+J109 -> 1705.92 | P109: =0.00092*E109*5110+J109 -> 2070.24 | Q109: =0.00092*E109*8910+J109 -> 2769.44
D110: Шкаф настенный 1д | E110: 300 | G110: h 920 | H110: Шкаф настенный 1д, размер: 300, h 920 | I110: 1305-30 | J110: 1190 | K110: 1280 | L110: 1320 | M110: =0.000916*E110*3910+J110 -> 2264.468 | N110: =0.00092*E110*5010+J110 -> 2572.76 | O110: =0.00092*E110*3130+J110 -> 2053.88 | P110: =0.00092*E110*5110+J110 -> 2600.36 | Q110: =0.00092*E110*8910+J110 -> 3649.16
D111: Шкаф настенный 1д | E111: 350 | G111: h 920 | H111: Шкаф настенный 1д, размер: 350, h 920 | I111: 1305-35 | J111: 1330 | K111: 1440 | L111: 1480 | M111: 2583.546 | N111: 2943.22 | O111: 2337.86 | P111: 2975.42 | Q111: 4199.02
D112: Шкаф настенный 1д | E112: 400 | G112: h 920 | H112: Шкаф настенный 1д, размер: 400, h 920 | I112: 1305-40 | J112: 1440 | K112: 1560 | L112: 1620 | M112: 2872.624 | N112: 3283.68 | O112: 2591.84 | P112: 3320.48 | Q112: 4718.88
D113: Шкаф настенный 1д | E113: 450 | G113: h 920 | H113: Шкаф настенный 1д, размер: 450, h 920 | I113: 1305-45 | J113: 1560 | K113: 1700 | L113: 1760 | M113: 3171.702 | N113: 3634.14 | O113: 2855.82 | P113: 3675.54 | Q113: 5248.74
D114: Шкаф настенный 1д | E114: 500 | G114: h 920 | H114: Шкаф настенный 1д, размер: 500, h 920 | I114: 1305-50 | J114: 1690 | K114: 1850 | L114: 1910 | M114: 3480.78 | N114: 3994.6 | O114: 3129.8 | P114: 4040.6 | Q114: 5788.6
D115: Шкаф настенный 1д | E115: 550 | G115: h 920 | H115: Шкаф настенный 1д, размер: 550, h 920 | I115: 1305-55 | J115: 1870 | K115: 2050 | L115: 2100 | M115: 3839.858 | N115: 4405.06 | O115: 3453.78 | P115: 4455.66 | Q115: 6378.46
D116: Шкаф настенный 1д | E116: 600 | G116: h 920 | H116: Шкаф настенный 1д, размер: 600, h 920 | I116: 1305-60 | J116: 1920 | K116: 2110 | L116: 2200 | M116: 4068.936 | N116: 4685.52 | O116: 3647.76 | P116: 4740.72 | Q116: 6838.32
C117: Шкаф настенный 2д | D117: Шкаф настенный 2д | E117: 600 | F117: h 600 | G117: h 600 | H117: Шкаф настенный 2д, размер: 600, h 600 | I117: 1423-60 | J117: 1400 | K117: 1520 | L117: 1560 | M117: =0.0006*E117*3910+J117 -> 2807.6 | N117: =0.0006*E117*5010+J117 -> 3203.6 | O117: =0.0006*E117*3130+J117 -> 2526.8 | P117: =0.0006*E117*5110+J117 -> 3239.6 | Q117: =0.0006*E117*8910+J117 -> 4607.6
D118: Шкаф настенный 2д | E118: 700 | G118: h 600 | H118: Шкаф настенный 2д, размер: 700, h 600 | I118: 1423-70 | J118: 1560 | K118: 1700 | L118: 1770 | M118: =0.0006*E118*3910+J118 -> 3202.2 | N118: =0.0006*E118*5010+J118 -> 3664.2 | O118: =0.0006*E118*3130+J118 -> 2874.6 | P118: =0.0006*E118*5110+J118 -> 3706.2 | Q118: =0.0006*E118*8910+J118 -> 5302.2
D119: Шкаф настенный 2д | E119: 800 | G119: h 600 | H119: Шкаф настенный 2д, размер: 800, h 600 | I119: 1423-80 | J119: 1730 | K119: 1890 | L119: 1960 | M119: 3606.8 | N119: 4134.8 | O119: 3232.4 | P119: 4182.8 | Q119: 6006.8
D120: Шкаф настенный 2д | E120: 500 | F120: h 720 | G120: h 720 | H120: Шкаф настенный 2д, размер: 500, h 720 | I120: 1401-50 | J120: 1390 | K120: 1510 | L120: 1550 | M120: =0.000716*E120*3910+J120 -> 2789.78 | N120: =0.00072*E120*5010+J120 -> 3193.6 | O120: =0.00072*E120*3130+J120 -> 2516.8 | P120: =0.00072*E120*5110+J120 -> 3229.6 | Q120: =0.00072*E120*8910+J120 -> 4597.6
D121: Шкаф настенный 2д | E121: 600 | G121: h 720 | H121: Шкаф настенный 2д, размер: 600, h 720 | I121: 1401-60 | J121: 1560 | K121: 1720 | L121: 1770 | M121: =0.000716*E121*3910+J121 -> 3239.736 | N121: =0.00072*E121*5010+J121 -> 3724.32 | O121: =0.00072*E121*3130+J121 -> 2912.16 | P121: =0.00072*E121*5110+J121 -> 3767.52 | Q121: =0.00072*E121*8910+J121 -> 5409.12
D122: Шкаф настенный 2д | E122: 700 | G122: h 720 | H122: Шкаф настенный 2д, размер: 700, h 720 | I122: 1401-70 | J122: 1790 | K122: 1960 | L122: 2030 | M122: 3749.692 | N122: 4315.04 | O122: 3367.52 | P122: 4365.44 | Q122: 6280.64
D123: Шкаф настенный 2д | E123: 800 | G123: h 720 | H123: Шкаф настенный 2д, размер: 800, h 720 | I123: 1401-80 | J123: 1970 | K123: 2160 | L123: 2240 | M123: 4209.648 | N123: 4855.76 | O123: 3772.88 | P123: 4913.36 | Q123: 7102.16
D124: Шкаф настенный 2д | E124: 500 | F124: h 920 | G124: h 920 | H124: Шкаф настенный 2д, размер: 500, h 920 | I124: 1406-50 | J124: 1730 | K124: 1880 | L124: 1950 | M124: =0.000916*E124*3910+J124 -> 3520.78 | N124: =0.00092*E124*5010+J124 -> 4034.6 | O124: =0.00092*E124*3130+J124 -> 3169.8 | P124: =0.00092*E124*5110+J124 -> 4080.6 | Q124: =0.00092*E124*8910+J124 -> 5828.6
D125: Шкаф настенный 2д | E125: 600 | G125: h 920 | H125: Шкаф настенный 2д, размер: 600, h 920 | I125: 1406-60 | J125: 1960 | K125: 2140 | L125: 2220 | M125: =0.000916*E125*3910+J125 -> 4108.936 | N125: =0.00092*E125*5010+J125 -> 4725.52 | O125: =0.00092*E125*3130+J125 -> 3687.76 | P125: =0.00092*E125*5110+J125 -> 4780.72 | Q125: =0.00092*E125*8910+J125 -> 6878.32
D126: Шкаф настенный 2д | E126: 700 | G126: h 920 | H126: Шкаф настенный 2д, размер: 700, h 920 | I126: 1406-70 | J126: 2210 | K126: 2430 | L126: 2520 | M126: 4717.092 | N126: 5436.44 | O126: 4225.72 | P126: 5500.84 | Q126: 7948.04
D127: Шкаф настенный 2д | E127: 800 | G127: h 920 | H127: Шкаф настенный 2д, размер: 800, h 920 | I127: 1406-80 | J127: 2450 | K127: 2710 | L127: 2800 | M127: 5315.248 | N127: 6137.36 | O127: 4753.68 | P127: 6210.96 | Q127: 9007.76
C128: Шкаф настенный 1д 1 стекло | D128: Шкаф настенный 1д 1 стекло | E128: 300 | F128: h 540 | G128: h 540 | H128: =D128&", размер: "&E128&", "&G128 -> Шкаф настенный 1д 1 стекло, размер: 300, h 540 | I128: 1318-30с | J128: 960 | K128: 100 | L128: 1030 | M128: =0.00054*E128*3910+J128 -> 1593.42 | N128: =0.00054*E128*5010+J128 -> 1771.62 | O128: =0.00054*E128*3130+J128 -> 1467.06 | P128: =0.00054*E128*5110+J128 -> 1787.82 | Q128: =0.00054*E128*8910+J128 -> 2403.42
D129: Шкаф настенный 1д 1 стекло | E129: 350 | G129: h 540 | H129: Шкаф настенный 1д 1 стекло, размер: 350, h 540 | I129: 1318-35с | J129: 1070 | K129: 1125 | L129: 1160 | M129: =0.00054*E129*3910+J129 -> 1808.99 | N129: =0.00054*E129*5010+J129 -> 2016.89 | O129: =0.00054*E129*3130+J129 -> 1661.57 | P129: =0.00054*E129*5110+J129 -> 2035.79 | Q129: =0.00054*E129*8910+J129 -> 2753.99
D130: Шкаф настенный 1д 1 стекло | E130: 400 | G130: h 540 | H130: Шкаф настенный 1д 1 стекло, размер: 400, h 540 | I130: 1318-40с | J130: 1035 | K130: 1100 | L130: 1130 | M130: 1879.56 | N130: 2117.16 | O130: 1711.08 | P130: 2138.76 | Q130: 2959.56
D131: Шкаф настенный 1д 1 стекло | E131: 450 | G131: h 540 | H131: Шкаф настенный 1д 1 стекло, размер: 450, h 540 | I131: 1318-45с | J131: 1130 | K131: 1215 | L131: 1260 | M131: 2080.13 | N131: 2347.43 | O131: 1890.59 | P131: 2371.73 | Q131: 3295.13
D132: Шкаф настенный 1д 1 стекло | E132: 500 | G132: h 540 | H132: Шкаф настенный 1д 1 стекло, размер: 500, h 540 | I132: 1318-50с | J132: 1230 | K132: 1320 | L132: 1370 | M132: 2285.7 | N132: 2582.7 | O132: 2075.1 | P132: 2609.7 | Q132: 3635.7
D133: Шкаф настенный 1д 1 стекло | E133: 600 | G133: h 540 | H133: Шкаф настенный 1д 1 стекло, размер: 600, h 540 | I133: 1318-60с | J133: 1420 | K133: 1530 | L133: 1575 | M133: 2686.84 | N133: 3043.24 | O133: 2434.12 | P133: 3075.64 | Q133: 4306.84
D134: Шкаф настенный 1д 1 стекло | E134: 300 | F134: h 600 | G134: h 600 | H134: Шкаф настенный 1д 1 стекло, размер: 300, h 600 | I134: 1316-30с | J134: 1070 | K134: 1120 | L134: 1140 | M134: =0.0006*E134*3910+J134 -> 1773.8 | N134: =0.0006*E134*5010+J134 -> 1971.8 | O134: =0.0006*E134*3130+J134 -> 1633.4 | P134: =0.0006*E134*5110+J134 -> 1989.8 | Q134: =0.0006*E134*8910+J134 -> 2673.8
D135: Шкаф настенный 1д 1 стекло | E135: 350 | G135: h 600 | H135: Шкаф настенный 1д 1 стекло, размер: 350, h 600 | I135: 1316-35с | J135: 1190 | K135: 1250 | L135: 1290 | M135: =0.0006*E135*3910+J135 -> 2011.1 | N135: =0.0006*E135*5010+J135 -> 2242.1 | O135: =0.0006*E135*3130+J135 -> 1847.3 | P135: =0.0006*E135*5110+J135 -> 2263.1 | Q135: =0.0006*E135*8910+J135 -> 3061.1
D136: Шкаф настенный 1д 1 стекло | E136: 400 | G136: h 600 | H136: Шкаф настенный 1д 1 стекло, размер: 400, h 600 | I136: 1316-40с | J136: 1150 | K136: 1230 | L136: 1260 | M136: 2088.4 | N136: 2352.4 | O136: 1901.2 | P136: 2376.4 | Q136: 3288.4
D137: Шкаф настенный 1д 1 стекло | E137: 450 | G137: h 600 | H137: Шкаф настенный 1д 1 стекло, размер: 450, h 600 | I137: 1316-45с | J137: 1260 | K137: 1350 | L137: 1400 | M137: 2315.7 | N137: 2612.7 | O137: 2105.1 | P137: 2639.7 | Q137: 3665.7
D138: Шкаф настенный 1д 1 стекло | E138: 500 | G138: h 600 | H138: Шкаф настенный 1д 1 стекло, размер: 500, h 600 | I138: 1316-50с | J138: 1370 | K138: 1470 | L138: 1520 | M138: 2543 | N138: 2873 | O138: 2309 | P138: 2903 | Q138: 4043
D139: Шкаф настенный 1д 1 стекло | E139: 600 | G139: h 600 | H139: Шкаф настенный 1д 1 стекло, размер: 600, h 600 | I139: 1316-60с | J139: 1580 | K139: 1700 | L139: 1750 | M139: 2987.6 | N139: 3383.6 | O139: 2706.8 | P139: 3419.6 | Q139: 4787.6
D140: Шкаф настенный 1д 1 стекло | E140: 300 | F140: h 720 | G140: h 720 | H140: Шкаф настенный 1д 1 стекло, размер: 300, h 720 | I140: 1301-30с | J140: 1070 | K140: 1140 | L140: 1180 | M140: =0.000716*E140*3910+J140 -> 1909.868 | N140: =0.00072*E140*5010+J140 -> 2152.16 | O140: =0.00072*E140*3130+J140 -> 1746.08 | P140: =0.00072*E140*5110+J140 -> 2173.76 | Q140: =0.00072*E140*8910+J140 -> 2994.56
D141: Шкаф настенный 1д 1 стекло | E141: 350 | G141: h 720 | H141: Шкаф настенный 1д 1 стекло, размер: 350, h 720 | I141: 1301-35с | J141: 1200 | K141: 1280 | L141: 1320 | M141: =0.000716*E141*3910+J141 -> 2179.846 | N141: =0.00072*E141*5010+J141 -> 2462.52 | O141: =0.00072*E141*3130+J141 -> 1988.76 | P141: =0.00072*E141*5110+J141 -> 2487.72 | Q141: =0.00072*E141*8910+J141 -> 3445.32
D142: Шкаф настенный 1д 1 стекло | E142: 400 | G142: h 720 | H142: Шкаф настенный 1д 1 стекло, размер: 400, h 720 | I142: 1301-40с | J142: 1330 | K142: 1430 | L142: 1460 | M142: 2449.824 | N142: 2772.88 | O142: 2231.44 | P142: 2801.68 | Q142: 3896.08
D143: Шкаф настенный 1д 1 стекло | E143: 450 | G143: h 720 | H143: Шкаф настенный 1д 1 стекло, размер: 450, h 720 | I143: 1301-45с | J143: 1440 | K143: 1550 | L143: 1610 | M143: 2699.802 | N143: 3063.24 | O143: 2454.12 | P143: 3095.64 | Q143: 4326.84
D144: Шкаф настенный 1д 1 стекло | E144: 500 | G144: h 720 | H144: =D144&", размер: "&E144&", "&G144 -> Шкаф настенный 1д 1 стекло, размер: 500, h 720 | I144: 1301-50с | J144: 1560 | K144: 1680 | L144: 1730 | M144: 2959.78 | N144: 3363.6 | O144: 2686.8 | P144: 3399.6 | Q144: 4767.6
D145: Шкаф настенный 1д 1 стекло | E145: 550 | G145: h 720 | H145: Шкаф настенный 1д 1 стекло, размер: 550, h 720 | I145: 1301-55с | J145: 1700 | K145: 1900 | L145: 1950 | M145: 3239.758 | N145: 3683.96 | O145: 2939.48 | P145: 3723.56 | Q145: 5228.36
D146: Шкаф настенный 1д 1 стекло | E146: 600 | G146: h 720 | H146: Шкаф настенный 1д 1 стекло, размер: 600, h 720 | I146: 1301-60с | J146: 1780 | K146: 1940 | L146: 1990 | M146: 3459.736 | N146: 3944.32 | O146: 3132.16 | P146: 3987.52 | Q146: 5629.12
D147: Шкаф настенный 1д 1 стекло | E147: 300 | F147: h 920 | G147: h 920 | H147: Шкаф настенный 1д 1 стекло, размер: 300, h 920 | I147: 1305-30с | J147: 1330 | K147: 1420 | L147: 1460 | M147: =0.000916*E147*3910+J147 -> 2404.468 | N147: =0.00092*E147*5010+J147 -> 2712.76 | O147: =0.00092*E147*3130+J147 -> 2193.88 | P147: =0.00092*E147*5110+J147 -> 2740.36 | Q147: =0.00092*E147*8910+J147 -> 3789.16
D148: Шкаф настенный 1д 1 стекло | E148: 350 | G148: h 920 | H148: Шкаф настенный 1д 1 стекло, размер: 350, h 920 | I148: 1305-35с | J148: 1520 | K148: 1630 | L148: 1670 | M148: =0.000916*E148*3910+J148 -> 2773.546 | N148: =0.00092*E148*5010+J148 -> 3133.22 | O148: =0.00092*E147*3130+J148 -> 2383.88 | P148: =0.00092*E148*5110+J148 -> 3165.42 | Q148: =0.00092*E148*8910+J148 -> 4389.02
D149: Шкаф настенный 1д 1 стекло | E149: 400 | G149: h 920 | H149: Шкаф настенный 1д 1 стекло, размер: 400, h 920 | I149: 1305-40с | J149: 1650 | K149: 1770 | L149: 1830 | M149: 3082.624 | N149: 3493.68 | O149: =0.00092*E148*3130+J149 -> 2657.86 | P149: 3530.48 | Q149: 4928.88
D150: Шкаф настенный 1д 1 стекло | E150: 450 | G150: h 920 | H150: Шкаф настенный 1д 1 стекло, размер: 450, h 920 | I150: 1305-45с | J150: 1810 | K150: 1960 | L150: 2010 | M150: 3421.702 | N150: 3884.14 | O150: 2961.84 | P150: 3925.54 | Q150: 5498.74
D151: Шкаф настенный 1д 1 стекло | E151: 500 | G151: h 920 | H151: Шкаф настенный 1д 1 стекло, размер: 500, h 920 | I151: 1305-50с | J151: 1980 | K151: 2130 | L151: 2200 | M151: 3770.78 | N151: 4284.6 | O151: 3275.82 | P151: 4330.6 | Q151: 6078.6
D152: Шкаф настенный 1д 1 стекло | E152: 550 | G152: h 920 | H152: Шкаф настенный 1д 1 стекло, размер: 550, h 920 | I152: 1305-55с | J152: 2120 | K152: 2200 | L152: 2320 | M152: 4089.858 | N152: 4655.06 | O152: 3559.8 | P152: 4705.66 | Q152: 6628.46
D153: Шкаф настенный 1д 1 стекло | E153: 600 | G153: h 920 | H153: Шкаф настенный 1д 1 стекло, размер: 600, h 920 | I153: 1305-60с | J153: 2280 | K153: 2460 | L153: 2550 | M153: 4428.936 | N153: 5045.52 | O153: 3863.78 | P153: 5100.72 | Q153: 7198.32
C154: Шкаф 2 дв.2 стекла | D154: Шкаф | E154: 600 | F154: h 720 | G154: h 720 | H154: Шкаф, размер: 600, h 720 | I154: 1401-60с | J154: 1780 | K154: 1940 | L154: 1990 | M154: =0.000716*E154*3910+J154 -> 3459.736 | N154: =0.00072*E154*5010+J154 -> 3944.32 | O154: =0.00072*E154*3130+J154 -> 3132.16 | P154: =0.00072*E154*5110+J154 -> 3987.52 | Q154: =0.00072*E154*8910+J154 -> 5629.12
D155: Шкаф | E155: 700 | G155: h 720 | H155: Шкаф, размер: 700, h 720 | I155: 1401-70с | J155: 2070 | K155: 2230 | L155: 2310 | M155: =0.000716*E155*3910+J155 -> 4029.692 | N155: =0.00072*E155*5010+J155 -> 4595.04 | O155: =0.00072*E155*3130+J155 -> 3647.52 | P155: =0.00072*E155*5110+J155 -> 4645.44 | Q155: =0.00072*E155*8910+J155 -> 6560.64
D156: Шкаф | E156: 800 | G156: h 720 | H156: Шкаф, размер: 800, h 720 | I156: 1401-80с | J156: 2310 | K156: 2500 | L156: 2580 | M156: 4549.648 | N156: =0.00072*E156*5010+J156 -> 5195.76 | O156: 4112.88 | P156: 5253.36 | Q156: 7442.16
D157: Шкаф | E157: 600 | F157: h 920 | G157: h 920 | H157: Шкаф, размер: 600, h 920 | I157: 1406-60с | J157: 2250 | K157: 2440 | L157: 2520 | M157: =0.000916*E157*3910+J157 -> 4398.936 | N157: =0.00092*E157*5010+J157 -> 5015.52 | O157: =0.00092*E157*3130+J157 -> 3977.76 | P157: =0.00092*E157*5110+J157 -> 5070.72 | Q157: =0.00092*E157*8910+J157 -> 7168.32
D158: Шкаф | E158: 700 | G158: h 920 | H158: Шкаф, размер: 700, h 920 | I158: 1406-70с | J158: 2570 | K158: 2790 | L158: 2880 | M158: =0.000916*E158*3910+J158 -> 5077.092 | N158: =0.00092*E158*5010+J158 -> 5796.44 | O158: =0.00092*E158*3130+J158 -> 4585.72 | P158: =0.00092*E158*5110+J158 -> 5860.84 | Q158: =0.00092*E158*8910+J158 -> 8308.04
D159: Шкаф | E159: 800 | G159: h 920 | H159: Шкаф, размер: 800, h 920 | I159: 1406-80с | J159: 2890 | K159: 3150 | L159: 3240 | M159: 5755.248 | N159: 6577.36 | O159: 5193.68 | P159: 6650.96 | Q159: 9447.76
C160: Шкаф антресольный 2 дв(горизонт) | D160: Шкаф антресольный 2 дв(горизонт) | E160: 400 | F160: h 600 | G160: h 600 | H160: Шкаф антресольный 2 дв(горизонт), размер: 400, h 600 | I160: 1424-40 | J160: 1300 | K160: 1370 | L160: 1410 | M160: =0.0006*E160*3910+J160 -> 2238.4 | N160: =0.0006*E160*5010+J160 -> 2502.4 | O160: =0.0006*E160*3130+J160 -> 2051.2 | P160: =0.0006*E160*5110+J160 -> 2526.4 | Q160: =0.0006*E160*8910+J160 -> 3438.4
D161: Шкаф антресольный 2 дв(горизонт) | E161: 500 | G161: h 600 | H161: Шкаф антресольный 2 дв(горизонт), размер: 500, h 600 | I161: 1424-50 | J161: 1470 | K161: 1570 | L161: 1620 | M161: =0.0006*E161*3910+J161 -> 2643 | N161: =0.0006*E161*5010+J161 -> 2973 | O161: =0.0006*E161*3130+J161 -> 2409 | P161: =0.0006*E161*5110+J161 -> 3003 | Q161: =0.0006*E161*8910+J161 -> 4143
D162: Шкаф антресольный 2 дв(горизонт) | E162: 600 | G162: h 600 | H162: Шкаф антресольный 2 дв(горизонт), размер: 600, h 600 | I162: 1424-60 | J162: 1660 | K162: 1780 | L162: 1830 | M162: 3067.6 | N162: 3463.6 | O162: 2786.8 | P162: 3499.6 | Q162: 4867.6
D163: Шкаф антресольный 2 дв(горизонт) | E163: 700 | G163: h 600 | H163: Шкаф антресольный 2 дв(горизонт), размер: 700, h 600 | I163: 1424-70 | J163: 2000 | K163: 2140 | L163: 2210 | M163: 3642.2 | N163: 4104.2 | O163: 3314.6 | P163: 4146.2 | Q163: 5742.2
D164: Шкаф антресольный 2 дв(горизонт) | E164: 800 | G164: h 600 | H164: Шкаф антресольный 2 дв(горизонт), размер: 800, h 600 | I164: 1424-80 | J164: 2200 | K164: 2370 | L164: 2430 | M164: 4076.8 | N164: 4604.8 | O164: 3702.4 | P164: 4652.8 | Q164: 6476.8
D165: Шкаф антресольный 2 дв(горизонт) | E165: 400 | F165: h 720 | G165: h 720 | H165: Шкаф антресольный 2 дв(горизонт), размер: 400, h 720 | I165: 1413-40 | J165: 1390 | K165: 1480 | L165: 1520 | M165: =0.000716*E165*3910+J165 -> 2509.824 | N165: =0.00072*5010*E165+J165 -> 2832.88 | O165: =0.00072*E165*3130+J165 -> 2291.44 | P165: =0.00072*E165*5110+J165 -> 2861.68 | Q165: =0.00072*E165*8910+J165 -> 3956.08
D166: Шкаф антресольный 2 дв(горизонт) | E166: 450 | G166: h 720 | H166: Шкаф антресольный 2 дв(горизонт), размер: 450, h 720 | I166: 1413-45 | J166: 1500 | K166: 1650 | L166: 1700 | M166: =0.000716*E166*3910+J166 -> 2759.802 | N166: =0.00072*5010*E166+J166 -> 3123.24 | O166: =0.00072*E166*3130+J166 -> 2514.12 | P166: =0.00072*E166*5110+J166 -> 3155.64 | Q166: =0.00072*E166*8910+J166 -> 4386.84
D167: Шкаф антресольный 2 дв(горизонт) | E167: 500 | G167: h 720 | H167: Шкаф антресольный 2 дв(горизонт), размер: 500, h 720 | I167: 1413-50 | J167: 1560 | K167: 1680 | L167: 1730 | M167: 2959.78 | N167: 3363.6 | O167: 2686.8 | P167: 3399.6 | Q167: 4767.6
D168: Шкаф антресольный 2 дв(горизонт) | E168: 550 | G168: h 720 | H168: Шкаф антресольный 2 дв(горизонт), размер: 550, h 720 | I168: 1413-55 | J168: 1700 | K168: 1870 | L168: 1930 | M168: 3239.758 | N168: 3683.96 | O168: 2939.48 | P168: 3723.56 | Q168: 5228.36
D169: Шкаф антресольный 2 дв(горизонт) | E169: 600 | G169: h 720 | H169: Шкаф антресольный 2 дв(горизонт), размер: 600, h 720 | I169: 1413-60 | J169: 1750 | K169: 1900 | L169: 1960 | M169: 3429.736 | N169: 3914.32 | O169: 3102.16 | P169: 3957.52 | Q169: 5599.12
D170: Шкаф антресольный 2 дв(горизонт) | E170: 700 | G170: h 720 | H170: Шкаф антресольный 2 дв(горизонт), размер: 700, h 720 | I170: 1413-70 | J170: 2130 | K170: 2300 | L170: 2380 | M170: 4089.692 | N170: 4655.04 | O170: 3707.52 | P170: 4705.44 | Q170: 6620.64
D171: Шкаф антресольный 2 дв(горизонт) | E171: 800 | G171: h 720 | H171: Шкаф антресольный 2 дв(горизонт), размер: 800, h 720 | I171: 1413-80 | J171: 2310 | K171: 2500 | L171: 2580 | M171: 4549.648 | N171: 5195.76 | O171: 4112.88 | P171: 5253.36 | Q171: 7442.16
D172: Шкаф антресольный 2 дв(горизонт) | E172: 400 | F172: h 920 | G172: h 920 | H172: Шкаф антресольный 2 дв(горизонт), размер: 400, h 920 | I172: 1421-40 | J172: 1590 | K172: 1720 | L172: 1770 | M172: =0.000916*E172*3910+J172 -> 3022.624 | N172: =0.00092*E172*5010+J172 -> 3433.68 | O172: =0.00092*E172*3130+J172 -> 2741.84 | P172: =0.00092*E172*5110+J172 -> 3470.48 | Q172: =0.00092*E172*8910+J172 -> 4868.88
D173: Шкаф антресольный 2 дв(горизонт) | E173: 450 | G173: h 920 | H173: Шкаф антресольный 2 дв(горизонт), размер: 450, h 920 | I173: 1421-45 | J173: 1800 | K173: 1950 | L173: 2000 | M173: =0.000916*E173*3910+J173 -> 3411.702 | N173: =0.00092*E173*5010+J173 -> 3874.14 | O173: =0.00092*E173*3130+J173 -> 3095.82 | P173: =0.00092*E173*5110+J173 -> 3915.54 | Q173: =0.00092*E173*8910+J173 -> 5488.74
D174: Шкаф антресольный 2 дв(горизонт) | E174: 500 | G174: h 920 | H174: Шкаф антресольный 2 дв(горизонт), размер: 500, h 920 | I174: 1421-50 | J174: 1830 | K174: 1980 | L174: 2050 | M174: 3620.78 | N174: 4134.6 | O174: 3269.8 | P174: 4180.6 | Q174: 5928.6
D175: Шкаф антресольный 2 дв(горизонт) | E175: 550 | G175: h 920 | H175: Шкаф антресольный 2 дв(горизонт), размер: 550, h 920 | I175: 1421-55 | J175: 2000 | K175: 2200 | L175: 2270 | M175: 3969.858 | N175: 4535.06 | O175: 3583.78 | P175: 4585.66 | Q175: 6508.46
D176: Шкаф антресольный 2 дв(горизонт) | E176: 600 | G176: h 920 | H176: Шкаф антресольный 2 дв(горизонт), размер: 600, h 920 | I176: 1421-60 | J176: 2050 | K176: 2230 | L176: 2320 | M176: 4198.936 | N176: 4815.52 | O176: 3777.76 | P176: 4870.72 | Q176: 6968.32
D177: Шкаф антресольный 2 дв(горизонт) | E177: 700 | G177: h 920 | H177: Шкаф антресольный 2 дв(горизонт), размер: 700, h 920 | I177: 1421-70 | J177: 2460 | K177: 2680 | L177: 2770 | M177: 4967.092 | N177: 5686.44 | O177: 4475.72 | P177: 5750.84 | Q177: 8198.04
D178: Шкаф антресольный 2 дв(горизонт) | E178: 800 | G178: h 920 | H178: Шкаф антресольный 2 дв(горизонт), размер: 800, h 920 | I178: 1421-80 | J178: 2670 | K178: 2930 | L178: 3020 | M178: 5535.248 | N178: 6357.36 | O178: 4973.68 | P178: 6430.96 | Q178: 9227.76
C179: Шкаф антресольный 2дв.1 стекло(горизонт) | D179: Шкаф антресольный 2дв.1 стекло(горизонт) | E179: 400 | F179: h 600 | G179: h 600 | H179: Шкаф антресольный 2дв.1 стекло(горизонт), размер: 400, h 600 | I179: 1425-40гс | J179: 1350 | K179: 1430 | L179: 1460 | M179: =0.0006*E179*3910+J179 -> 2288.4 | N179: =0.0006*E179*5010+J179 -> 2552.4 | O179: =0.0006*E179*3130+J179 -> 2101.2 | P179: =0.0006*E179*5110+J179 -> 2576.4 | Q179: =0.0006*E179*8910+J179 -> 3488.4
D180: Шкаф антресольный 2дв.1 стекло(горизонт) | E180: 500 | G180: h 600 | H180: Шкаф антресольный 2дв.1 стекло(горизонт), размер: 500, h 600 | I180: 1425-50гс | J180: 1560 | K180: 1660 | L180: 1700 | M180: =0.0006*E180*3910+J180 -> 2733 | N180: =0.0006*E180*5010+J180 -> 3063 | O180: =0.0006*E180*3130+J180 -> 2499 | P180: =0.0006*E180*5110+J180 -> 3093 | Q180: =0.0006*E180*8910+J180 -> 4233
D181: Шкаф антресольный 2дв.1 стекло(горизонт) | E181: 600 | G181: h 600 | H181: Шкаф антресольный 2дв.1 стекло(горизонт), размер: 600, h 600 | I181: 1425-60гс | J181: 1760 | K181: 1880 | L181: 1920 | M181: 3167.6 | N181: 3563.6 | O181: 2886.8 | P181: 3599.6 | Q181: 4967.6
D182: Шкаф антресольный 2дв.1 стекло(горизонт) | E182: 700 | G182: h 600 | H182: Шкаф антресольный 2дв.1 стекло(горизонт), размер: 700, h 600 | I182: 1425-70гс | J182: 2120 | K182: 2270 | L182: 2330 | M182: 3762.2 | N182: 4224.2 | O182: 3434.6 | P182: 4266.2 | Q182: 5862.2
D183: Шкаф антресольный 2дв.1 стекло(горизонт) | E183: 800 | G183: h 600 | H183: Шкаф антресольный 2дв.1 стекло(горизонт), размер: 800, h 600 | I183: 1425-80гс | J183: 2330 | K183: 2500 | L183: 2560 | M183: 4206.8 | N183: 4734.8 | O183: 3832.4 | P183: 4782.8 | Q183: 6606.8
D184: Шкаф антресольный 2дв.1 стекло(горизонт) | E184: 400 | F184: h 720 | G184: h 720 | H184: Шкаф антресольный 2дв.1 стекло(горизонт), размер: 400, h 720 | I184: 1413-40гс | J184: 1450 | K184: 1550 | L184: 1580 | M184: =0.000716*E184*3910+J184 -> 2569.824 | N184: =0.00072*E184*5010+J184 -> 2892.88 | O184: =0.00072*E184*3130+J184 -> 2351.44 | P184: =0.00072*E184*5110+J184 -> 2921.68 | Q184: =0.00072*E184*8910+J184 -> 4016.08
D185: Шкаф антресольный 2дв.1 стекло(горизонт) | E185: 450 | G185: h 720 | H185: Шкаф антресольный 2дв.1 стекло(горизонт), размер: 450, h 720 | I185: 1413-45гс | J185: 1600 | K185: 1700 | L185: 1750 | M185: =0.000716*E185*3910+J185 -> 2859.802 | N185: =0.00072*E185*5010+J185 -> 3223.24 | O185: =0.00072*E185*3130+J185 -> 2614.12 | P185: =0.00072*E185*5110+J185 -> 3255.64 | Q185: =0.00072*E185*8910+J185 -> 4486.84
D186: Шкаф антресольный 2дв.1 стекло(горизонт) | E186: 500 | G186: h 720 | H186: Шкаф антресольный 2дв.1 стекло(горизонт), размер: 500, h 720 | I186: 1413-50гс | J186: 1650 | K186: 1770 | L186: 1810 | M186: 3049.78 | N186: 3453.6 | O186: 2776.8 | P186: 3489.6 | Q186: 4857.6
D187: Шкаф антресольный 2дв.1 стекло(горизонт) | E187: 550 | G187: h 720 | H187: Шкаф антресольный 2дв.1 стекло(горизонт), размер: 550, h 720 | I187: 1413-55гс | J187: 1800 | K187: 1950 | L187: 2000 | M187: 3339.758 | N187: 3783.96 | O187: 3039.48 | P187: 3823.56 | Q187: 5328.36
D188: Шкаф антресольный 2дв.1 стекло(горизонт) | E188: 600 | G188: h 720 | H188: Шкаф антресольный 2дв.1 стекло(горизонт), размер: 600, h 720 | I188: 1413-60гс | J188: 1860 | K188: 2010 | L188: 2070 | M188: 3539.736 | N188: 4024.32 | O188: 3212.16 | P188: 4067.52 | Q188: 5709.12
D189: Шкаф антресольный 2дв.1 стекло(горизонт) | E189: 650 | G189: h 720 | H189: Шкаф антресольный 2дв.1 стекло(горизонт), размер: 650, h 720 | I189: 1413-65гс | J189: 2200 | K189: 2400 | L189: 2450 | M189: 4019.714 | N189: 4544.68 | O189: 3664.84 | P189: 4591.48 | Q189: 6369.88
D190: Шкаф антресольный 2дв.1 стекло(горизонт) | E190: 700 | G190: h 720 | H190: Шкаф антресольный 2дв.1 стекло(горизонт), размер: 700, h 720 | I190: 1413-70гс | J190: 2270 | K190: 2430 | L190: 2510 | M190: 4229.692 | N190: 4795.04 | O190: 3847.52 | P190: 4845.44 | Q190: 6760.64
D191: Шкаф антресольный 2дв.1 стекло(горизонт) | E191: 800 | G191: h 720 | H191: Шкаф антресольный 2дв.1 стекло(горизонт), размер: 800, h 720 | I191: 1413-80гс | J191: 2460 | K191: 2650 | L191: 2740 | M191: 4699.648 | N191: 5345.76 | O191: 4262.88 | P191: 5403.36 | Q191: 7592.16
D192: Шкаф антресольный 2дв.1 стекло(горизонт) | E192: 400 | F192: h 920 | G192: h 920 | H192: Шкаф антресольный 2дв.1 стекло(горизонт), размер: 400, h 920 | I192: 1421-40гс | J192: 1690 | K192: 1815 | L192: 1870 | M192: =0.000916*E192*3910+J192 -> 3122.624 | N192: =0.00092*E192*5010+J192 -> 3533.68 | O192: =0.00092*E192*3130+J192 -> 2841.84 | P192: =0.00092*E192*5110+J192 -> 3570.48 | Q192: =0.00092*E192*8910+J192 -> 4968.88
D193: Шкаф антресольный 2дв.1 стекло(горизонт) | E193: 450 | G193: h 920 | H193: Шкаф антресольный 2дв.1 стекло(горизонт), размер: 450, h 920 | I193: 1421-45гс | J193: 1900 | K193: 2050 | L193: 2100 | M193: =0.000916*E193*3910+J193 -> 3511.702 | N193: =0.00092*E193*5010+J193 -> 3974.14 | O193: =0.00092*E193*3130+J193 -> 3195.82 | P193: =0.00092*E193*5110+J193 -> 4015.54 | Q193: =0.00092*E193*8910+J193 -> 5588.74
D194: Шкаф антресольный 2дв.1 стекло(горизонт) | E194: 500 | G194: h 920 | H194: Шкаф антресольный 2дв.1 стекло(горизонт), размер: 500, h 920 | I194: 1421-50гс | J194: 1960 | K194: 2112 | L194: 2180 | M194: 3750.78 | N194: 4264.6 | O194: 3399.8 | P194: 4310.6 | Q194: 6058.6
D195: Шкаф антресольный 2дв.1 стекло(горизонт) | E195: 550 | G195: h 920 | H195: Шкаф антресольный 2дв.1 стекло(горизонт), размер: 550, h 920 | I195: 1421-55гс | J195: 2100 | K195: 2300 | L195: 2380 | M195: 4069.858 | N195: 4635.06 | O195: 3683.78 | P195: 4685.66 | Q195: 6608.46
D196: Шкаф антресольный 2дв.1 стекло(горизонт) | E196: 600 | G196: h 920 | H196: Шкаф антресольный 2дв.1 стекло(горизонт), размер: 600, h 920 | I196: 1421-60гс | J196: 2200 | K196: 2387 | L196: 2480 | M196: 4348.936 | N196: 4965.52 | O196: 3927.76 | P196: 5020.72 | Q196: 7118.32
D197: Шкаф антресольный 2дв.1 стекло(горизонт) | E197: 650 | G197: h 920 | H197: Шкаф антресольный 2дв.1 стекло(горизонт), размер: 650, h 920 | I197: 1421-65гс | J197: 2600 | K197: 2800 | L197: 2900 | M197: 4928.014 | N197: 5595.98 | O197: 4471.74 | P197: 5655.78 | Q197: 7928.18
D198: Шкаф антресольный 2дв.1 стекло(горизонт) | E198: 700 | G198: h 920 | H198: Шкаф антресольный 2дв.1 стекло(горизонт), размер: 700, h 920 | I198: 1421-70гс | J198: 2650 | K198: 2870 | L198: 2960 | M198: 5157.092 | N198: 5876.44 | O198: 4665.72 | P198: 5940.84 | Q198: 8388.04
D199: Шкаф антресольный 2дв.1 стекло(горизонт) | E199: 800 | G199: h 920 | H199: Шкаф антресольный 2дв.1 стекло(горизонт), размер: 800, h 920 | I199: 1421-80гс | J199: 2890 | K199: 3150 | L199: 3240 | M199: 5755.248 | N199: 6577.36 | O199: 5193.68 | P199: 6650.96 | Q199: 9447.76
C200: Шкаф антресольный 2дв.2 стекла(горизонт) | D200: Шкаф антресольный 2дв.2 стекла(горизонт) | E200: 400 | F200: h 720 | G200: h 720 | H200: Шкаф антресольный 2дв.2 стекла(горизонт), размер: 400, h 720 | I200: 1413-40с | J200: 1530 | K200: 1630 | L200: 1660 | M200: =0.000716*E200*3910+J200 -> 2649.824 | N200: =0.00072*E200*5010+J200 -> 2972.88 | O200: =0.00072*E200*3130+J200 -> 2431.44 | P200: =0.00072*E200*5110+J200 -> 3001.68 | Q200: =0.00072*E200*8910+J200 -> 4096.08
... 208 more rows

Sheet Пенал-полупеналы
J1: МДФ мат. | K1: МДФ глян. | L1: МДФ металл. | M1: МДФ+ПАТИНА | N1: БАГЕТНАЯ | O1: БОСТОН ПВХ/фот.печ. | P1: БОСТОН ЛАК | Q1: БОСТОН ЭМАЛЬ
B2: Пеналы
C3: Пенал 2140 без ящ 3дв | D3: Пенал 2140 без ящ 3дв | E3: 400 | F3: h 2140 | G3: h 2140 | H3: =D3&", размер: "&E3&", "&G3 -> Пенал 2140 без ящ 3дв , размер: 400, h 2140 | I3: 1702-40 | J3: 4170 | K3: 4440 | L3: 4550 | M3: =0.00204*E3*3910+J3 -> 7360.56 | N3: =0.00204*E3*5010+J3 -> 8258.16 | O3: =0.00204*E3*3130+J3 -> 6724.08 | P3: =0.00204*E3*5110+J3 -> 8339.76 | Q3: =0.00204*E3*8910+J3 -> 11440.56
D4: Пенал 2140 без ящ 3дв | E4: 500 | G4: h 2140 | H4: =D4&", размер: "&E4&", "&G4 -> Пенал 2140 без ящ 3дв , размер: 500, h 2140 | I4: 1702-50 | J4: 4800 | K4: 5140 | L4: 5290 | M4: =0.00204*E4*3910+J4 -> 8788.2 | N4: =0.00204*E4*5010+J4 -> 9910.2 | O4: =0.00204*E4*3130+J4 -> 7992.6 | P4: =0.00204*E4*5110+J4 -> 10012.2 | Q4: =0.00204*E4*8910+J4 -> 13888.2
D5: Пенал 2140 без ящ 3дв | E5: 600 | G5: h 2140 | H5: Пенал 2140 без ящ 3дв , размер: 600, h 2140 | I5: 1702-60 | J5: 5430 | K5: 5840 | L5: 6030 | M5: 10215.84 | N5: 11562.24 | O5: 9261.12 | P5: 11684.64 | Q5: 16335.84
D6: Пенал 2140 без ящ 3дв | E6: 400 | F6: h 2340 | G6: h 2340 | H6: Пенал 2140 без ящ 3дв , размер: 400, h 2340 | I6: 1703-40 | J6: =J3*0.1+J3 -> 4587 | K6: 4884 | L6: 5005 | M6: =0.00224*E6*3910+J6 -> 8090.36 | N6: =0.00224*E6*5010+J6 -> 9075.96 | O6: =0.00224*E6*3130+J6 -> 7391.48 | P6: =0.00224*E6*5110+J6 -> 9165.56 | Q6: =0.00224*8910*E6+J6 -> 12570.36
D7: Пенал 2140 без ящ 3дв | E7: 500 | G7: h 2340 | H7: Пенал 2140 без ящ 3дв , размер: 500, h 2340 | I7: 1703-50 | J7: =J4*0.1+J4 -> 5280 | K7: 5654 | L7: 5819 | M7: =0.00224*E7*3910+J7 -> 9659.2 | N7: =0.00224*E7*5010+J7 -> 10891.2 | O7: =0.00224*E7*3130+J7 -> 8785.6 | P7: =0.00224*E7*5110+J7 -> 11003.2 | Q7: =0.00224*8910*E7+J7 -> 15259.2
D8: Пенал 2140 без ящ 3дв | E8: 600 | G8: h 2340 | H8: Пенал 2140 без ящ 3дв , размер: 600, h 2340 | I8: 1703-60 | J8: 5973 | K8: 6424 | L8: 6633 | M8: 11228.04 | N8: 12706.44 | O8: 10179.72 | P8: 12840.84 | Q8: 17948.04
C9: Пенал 2140 без ящ 3дв | D9: Пенал 2140 без ящ 3дв | E9: 400 | F9: h 2140 | G9: h 2140 | H9: Пенал 2140 без ящ 3дв, размер: 400, h 2140 | I9: 1702-40 | J9: =J3*0.2+J3 -> 5004 | K9: 5328 | L9: 5460 | M9: =0.00204*E9*3910+J9 -> 8194.56 | N9: =0.00204*E9*5010+J9 -> 9092.16 | O9: =0.00204*E9*3130+J9 -> 7558.08 | P9: =0.00204*E9*5110+J9 -> 9173.76 | Q9: =0.00204*E9*8910+J9 -> 12274.56
D10: Пенал 2140 без ящ 3дв | E10: 500 | G10: h 2140 | H10: Пенал 2140 без ящ 3дв, размер: 500, h 2140 | I10: 1702-50 | J10: =J4*0.2+J4 -> 5760 | K10: 6168 | L10: 6348 | M10: =0.00204*E10*3910+J10 -> 9748.2 | N10: =0.00204*E10*5010+J10 -> 10870.2 | O10: =0.00204*E10*3130+J10 -> 8952.6 | P10: =0.00204*E10*5110+J10 -> 10972.2 | Q10: =0.00204*E10*8910+J10 -> 14848.2
D11: Пенал 2140 без ящ 3дв | E11: 600 | G11: h 2140 | H11: Пенал 2140 без ящ 3дв, размер: 600, h 2140 | I11: 1702-60 | J11: 6516 | K11: 7008 | L11: 7236 | M11: 11301.84 | N11: 12648.24 | O11: 10347.12 | P11: 12770.64 | Q11: 17421.84
D12: Пенал 2140 без ящ 3дв | E12: 400 | F12: h 2340 | G12: h 2340 | H12: Пенал 2140 без ящ 3дв, размер: 400, h 2340 | I12: 1703-40с | J12: 5504.4 | K12: 5860.8 | L12: 6006 | M12: =0.00224*E12*3910+J12 -> 9007.76 | N12: =0.00224*E12*5010+J12 -> 9993.36 | O12: =0.00224*E12*3130+J12 -> 8308.88 | P12: =0.00224*E12*5110+J12 -> 10082.96 | Q12: =0.00224*E12*8910+J12 -> 13487.76
D13: Пенал 2140 без ящ 3дв | E13: 500 | G13: h 2340 | H13: Пенал 2140 без ящ 3дв, размер: 500, h 2340 | I13: 1703-50с | J13: 6336 | K13: 6784.8 | L13: 6982.8 | M13: =0.00224*E13*3910+J13 -> 10715.2 | N13: =0.00224*E13*5010+J13 -> 11947.2 | O13: =0.00224*E13*3130+J13 -> 9841.6 | P13: =0.00224*E13*5110+J13 -> 12059.2 | Q13: =0.00224*E13*8910+J13 -> 16315.2
D14: Пенал 2140 без ящ 3дв | E14: 600 | G14: h 2340 | H14: Пенал 2140 без ящ 3дв, размер: 600, h 2340 | I14: 1703-60с | J14: 7167.6 | K14: 7708.8 | L14: 7959.6 | M14: 12422.64 | N14: 13901.04 | O14: 11374.32 | P14: 14035.44 | Q14: 19142.64
C15: Пенал 2140 3ящ 2дв | D15: Пенал 2140 3ящ 2дв | E15: 400 | F15: h 2140 | G15: h 2140 | H15: Пенал 2140 3ящ 2дв , размер: 400, h 2140 | I15: 1700-40 | J15: 4780 | K15: 5060 | L15: 5180 | M15: =0.00204*E15*3910+J15 -> 7970.56 | N15: =0.00204*E15*5010+J15 -> 8868.16 | O15: =0.00204*E15*3130+J15 -> 7334.08 | P15: =0.00204*E15*5110+J15 -> 8949.76 | Q15: =0.00204*E15*8910+J15 -> 12050.56
D16: Пенал 2140 3ящ 2дв | E16: 500 | G16: h 2140 | H16: Пенал 2140 3ящ 2дв , размер: 500, h 2140 | I16: 1700-50 | J16: =J4*0.17+J4 -> 5616 | K16: 6013.8 | L16: 6189.3 | M16: =0.00204*E16*3910+J16 -> 9604.2 | N16: =0.00204*E16*5010+J16 -> 10726.2 | O16: =0.00204*E16*3130+J16 -> 8808.6 | P16: =0.00204*E16*5110+J16 -> 10828.2 | Q16: =0.00204*E16*8910+J16 -> 14704.2
D17: Пенал 2140 3ящ 2дв | E17: 600 | G17: h 2140 | H17: Пенал 2140 3ящ 2дв , размер: 600, h 2140 | I17: 1700-60 | J17: 6353.1 | K17: 6832.8 | L17: 7055.1 | M17: 11138.94 | N17: 12485.34 | O17: 10184.22 | P17: 12607.74 | Q17: 17258.94
D18: Пенал 2140 3ящ 2дв | E18: 400 | F18: h 2340 | G18: h 2340 | H18: Пенал 2140 3ящ 2дв , размер: 400, h 2340 | I18: 1701-40 | J18: =J6*0.17+J6 -> 5366.79 | K18: 5714.28 | L18: 5855.85 | M18: =0.00224*E18*3910+J18 -> 8870.15 | N18: =0.00224*E18*5010+J18 -> 9855.75 | O18: =0.00224*E18*3130+J18 -> 8171.27 | P18: =0.00224*E18*5110+J18 -> 9945.35 | Q18: =0.00224*E18*8910+J18 -> 13350.15
D19: Пенал 2140 3ящ 2дв | E19: 500 | G19: h 2340 | H19: Пенал 2140 3ящ 2дв , размер: 500, h 2340 | I19: 1701-50 | J19: 6177.6 | K19: 6615.18 | L19: 6808.23 | M19: =0.00224*E19*3910+J19 -> 10556.8 | N19: =0.00224*E19*5010+J19 -> 11788.8 | O19: =0.00224*E19*3130+J19 -> 9683.2 | P19: =0.00224*E19*5110+J19 -> 11900.8 | Q19: =0.00224*E19*8910+J19 -> 16156.8
D20: Пенал 2140 3ящ 2дв | E20: 600 | G20: h 2340 | H20: Пенал 2140 3ящ 2дв , размер: 600, h 2340 | I20: 1701-60 | J20: 6988.41 | K20: 7516.08 | L20: 7760.61 | M20: 12243.45 | N20: 13721.85 | O20: 11195.13 | P20: 13856.25 | Q20: 18963.45
C21: Пенал 2140 3ящ 2дв | D21: Пенал 2140 3ящ 2дв | E21: 400 | F21: h 2140 | G21: h 2140 | H21: Пенал 2140 3ящ 2дв , размер: 400, h 2140 | I21: 1700-40с | J21: =J15*0.25+J15 -> 5975 | K21: 6325 | L21: 6475 | M21: =0.00204*E21*3910+J21 -> 9165.56 | N21: =0.00204*E21*5010+J21 -> 10063.16 | O21: =0.00204*E21*3130+J21 -> 8529.08 | P21: =0.00204*E21*5110+J21 -> 10144.76 | Q21: =0.00204*E21*8910+J21 -> 13245.56
D22: Пенал 2140 3ящ 2дв | E22: 500 | G22: h 2140 | H22: Пенал 2140 3ящ 2дв , размер: 500, h 2140 | I22: 1700-50с | J22: =J16*0.25+J16 -> 7020 | K22: 7517.25 | L22: 7736.625 | M22: =0.00204*E22*3910+J22 -> 11008.2 | N22: =0.00204*E22*5010+J22 -> 12130.2 | O22: =0.00204*E22*3130+J22 -> 10212.6 | P22: =0.00204*E22*5110+J22 -> 12232.2 | Q22: =0.00204*E22*8910+J22 -> 16108.2
D23: Пенал 2140 3ящ 2дв | E23: 600 | G23: h 2140 | H23: Пенал 2140 3ящ 2дв , размер: 600, h 2140 | I23: 1700-60с | J23: 7941.375 | K23: 8541 | L23: 8818.875 | M23: 12727.215 | N23: 14073.615 | O23: 11772.495 | P23: 14196.015 | Q23: 18847.215
D24: Пенал 2140 3ящ 2дв | E24: 400 | F24: h 2340 | G24: h 2340 | H24: Пенал 2140 3ящ 2дв , размер: 400, h 2340 | I24: 1701-40с | J24: 6708.4875 | K24: 7142.85 | L24: 7319.8125 | M24: =0.00224*E24*3910+J24 -> 10211.8475 | N24: =0.00224*E24*5010+J24 -> 11197.4475 | O24: =0.00224*E24*3130+J24 -> 9512.9675 | P24: =0.00224*E24*5110+J24 -> 11287.0475 | Q24: =0.00204*E24*8910+J24 -> 13979.0475
D25: Пенал 2140 3ящ 2дв | E25: 500 | G25: h 2340 | H25: Пенал 2140 3ящ 2дв , размер: 500, h 2340 | I25: 1701-50с | J25: 7722 | K25: 8268.975 | L25: 8510.2875 | M25: =0.00224*E25*3910+J25 -> 12101.2 | N25: =0.00224*E25*5010+J25 -> 13333.2 | O25: =0.00224*E25*3130+J25 -> 11227.6 | P25: =0.00224*E25*5110+J25 -> 13445.2 | Q25: =0.00204*E25*8910+J25 -> 16810.2
D26: Пенал 2140 3ящ 2дв | E26: 600 | G26: h 2340 | H26: Пенал 2140 3ящ 2дв , размер: 600, h 2340 | I26: 1701-60с | J26: 8735.5125 | K26: 9395.1 | L26: 9700.7625 | M26: 13990.5525 | N26: 15468.9525 | O26: 12942.2325 | P26: 15603.3525 | Q26: 19641.3525
B27: Шкафы навесные Н=1200
C28: Полупенал 2дв | D28: Полупенал 2дв | E28: 300 | F28: h 1200 | G28: h 1200 | H28: Полупенал 2дв, размер: 300, h 1200 | I28: 1605-30 | J28: 1550 | K28: 1670 | L28: 1720 | M28: =0.0012*E28*3910+J28 -> 2957.6 | N28: =0.0012*E28*5010+J28 -> 3353.6 | O28: =0.0012*E28*3130+J28 -> 2676.8 | P28: =0.0012*E28*5110+J28 -> 3389.6 | Q28: =0.0012*E28*8910+J28 -> 4757.6
D29: Полупенал 2дв | E29: 350 | G29: h 1200 | H29: Полупенал 2дв, размер: 350, h 1200 | I29: 1605-35 | J29: 1720 | K29: 1860 | L29: 1920 | M29: =0.0012*E29*3910+J29 -> 3362.2 | N29: =0.0012*E29*5010+J29 -> 3824.2 | O29: =0.0012*E29*3130+J29 -> 3034.6 | P29: =0.0012*E29*5110+J29 -> 3866.2 | Q29: =0.0012*E29*8910+J29 -> 5462.2
D30: Полупенал 2дв | E30: 400 | G30: h 1200 | H30: Полупенал 2дв, размер: 400, h 1200 | I30: 1605-40 | J30: 1870 | K30: 2030 | L30: 2100 | M30: 3746.8 | N30: 4274.8 | O30: 3372.4 | P30: 4322.8 | Q30: 6146.8
D31: Полупенал 2дв | E31: 450 | G31: h 1200 | H31: Полупенал 2дв, размер: 450, h 1200 | I31: 1605-45 | J31: 2050 | K31: 2220 | L31: 2300 | M31: 4161.4 | N31: 4755.4 | O31: 3740.2 | P31: 4809.4 | Q31: 6861.4
D32: Полупенал 2дв | E32: 500 | G32: h 1200 | H32: Полупенал 2дв, размер: 500, h 1200 | I32: 1605-50 | J32: 2180 | K32: 2390 | L32: 2470 | M32: 4526 | N32: 5186 | O32: 4058 | P32: 5246 | Q32: 7526
D33: Полупенал 2дв | E33: 600 | G33: h 1200 | H33: Полупенал 2дв, размер: 600, h 1200 | I33: 1605-60 | J33: 2400 | K33: 2600 | L33: 2800 | M33: 5215.2 | N33: 6007.2 | O33: 4653.6 | P33: 6079.2 | Q33: 8815.2
C34: Полупенал 2дв | D34: Полупенал 2дв | E34: 300 | F34: h 1320 | G34: h 1320 | H34: Полупенал 2дв, размер: 300, h 1320 | I34: 1606-30 | J34: 1670 | K34: 1800 | L34: 1860 | M34: =0.00132*E34*3910+J34 -> 3218.36 | N34: =0.00132*E34*5010+J34 -> 3653.96 | O34: =0.00132*E34*3130+J34 -> 2909.48 | P34: =0.00132*E34*5110+J34 -> 3693.56 | Q34: =0.00132*E34*8910+J34 -> 5198.36
D35: Полупенал 2дв | E35: 350 | G35: h 1320 | H35: Полупенал 2дв, размер: 350, h 1320 | I35: 1606-35 | J35: 1840 | K35: 1990 | L35: 2060 | M35: =0.00132*E35*3910+J35 -> 3646.42 | N35: =0.00132*E35*5010+J35 -> 4154.62 | O35: =0.00132*E35*3130+J35 -> 3286.06 | P35: =0.00132*E35*5110+J35 -> 4200.82 | Q35: =0.00132*E35*8910+J35 -> 5956.42
D36: Полупенал 2дв | E36: 400 | G36: h 1320 | H36: Полупенал 2дв, размер: 400, h 1320 | I36: 1606-40 | J36: 2010 | K36: 2190 | L36: 2270 | M36: 4074.48 | N36: 4655.28 | O36: 3662.64 | P36: 4708.08 | Q36: 6714.48
D37: Полупенал 2дв | E37: 450 | G37: h 1320 | H37: Полупенал 2дв, размер: 450, h 1320 | I37: 1606-45 | J37: 2170 | K37: 2360 | L37: 2450 | M37: 4492.54 | N37: 5145.94 | O37: 4029.22 | P37: 5205.34 | Q37: 7462.54
D38: Полупенал 2дв | E38: 500 | G38: h 1320 | H38: Полупенал 2дв, размер: 500, h 1320 | I38: 1606-50 | J38: 2330 | K38: 2550 | L38: 2650 | M38: 4910.6 | N38: 5636.6 | O38: 4395.8 | P38: 5702.6 | Q38: 8210.6
C39: Полупенал 2д (1д стекло) | D39: Полупенал 2д (1д стекло) | E39: 300 | F39: h 1200 | G39: h 1200 | H39: Полупенал 2д (1д стекло), размер: 300, h 1200 | I39: 1605-30гс | J39: =J28*0.2+J28 -> 1860 | K39: 2004 | L39: 2064 | M39: =0.0012*E39*3910+J39 -> 3267.6 | N39: =0.0012*E39*5010+J39 -> 3663.6 | O39: =0.0012*E39*3130+J39 -> 2986.8 | P39: =0.0012*E39*5110+J39 -> 3699.6 | Q39: =0.0012*E39*8910+J39 -> 5067.6
D40: Полупенал 2д (1д стекло) | E40: 350 | G40: h 1200 | H40: Полупенал 2д (1д стекло), размер: 350, h 1200 | I40: 1605-35гс | J40: 2064 | K40: 2232 | L40: 2304 | M40: =0.0012*E40*3910+J40 -> 3706.2 | N40: =0.0012*E40*5010+J40 -> 4168.2 | O40: =0.0012*E40*3130+J40 -> 3378.6 | P40: =0.0012*E40*5110+J40 -> 4210.2 | Q40: =0.0012*E40*8910+J40 -> 5806.2
D41: Полупенал 2д (1д стекло) | E41: 400 | G41: h 1200 | H41: Полупенал 2д (1д стекло), размер: 400, h 1200 | I41: 1605-40гс | J41: 2244 | K41: 2436 | L41: 2520 | M41: 4120.8 | N41: 4648.8 | O41: 3746.4 | P41: 4696.8 | Q41: 6520.8
D42: Полупенал 2д (1д стекло) | E42: 450 | G42: h 1200 | H42: Полупенал 2д (1д стекло), размер: 450, h 1200 | I42: 1605-45гс | J42: 2460 | K42: 2664 | L42: 2760 | M42: 4571.4 | N42: 5165.4 | O42: 4150.2 | P42: 5219.4 | Q42: 7271.4
D43: Полупенал 2д (1д стекло) | E43: 500 | G43: h 1200 | H43: Полупенал 2д (1д стекло), размер: 500, h 1200 | I43: 1605-50гс | J43: 2616 | K43: 2868 | L43: 2964 | M43: 4962 | N43: 5622 | O43: 4494 | P43: 5682 | Q43: 7962
D44: Полупенал 2д (1д стекло) | E44: 600 | G44: h 1200 | H44: Полупенал 2д (1д стекло), размер: 600, h 1200 | I44: 1605-60гс | J44: 2880 | K44: 3120 | L44: 3360 | M44: 5695.2 | N44: 6487.2 | O44: 5133.6 | P44: 6559.2 | Q44: 9295.2
C45: Полупенал 2д стекло | D45: Полупенал 2д стекло | E45: 300 | F45: h 1200 | G45: h 1200 | H45: Полупенал 2д стекло, размер: 300, h 1200 | I45: 1605-30с | J45: 1740 | K45: 1860 | L45: 1900 | M45: =0.0012*E45*3910+J45 -> 3147.6 | N45: =0.0012*5010*E45+J45 -> 3543.6 | O45: =0.0012*E45*3130+J45 -> 2866.8 | P45: =0.0012*E45*5110+J45 -> 3579.6 | Q45: =0.0012*E45*8910+J45 -> 4947.6
D46: Полупенал 2д стекло | E46: 350 | G46: h 1200 | H46: Полупенал 2д стекло, размер: 350, h 1200 | I46: 1605-35с | J46: 1950 | K46: 2090 | L46: 2160 | M46: =0.0012*E46*3910+J46 -> 3592.2 | N46: =0.0012*5010*E46+J46 -> 4054.2 | O46: =0.0012*E46*3130+J46 -> 3264.6 | P46: =0.0012*E46*5110+J46 -> 4096.2 | Q46: =0.0012*E46*8910+J46 -> 5692.2
D47: Полупенал 2д стекло | E47: 400 | G47: h 1200 | H47: Полупенал 2д стекло, размер: 400, h 1200 | I47: 1605-40с | J47: 2140 | K47: 2310 | L47: 2380 | M47: 4016.8 | N47: 4544.8 | O47: 3642.4 | P47: 4592.8 | Q47: 6416.8
D48: Полупенал 2д стекло | E48: 450 | G48: h 1200 | H48: Полупенал 2д стекло, размер: 450, h 1200 | I48: 1605-45с | J48: 2360 | K48: 2540 | L48: 2620 | M48: 4471.4 | N48: 5065.4 | O48: 4050.2 | P48: 5119.4 | Q48: 7171.4
D49: Полупенал 2д стекло | E49: 500 | G49: h 1200 | H49: Полупенал 2д стекло, размер: 500, h 1200 | I49: 1605-50с | J49: 2540 | K49: 2750 | L49: 2840 | M49: 4886 | N49: 5546 | O49: 4418 | P49: 5606 | Q49: 7886
D50: Полупенал 2д стекло | E50: 600 | G50: h 1200 | H50: Полупенал 2д стекло, размер: 600, h 1200 | I50: 1605-60с | J50: =J44*0.1+J44 -> 3168 | K50: 3432 | L50: 3696 | M50: 5983.2 | N50: 6775.2 | O50: 5421.6 | P50: 6847.2 | Q50: 9583.2
C51: Полупенал 2 дв. Стекло | D51: Полупенал 2 дв. Стекло | E51: 300 | F51: h 1320 | G51: h 1320 | H51: Полупенал 2 дв. Стекло, размер: 300, h 1320 | I51: 1606-30с | J51: 1880 | K51: 2010 | L51: 2070 | M51: =0.00132*E51*3910+J51 -> 3428.36 | N51: =0.00132*E51*5010+J51 -> 3863.96 | O51: =0.00132*E51*3130+J51 -> 3119.48 | P51: =0.00132*E51*5110+J51 -> 3903.56 | Q51: =0.00132*E51*8910+J51 -> 5408.36
D52: Полупенал 2 дв. Стекло | E52: 350 | G52: h 1320 | H52: Полупенал 2 дв. Стекло, размер: 350, h 1320 | I52: 1606-35с | J52: 2090 | K52: 2240 | L52: 2310 | M52: =0.00132*E52*3910+J52 -> 3896.42 | N52: =0.00132*E52*5010+J52 -> 4404.62 | O52: =0.00132*E52*3130+J52 -> 3536.06 | P52: =0.00132*E52*5110+J52 -> 4450.82 | Q52: =0.00132*E52*8910+J52 -> 6206.42
D53: Полупенал 2 дв. Стекло | E53: 400 | G53: h 1320 | H53: Полупенал 2 дв. Стекло, размер: 400, h 1320 | I53: 1606-40с | J53: 2322 | K53: 2500 | L53: 2570 | M53: 4386.48 | N53: 4967.28 | O53: 3974.64 | P53: 5020.08 | Q53: 7026.48
D54: Полупенал 2 дв. Стекло | E54: 450 | G54: h 1320 | H54: Полупенал 2 дв. Стекло, размер: 450, h 1320 | I54: 1606-45с | J54: 2520 | K54: 2720 | L54: 2800 | M54: 4842.54 | N54: 5495.94 | O54: 4379.22 | P54: 5555.34 | Q54: 7812.54
D55: Полупенал 2 дв. Стекло | E55: 500 | G55: h 1320 | H55: Полупенал 2 дв. Стекло, размер: 500, h 1320 | I55: 1606-50с | J55: 2730 | K55: 2950 | L55: 3050 | M55: 5310.6 | N55: 6036.6 | O55: 4795.8 | P55: 6102.6 | Q55: 8610.6
B56: Шкафы навесные Н=1280
C57: Полупенал 2я 1д | D57: Полупенал 2я 1д | E57: 300 | F57: h 1280 | G57: h 1280 | H57: Полупенал 2я 1д, размер: 300, h 1280 | I57: 1643-30 | J57: 1830 | K57: 1960 | L57: 2010 | M57: =0.00128*E57*3910+J57 -> 3331.44 | N57: =0.00128*E57*5010+J57 -> 3753.84 | O57: =0.00128*E57*3130+J57 -> 3031.92 | P57: =0.00128*E57*5110+J57 -> 3792.24 | Q57: =0.00128*E57*8910+J57 -> 5251.44
D58: Полупенал 2я 1д | E58: 350 | G58: h 1280 | H58: Полупенал 2я 1д, размер: 350, h 1280 | I58: 1643-35 | J58: 2030 | K58: 2190 | L58: 2250 | M58: =0.00128*E58*3910+J58 -> 3781.68 | N58: =0.00128*E58*5010+J58 -> 4274.48 | O58: =0.00128*E58*3130+J58 -> 3432.24 | P58: =0.00128*E58*5110+J58 -> 4319.28 | Q58: =0.00128*E58*8910+J58 -> 6021.68
D59: Полупенал 2я 1д | E59: 400 | G59: h 1280 | H59: Полупенал 2я 1д, размер: 400, h 1280 | I59: 1643-40 | J59: 2210 | K59: 2380 | L59: 2450 | M59: 4211.92 | N59: 4775.12 | O59: 3812.56 | P59: 4826.32 | Q59: 6771.92
D60: Полупенал 2я 1д | E60: 450 | G60: h 1280 | H60: Полупенал 2я 1д, размер: 450, h 1280 | I60: 1643-45 | J60: 2400 | K60: 2580 | L60: 2670 | M60: 4652.16 | N60: 5285.76 | O60: 4202.88 | P60: 5343.36 | Q60: 7532.16
D61: Полупенал 2я 1д | E61: 500 | G61: h 1280 | H61: Полупенал 2я 1д, размер: 500, h 1280 | I61: 1643-50 | J61: 2580 | K61: 2790 | L61: 2890 | M61: 5082.4 | N61: 5786.4 | O61: 4583.2 | P61: 5850.4 | Q61: 8282.4
D62: Полупенал 2я 1д | E62: 550 | G62: h 1280 | H62: Полупенал 2я 1д, размер: 550, h 1280 | I62: 1643-55 | J62: 2700 | K62: 2900 | L62: 3030 | M62: 5452.64 | N62: =0.00128*E62*5010+J62 -> 6227.04 | O62: 4903.52 | P62: 6297.44 | Q62: 8972.64
D63: Полупенал 2я 1д | E63: 600 | G63: h 1280 | H63: Полупенал 2я 1д, размер: 600, h 1280 | I63: 1643-60 | J63: 2900 | K63: 3100 | L63: 3200 | M63: 5902.88 | N63: 6747.68 | O63: 5303.84 | P63: 6824.48 | Q63: 9742.88
C64: Полупенал 2я 1д стекло | D64: Полупенал 2я 1д стекло | E64: 300 | F64: h 1280 | G64: h 1280 | H64: Полупенал 2я 1д стекло, размер: 300, h 1280 | I64: 1643-30с | J64: 1980 | K64: 2110 | L64: 2170 | M64: =0.00128*E64*3910+J64 -> 3481.44 | N64: =0.00128*E64*5010+J64 -> 3903.84 | O64: =0.00128*E64*3130+J64 -> 3181.92 | P64: =0.00128*E64*5110+J64 -> 3942.24 | Q64: =0.00128*E64*8910+J64 -> 5401.44
D65: Полупенал 2я 1д стекло | E65: 350 | G65: h 1280 | H65: Полупенал 2я 1д стекло, размер: 350, h 1280 | I65: 1643-35с | J65: 2230 | K65: 2390 | L65: 2450 | M65: =0.00128*E65*3910+J65 -> 3981.68 | N65: =0.00128*E65*5010+J65 -> 4474.48 | O65: =0.00128*E65*3130+J65 -> 3632.24 | P65: =0.00128*E65*5110+J65 -> 4519.28 | Q65: =0.00128*E65*8910+J65 -> 6221.68
D66: Полупенал 2я 1д стекло | E66: 400 | G66: h 1280 | H66: Полупенал 2я 1д стекло, размер: 400, h 1280 | I66: 1643-40с | J66: 2430 | K66: 2600 | L66: 2670 | M66: 4431.92 | N66: 4995.12 | O66: 4032.56 | P66: 5046.32 | Q66: 6991.92
D67: Полупенал 2я 1д стекло | E67: 450 | G67: h 1280 | H67: Полупенал 2я 1д стекло, размер: 450, h 1280 | I67: 1643-45с | J67: 2670 | K67: 2860 | L67: 2948 | M67: 4922.16 | N67: 5555.76 | O67: 4472.88 | P67: 5613.36 | Q67: 7802.16
D68: Полупенал 2я 1д стекло | E68: 500 | G68: h 1280 | H68: =D68&", размер: "&E68&", "&G68 -> Полупенал 2я 1д стекло, размер: 500, h 1280 | I68: 1643-50с | J68: 2890 | K68: 3100 | L68: 3200 | M68: 5392.4 | N68: 6096.4 | O68: 4893.2 | P68: 6160.4 | Q68: 8592.4
D69: Полупенал 2я 1д стекло | E69: 550 | G69: h 1280 | H69: Полупенал 2я 1д стекло, размер: 550, h 1280 | I69: 1643-55с | J69: =J62*0.15+J62 -> 3105 | K69: 3335 | L69: 3484.5 | M69: 5857.64 | N69: 6632.04 | O69: 5308.52 | P69: 6702.44 | Q69: 9377.64
D70: Полупенал 2я 1д стекло | E70: 600 | G70: h 1280 | H70: Полупенал 2я 1д стекло, размер: 600, h 1280 | I70: 1643-60с | J70: 3335 | K70: 3565 | L70: 3680 | M70: 6337.88 | N70: 7182.68 | O70: 5738.84 | P70: 7259.48 | Q70: 10177.88
C71: Полупенал 2я 2д | D71: Полупенал 2я 2д | E71: 600 | F71: h 1280 | G71: h 1280 | H71: Полупенал 2я 2д, размер: 600, h 1280 | I71: 1653-60 | J71: =J63*0.15+J63 -> 3335 | K71: 3565 | L71: 3680 | M71: =0.00128*E71*3910+J71 -> 6337.88 | N71: =0.00128*E71*5010+J71 -> 7182.68 | O71: =0.00128*E71*3130+J71 -> 5738.84 | P71: =0.00128*E71*5110+J71 -> 7259.48 | Q71: =0.00128*E71*8910+J71 -> 10177.88
D72: Полупенал 2я 2д | E72: 700 | G72: h 1280 | H72: Полупенал 2я 2д, размер: 700, h 1280 | I72: 1653-70 | J72: =J71*0.15+J71 -> 3835.25 | K72: 4099.75 | L72: 4232 | M72: =0.00128*E72*3910+J72 -> 7338.61 | N72: =0.00128*E72*5010+J72 -> 8324.21 | O72: =0.00128*E72*3130+J72 -> 6639.73 | P72: =0.00128*E72*5110+J72 -> 8413.81 | Q72: =0.00128*E72*8910+J72 -> 11818.61
D73: Полупенал 2я 2д | E73: 800 | G73: h 1280 | H73: Полупенал 2я 2д, размер: 800, h 1280 | I73: 1653-80 | J73: 4410.5375 | K73: 4714.7125 | L73: 4866.8 | M73: 8414.3775 | N73: 9540.7775 | O73: 7615.6575 | P73: 9643.1775 | Q73: 13534.3775
C74: Полупенал 4я 2д | D74: Полупенал 4я 2д | E74: 600 | F74: h 1280 | G74: h 1280 | H74: Полупенал 4я 2д, размер: 600, h 1280 | I74: 1665-60 | J74: =J71*0.05+J71 -> 3501.75 | K74: 3743.25 | L74: 3864 | M74: =0.00128*E74*3910+J74 -> 6504.63 | N74: =0.00128*E74*5010+J74 -> 7349.43 | O74: =0.00128*E74*3130+J74 -> 5905.59 | P74: =0.00128*E74*5110+J74 -> 7426.23 | Q74: =0.00128*E74*8910+J74 -> 10344.63
D75: Полупенал 4я 2д | E75: 700 | G75: h 1280 | H75: Полупенал 4я 2д, размер: 700, h 1280 | I75: 1665-70 | J75: =J72*0.05+J72 -> 4027.0125 | K75: 4304.7375 | L75: 4443.6 | M75: =0.00128*E75*3910+J75 -> 7530.3725 | N75: =0.00128*E75*5010+J75 -> 8515.9725 | O75: =0.00128*E75*3130+J75 -> 6831.4925 | P75: =0.00128*E75*5110+J75 -> 8605.5725 | Q75: =0.00128*E75*8910+J75 -> 12010.3725
D76: Полупенал 4я 2д | E76: 800 | G76: h 1280 | H76: Полупенал 4я 2д, размер: 800, h 1280 | I76: 1665-80 | J76: 4631.064375 | K76: 4950.448125 | L76: 5110.14 | M76: 8634.904375 | N76: 9761.304375 | O76: 7836.184375 | P76: 9863.704375 | Q76: 13754.90438
C77: Полупенал 2я 2д стекло | D77: Полупенал 2я 2д стекло | E77: 600 | F77: h 1280 | G77: h 1280 | H77: Полупенал 2я 2д стекло, размер: 600, h 1280 | I77: 1653-60c | J77: =J71*0.25+J71 -> 4168.75 | K77: 4456.25 | L77: 4600 | M77: =0.00128*E77*3910+J77 -> 7171.63 | N77: =0.00128*E77*5010+J77 -> 8016.43 | O77: =0.00128*E77*3130+J77 -> 6572.59 | P77: =0.00128*E77*5110+J77 -> 8093.23 | Q77: =0.00128*8910+J77 -> 4180.1548
D78: Полупенал 2я 2д стекло | E78: 700 | G78: h 1280 | H78: Полупенал 2я 2д стекло, размер: 700, h 1280 | I78: 1653-70c | J78: =J72*0.25+J72 -> 4794.0625 | K78: 5124.6875 | L78: 5290 | M78: =0.00128*E78*3910+J78 -> 8297.4225 | N78: =0.00128*E78*5010+J78 -> 9283.0225 | O78: =0.00128*E78*3130+J78 -> 7598.5425 | P78: =0.00128*E78*5110+J78 -> 9372.6225 | Q78: =0.00128*8910+J78 -> 4805.4673
D79: Полупенал 2я 2д стекло | E79: 800 | G79: h 1280 | H79: Полупенал 2я 2д стекло, размер: 800, h 1280 | I79: 1653-80c | J79: 5513.171875 | K79: 5893.390625 | L79: 6083.5 | M79: 9517.011875 | N79: 10643.41187 | O79: 8718.291875 | P79: 10745.81187 | Q79: 5524.576675
C80: Полупенал 4я 2д стекло | D80: Полупенал 4я 2д стекло | E80: 600 | F80: h 1280 | G80: h 1280 | H80: Полупенал 4я 2д стекло, размер: 600, h 1280 | I80: 1665-60c | J80: 4377.1875 | K80: 4679.0625 | L80: 4830 | M80: =0.00128*3910*E80+J80 -> 7380.0675 | N80: =0.00128*E80*5010+J80 -> 8224.8675 | O80: =0.00128*E80*3130+J80 -> 6781.0275 | P80: =0.00128*E80*5110+J80 -> 8301.6675 | Q80: =0.00128*8910*E80+J80 -> 11220.0675
D81: Полупенал 4я 2д стекло | E81: 700 | G81: h 1280 | H81: Полупенал 4я 2д стекло, размер: 700, h 1280 | I81: 1665-70c | J81: =J75*0.25+J75 -> 5033.765625 | K81: 5380.921875 | L81: 5554.5 | M81: =0.00128*3910*E81+J81 -> 8537.125625 | N81: =0.00128*E81*5010+J81 -> 9522.725625 | O81: =0.00128*E81*3130+J81 -> 7838.245625 | P81: =0.00128*E81*5110+J81 -> 9612.325625 | Q81: =0.00128*8910*E81+J81 -> 13017.12563
D82: Полупенал 4я 2д стекло | E82: 800 | G82: h 1280 | H82: Полупенал 4я 2д стекло, размер: 800, h 1280 | I82: 1665-80c | J82: 5788.830469 | K82: 6188.060156 | L82: 6387.675 | M82: 9792.670469 | N82: 10919.07047 | O82: 8993.950469 | P82: 11021.47047 | Q82: 14912.67047
C83: полупенал под встр. технику 1ящ. МЕТАБОКС | D83: полупенал под встр. технику 1ящ. МЕТАБОКС | E83: 600 | F83: h 1085 | G83: h 1085 | H83: =D83&", размер: "&E83&", "&G83 -> полупенал под встр. технику 1ящ. МЕТАБОКС, размер: 600, h 1085 | I83: 2001-60 | J83: 2500 | K83: 2600 | L83: 2700 | M83: =0.000356*600*3910+J83 -> 3335.176 | N83: =0.000356*E83*5010+J83 -> 3570.136 | O83: =0.00356*E83*3130+J83 -> 9185.68 | P83: =0.000356*E83*5110+J83 -> 3591.496 | Q83: =0.000356*E83*8910+J83 -> 4403.176
C84: полупенал под встр. технику 2ящ. МЕТАБОКС | D84: полупенал под встр. технику 2ящ. МЕТАБОКС | E84: 600 | F84: h1420 | G84: h1420 | H84: полупенал под встр. технику 2ящ. МЕТАБОКС, размер: 600, h1420 | I84: 2001-60 | J84: 4300 | K84: 4400 | L84: 4500 | M84: =0.000716*600*3910+J84 -> 5979.736 | N84: =0.00072*E84*5010+J84 -> 6464.32 | O84: =0.00072*E84*3130+J84 -> 5652.16 | P84: =0.00072*E84*5110+J84 -> 6507.52 | Q84: =0.000356*E84*8910+J84 -> 6203.176
C85: полупенал под встр. технику 1дв. | D85: полупенал под встр. технику 1дв. | E85: 600 | F85: h1420 | G85: h1420 | H85: полупенал под встр. технику 1дв., размер: 600, h1420 | I85: 2001-60 | J85: 2650 | K85: 2800 | L85: 3150 | M85: =0.000716*E85*3910+J85 -> 4329.736 | N85: =0.00072*E85*5010+J85 -> 4814.32 | O85: =0.00072*E85*3130+J85 -> 4002.16 | P85: =0.00072*E85*5110+J85 -> 4857.52 | Q85: =0.00072*E85*8910+J85 -> 6499.12
C86: полупенал 2дв. | D86: полупенал 2дв. | E86: 600 | F86: h1420 | G86: h1420 | H86: полупенал 2дв., размер: 600, h1420 | I86: 2001-60 | J86: 3670 | K86: 4000 | L86: 4200 | M86: =0.00132*E86*3910+J86 -> 6766.72 | N86: =0.00132*E86*5010+J86 -> 7637.92 | O86: =0.00132*E86*3130+J86 -> 6148.96 | P86: =0.00132*E86*5110+J86 -> 7717.12 | Q86: =0.00132*E86*8910+J86 -> 10726.72
C87: Пенал 2 двери Н=2140 | D87: Пенал 2 двери Н=2140 | E87: 600 | F87: h2140 | G87: h2140 | H87: Пенал 2 двери Н=2140, размер: 600, h2140 | I87: 1704-60 | J87: 5400 | K87: 5900 | L87: 6100 | M87: =0.00204*E87*3910+J87 -> 10185.84 | N87: =0.00204*E87*5010+J87 -> 11532.24 | O87: =0.00204*E87*3130+J87 -> 9231.12 | P87: =0.00204*E87*5110+J87 -> 11654.64 | Q87: =0.00204*E87*8910+J87 -> 16305.84
C88: Пенал 6 дверей | D88: Пенал 6 дверей | E88: 600 | F88: h2140 | G88: h2140 | H88: =D88&", размер: "&E88&", "&G88 -> Пенал 6 дверей , размер: 600, h2140 | I88: 1705-60 | J88: 6100 | K88: 6300 | L88: 6500 | M88: =0.00204*E88*3910+J88 -> 10885.84 | N88: =0.00204*E88*5010+J88 -> 12232.24 | O88: =0.00204*E88*3130+J88 -> 9931.12 | P88: =0.00204*E88*5110+J88 -> 12354.64 | Q88: =0.00204*E88*8910+J88 -> 17005.84
D89: Пенал 6 дверей | E89: 600 | F89: h2340 | G89: h2340 | H89: Пенал 6 дверей, размер: 600, h2340 | I89: 1706-60 | J89: 6300 | K89: 6500 | L89: 6700 | M89: =0.00224*E89*3910+J89 -> 11555.04 | N89: =0.00224*E89*5010+J89 -> 13033.44 | O89: =0.00224*E89*3130+J89 -> 10506.72 | P89: =0.00224*E89*5110+J89 -> 13167.84 | Q89: =0.00224*E89*8910+J89 -> 18275.04
C90: Пенал под встр технику 2 двери | D90: Пенал под встр технику 2 двери | E90: 600 | F90: h2140 | G90: h2140 | H90: =D90&", размер: "&E90&", "&G90 -> Пенал под встр технику 2 двери , размер: 600, h2140 | I90: 1707-60 | J90: 4400 | K90: 4500 | L90: 4600 | M90: =0.00144*E90*3910+J90 -> 7778.24 | N90: =0.00154*E90*5010+J90 -> 9029.24 | O90: =0.00144*E90*3130+J90 -> 7104.32 | P90: =0.00144*E90*5110+J90 -> 8815.04 | Q90: =0.00144*E90*8910+J90 -> 12098.24
D91: Пенал под встр технику 2 двери | E91: 600 | F91: h2340 | G91: h2340 | H91: =D91&", размер: "&E91&", "&G91 -> Пенал под встр технику 2 двери , размер: 600, h2340 | I91: 1708-60 | J91: 5000 | K91: 5100 | L91: 5200 | M91: =0.00164*E91*3910+J91 -> 8847.44 | N91: =0.00174*E91*5010+J91 -> 10230.44 | O91: =0.00164*E91*3130+J91 -> 8079.92 | P91: =0.00164*E91*5110+J91 -> 10028.24 | Q91: =0.00164*E91*8910+J91 -> 13767.44
C92: Пенал под встр технику 1 дверь 2 ящ. МЕТАБОКС | D92: Пенал под встр технику 1 дверь 2 ящ. МЕТАБОКС | E92: 600 | F92: h2140 | G92: h2140 | H92: Пенал под встр технику 1 дверь 2 ящ. МЕТАБОКС , размер: 600, h2140 | I92: 1709-60 | J92: 6000 | K92: 6100 | L92: 6300 | M92: =0.00144*E92*3910+J92 -> 9378.24 | N92: =0.00154*E92*5010+J92 -> 10629.24 | O92: =0.00144*E92*3130+J92 -> 8704.32 | P92: =0.00144*E92*5110+J92 -> 10415.04 | Q92: =0.00144*E92*8910+J92 -> 13698.24
D93: Пенал под встр технику 1 дверь 2 ящ. МЕТАБОКС | E93: 600 | F93: h2340 | G93: h2340 | H93: Пенал под встр технику 1 дверь 2 ящ. МЕТАБОКС , размер: 600, h2340 | I93: 1710-60 | J93: 6500 | K93: 6600 | L93: 6800 | M93: =0.00164*E93*3910+J93 -> 10347.44 | N93: =0.00174*E93*5010+J93 -> 11730.44 | O93: =0.00164*E93*3130+J93 -> 9579.92 | P93: =0.00164*E93*5110+J93 -> 11528.24 | Q93: =0.00164*E93*8910+J93 -> 15267.44
C94: Пенал под встр технику 2 дверь 2 ящ. МЕТАБОКС | D94: Пенал под встр технику 2 дверь 2 ящ. МЕТАБОКС | E94: 600 | F94: h2140 | G94: h2140 | H94: Пенал под встр технику 2 дверь 2 ящ. МЕТАБОКС , размер: 600, h2140 | I94: 1711-60 | J94: 6500 | K94: 6700 | L94: 6900 | M94: =0.00144*3910*E94+J94 -> 9878.24 | N94: =0.00154*E94*5010+J94 -> 11129.24 | O94: =0.00144*E94*3130+J94 -> 9204.32 | P94: =0.00144*E94*5110+J94 -> 10915.04 | Q94: =0.00144*E94*8910+J94 -> 14198.24
D95: Пенал под встр технику 2 дверь 2 ящ. МЕТАБОКС | E95: 600 | F95: h2340 | G95: h2340 | H95: Пенал под встр технику 2 дверь 2 ящ. МЕТАБОКС , размер: 600, h2340 | I95: 1712-60 | J95: 7000 | K95: 7200 | L95: 7300 | M95: =0.00164*E95*3910+J95 -> 10847.44 | N95: =0.00174*E95*5010+J95 -> 12230.44 | O95: =0.00164*E95*3130+J95 -> 10079.92 | P95: =0.00164*E95*5110+J95 -> 12028.24 | Q95: =0.00164*8910*E95+J95 -> 15767.44

Sheet Ручки
C1: название | D1: цвет | F1: ДОПЛАТА к базовой | J1: Стоимость,шт.
A2: БАЗА | C2: Рейлинг пластик 96 (базовая) | D2: хром | E2: =C2&", "&D2 -> Рейлинг пластик 96 (базовая), хром | F2: 0 | G2: Рейлинг пластик 96 | H2: хром | I2: 25 руб (базовая) | J2: 25
C3: Ручка скоба 96 (базовая) | D3: золото, хром | E3: =C3&", "&D3 -> Ручка скоба 96 (базовая), золото, хром | F3: 0 | G3: Ручка скоба 96 | H3: золото, хром | I3: 25 руб (базовая) | J3: 25
A4: БАЗА | C4: С-18 пластик, металл 96, 128, 160 мм | D4: черный | F4: 0 | J4: 25
D5: белый | F5: 0 | J5: 25
D6: Ясень шимо св. | F6: 0 | J6: 25
D7: клен | F7: 0 | J7: 25
D8: ольха | F8: 0 | J8: 25
C9: С-17пластик 96 мм | D9: Металл-металл, металл-черный, металл-белый | F9: 0 | J9: 25
A10: Доплата, руб. | C10: Ручка ОФК белый+бронза | D10: старая медь | E10: =C10&", "&D10 -> Ручка ОФК белый+бронза, старая медь | F10: 80 | G10: Ручка ОФК белый+бронза | H10: старая медь | I10: 80 руб (доб. к базовой за шт.) | J10: =25+F10 -> 105
A11: Доплата, руб. | C11: Рейлинг 96 | D11: хром глянец | E11: Рейлинг 96 , хром глянец | F11: 40 | G11: Рейлинг 96 Рейлинг 128 Рейлинг 160 | H11: хром глянец | I11: 40 руб. 40 руб. 50 руб. (доб.к базовой за шт.) | J11: =25+F11 -> 65
C12: Рейлинг 128 | D12: хром глянец | E12: Рейлинг 128 , хром глянец | F12: 40 | J12: 65
C13: Рейлинг 162 | D13: хром глянец | E13: Рейлинг 162, хром глянец | F13: 50 | J13: 75
A14: Доплата, руб. | C14: FS-040-128 | D14: хром матовый | E14: FS-040-128, хром матовый | F14: 100 | G14: FS-040-128 | H14: хром матовый | I14: 100 руб. | J14: 125
A15: Доплата, руб. | C15: FS-040-160 | D15: хром матовый | E15: FS-040-160, хром матовый | F15: 135 | G15: FS-040-160 | I15: 135 руб. | J15: 160
A16: Доплата, руб. | C16: Скоба RS-006-96 | D16: бронза | E16: Скоба RS-006-96, бронза | F16: 30 | G16: Скоба RS-006-96 | H16: бронза | I16: 30 руб. | J16: 55
A17: Доплата, руб. | C17: Скоба RS-006-128 | D17: бронза | E17: Скоба RS-006-128, бронза | F17: 45 | G17: Скоба RS-006-128 | I17: 45 руб. | J17: 70
A18: Доплата, руб. | C18: Кнопка RK-001 BA | D18: бронза | E18: Кнопка RK-001 BA, бронза | F18: 25 | G18: Кнопка RK-001 BA | H18: бронза | I18: 25 руб. | J18: 50
A19: Доплата, руб. | C19: Скоба RS-008-96 | D19: бронза | E19: Скоба RS-008-96, бронза | F19: 40 | G19: Скоба RS-008-96 | H19: бронза | I19: 40 руб. | J19: 65
A20: Доплата, руб. | C20: Скоба RS-008-128 | D20: бронза | E20: Скоба RS-008-128, бронза | F20: 45 | G20: Скоба RS-008-128 | I20: 45 руб. | J20: 70
A21: Доплата, руб. | C21: Скоба RS-016-96 | D21: бронза | E21: Скоба RS-016-96, бронза | F21: 50 | G21: Скоба RS-016-96 | H21: бронза | I21: 50 руб. | J21: 75
C22: Скоба RS-016-128 | D22: бронза | E22: Скоба RS-016-128, бронза | F22: 70 | G22: Скоба RS-016-128 | I22: 70 руб. | J22: 95
C23: Un9408, мат. 128 мм | D23: хром | E23: Un9408, мат. 128 мм , хром | F23: 80 | J23: 105
A24: Доплата, руб. | C24: Скоба 1016, 96 мм | D24: мат. хром мат.никель | F24: 98 | J24: 123
C25: Скоба 1016, 128 мм | F25: 120 | J25: 145
A26: Доплата, руб. | C26: Скоба, 224 мм | D26: Хром | F26: 120 | J26: 145
A27: Доплата, руб. | C27: Скоба Модерн, 160 мм | D27: Хром | F27: 150 | J27: 175
A28: Доплата, руб. | C28: Скоба GM 21-4, 128 мм | D28: Хром | F28: 130 | J28: 155
A29: Доплата, руб. | C29: Скоба RS 43, белый+золото | D29: 128 мм | F29: 120 | J29: 145
A30: Доплата, руб. | C30: Скоба fs 144, 96 мм | D30: белый+золото | F30: 210 | J30: 235
A31: Доплата, руб. | C31: Скоба fs 144, 96 мм | D31: белый+серебро | F31: 210 | J31: 235
A32: Доплата, руб. | C32: Скоба fs 129, 128 мм | D32: белый+золото | F32: 250 | J32: 275
A33: Доплата, руб. | C33: Скоба fs 129, 128 мм | D33: белый+серебро | F33: 250 | J33: 275

Sheet Витраж
A1: 1 кат. - 2620 | J1: 2 кат. - 3740

Sheet столешницы,козырьки,багеты
I2: Цена постформинга
C3: Категория пластика(руб./п.м.) | I3: Толщина постформинга | L3: Категория пластика(руб./п.м.)
A4: Толщина постформинга | B4: 1ц.к. | C4: 2ц.к. | D4: 3ц.к. | E4: Замена | L4: 1 ц.к. | M4: 2ц.к. | N4: 3ц.к.
A5: 26 | B5: 0 | C5: 270 | D5: 470 | E5: 0 | I5: 26 | L5: 780 | M5: 1050 | N5: 1250
A6: 38в. | B6: 530 | C6: 960 | D6: 1240 | E6: 0 | I6: 38в. | L6: 1310 | M6: 1740 | N6: 2020
A7: При замене угловой 26 на 38в. | B7: 0 | C7: 0 | D7: 0 | E7: 600
A9: Доплаты на столешницы
B10: Толщина постформинга | C10: Цвет | D10: формула | E10: Толщина постформинга 26 | F10: Толщина постформинга 38в. | G10: Замена угловой 26 на 38в.
A11: Категория пластика(руб./п.м.) | B11: 1 ц.к. | C11: 2338 Лунный металл | D11: =B11&", "&C11 -> 1 ц.к., 2338 Лунный металл | F11: 530 | G11: -
B12: 1 ц.к. | C12: 2236 Семолина бежевая | D12: =B12&", "&C12 -> 1 ц.к., 2236 Семолина бежевая | F12: 530 | G12: -
B13: 1 ц.к. | C13: 2235 Семолина серая | D13: 1 ц.к., 2235 Семолина серая | F13: 530 | G13: -
B14: 1 ц.к. | C14: 5004 Цветочный сатин | D14: 1 ц.к., 5004 Цветочный сатин | F14: 530 | G14: -
B15: 1 ц.к. | C15: 2424 Мрамор каррара | D15: 1 ц.к., 2424 Мрамор каррара | F15: 530 | G15: -
B16: 1 ц.к. | C16: 905 Белые камни | D16: 1 ц.к., 905 Белые камни | F16: 530 | G16: -
B17: 1 ц.к. | C17: 3842 Дуглас светлый | D17: =B17&", "&C17 -> 1 ц.к., 3842 Дуглас светлый | F17: 530 | G17: -
B18: 1 ц.к. | C18: 3842 Дуглас светлый | D18: 1 ц.к., 3842 Дуглас светлый | F18: 530 | G18: -
B19: 1 ц.к. | C19: 4026 аламбра светлая | D19: 1 ц.к., 4026 аламбра светлая | F19: 530 | G19: -
B20: 1 ц.к. | C20: 3521 Тростник | D20: 1 ц.к., 3521 Тростник | F20: 530 | G20: -
B21: 1 ц.к. | C21: 2369 Ракушки | D21: 1 ц.к., 2369 Ракушки | F21: 530 | G21: -
B22: 1 ц.к. | C22: 3844 Дуглас темный | D22: 1 ц.к., 3844 Дуглас темный | F22: 530 | G22: -
B23: 1 ц.к. | C23: 5022 дуб беленый | D23: 1 ц.к., 5022 дуб беленый | F23: 530 | G23: -
B24: 1 ц.к. | C24: 2430 Антарес | D24: 1 ц.к., 2430 Антарес | F24: 530 | G24: -
B25: 1 ц.к. | C25: 2182 Мейсон ваниль | D25: 1 ц.к., 2182 Мейсон ваниль | F25: 530 | G25: -
B26: 1 ц.к. | C26: 4011 Алеппо | D26: 1 ц.к., 4011 Алеппо | F26: 530 | G26: -
B27: 1 ц.к. | C27: 3029 марквина черный | D27: 1 ц.к., 3029 марквина черный | F27: 530 | G27: -
B28: 2 ц.к. | C28: 700 Роза Альба | D28: 2 ц.к., 700 Роза Альба | E28: 270 | F28: 960 | G28: -
B29: 2 ц.к. | C29: 3845 Дуглас мокко | D29: 2 ц.к., 3845 Дуглас мокко | E29: 270 | F29: 960 | G29: -
B30: 2 ц.к. | C30: 713 Черный гранит | D30: 2 ц.к., 713 Черный гранит | E30: 270 | F30: 960 | G30: -
B31: 2 ц.к. | C31: 715 Карамельная роза | D31: 2 ц.к., 715 Карамельная роза | E31: 270 | F31: 960 | G31: -
B32: 2 ц.к. | C32: 2237 Семолина карамельная | D32: 2 ц.к., 2237 Семолина карамельная | E32: 270 | F32: 960 | G32: -
B33: 2 ц.к. | C33: 1021Q черный | D33: 2 ц.к., 1021Q черный | E33: 270 | F33: 960 | G33: -
B34: 2 ц.к. | C34: 1111Q белый | D34: 2 ц.к., 1111Q белый | E34: 270 | F34: 960 | G34: -
B35: 2 ц.к. | C35: 2013 юрский камень | D35: =B35&", "&C35 -> 2 ц.к., 2013 юрский камень | E35: 270 | F35: 960 | G35: -
B36: 2 ц.к. на стен панели планка 6мм | C36: 400Б бриллиант белый | D36: =B36&", "&C36 -> 2 ц.к. на стен панели планка 6мм, 400Б бриллиант белый | E36: 270 | F36: 960 | G36: -
B37: 2 ц.к. на стен панели планка 6мм | C37: 401 Бриллиант черный | D37: 2 ц.к. на стен панели планка 6мм, 401 Бриллиант черный | E37: 270 | F37: 960 | G37: -
B38: 2 ц.к. на стен панели планка 6мм | C38: 1 венге | D38: 2 ц.к. на стен панели планка 6мм, 1 венге | E38: 270 | F38: 960 | G38: -
B39: 2 ц.к. на стен панели планка 6мм | C39: 120 олива жемчужная | D39: 2 ц.к. на стен панели планка 6мм, 120 олива жемчужная | E39: 270 | F39: 960 | G39: -
B40: 3 ц.к. | C40: 707Г королевский опал светлый | D40: 3 ц.к., 707Г королевский опал светлый | E40: 470 | F40: 1240 | G40: -
B41: 3 ц.к. | C41: 708Г лабрадор | D41: 3 ц.к., 708Г лабрадор | E41: 470 | F41: 1240 | G41: -
B42: 3 ц.к. | C42: 905Г белые камни | D42: =B42&", "&C42 -> 3 ц.к., 905Г белые камни | E42: 470 | F42: 1240 | G42: -
B43: 3 ц.к. | C43: 905Г белые | D43: 3 ц.к., 905Г белые | E43: 470 | F43: 1240 | G43: -
B44: 3 ц.к. | C44: 713Г черный гранит | D44: 3 ц.к., 713Г черный гранит | E44: 470 | F44: 1240 | G44: -
A46: Столешницы 400Б брилиант белый, 401 Бриллиант черный, 1 венге, 120 олива жемчужная трапеции не могут быть выполнены
B48: Доплата на столы трапеции 800*800 и 900*900
B49: Толщина постформинга | E49: Категория пластика(руб./п.м.)
E50: 1 ц.к. | F50: 2ц.к. | G50: 3ц.к.
B51: 26 мм | C51: размер 800*800 | E51: база | F51: 1610 | G51: 1800
B52: 26 мм | C52: размер 900*900 | F52: 2160 | G52: 2400
B53: 38 мм | C53: размер 800*800 | E53: 2230 | F53: 2980 | G53: 3520
B54: 38 мм | C54: размер 900*900 | E54: 2830 | F54: 3800 | G54: 4520
B57: Отдельные столешницы прямые , радиусные
B74: Толщина постформинга | E74: Категория пластика(руб./п.м.)
E75: 1 ц.к. | F75: 2ц.к. | G75: 3ц.к.
B76: 26 мм | E76: 920 | F76: 1100 | G76: 1250
B77: 38 мм | E77: 1410 | F77: 1740 | G77: 2020
B80: Отдельные столешницы на столы трапеции 800*800 и 900*900
B81: Толщина постформинга | E81: Категория пластика(руб./п.м.)
E82: 1 ц.к. | F82: 2ц.к. | G82: 3ц.к.
B83: 26 мм | C83: размер 800*800 | E83: 2460 | F83: 2980 | G83: 3170
B84: 26 мм | C84: размер 900*900 | E84: 3280 | F84: 3980 | G84: 4220
B85: 38 мм | C85: размер 800*800 | E85: 3600 | F85: 4350 | G85: 4890
B86: 38 мм | C86: размер 900*900 | E86: 4660 | F86: 5620 | G86: 6340
A90: Козырьки
A91: Рисунок | B91: Наименование | C91: цена
B92: Козырек глубиной 300 мм. р\м.п. | C92: 170
B93: Козырек глубиной 300 мм. радиусный, л\пр. р\м.п. | C93: 250
B94: Козырек глубиной 500мм. р\м.п. | C94: 300
B95: Козырек глубиной 500мм. радиусный, л\пр. р\м.п. | C95: 300
B96: Козырек глубиной 500мм. скошенный л\пр. р\м.п. | C96: 300
B97: Козырек глубиной 500мм. угловой трапециевидный | C97: 250
A105: ДЕКОРАТИВНЫЕ ЭЛЕМЕНТЫ (отдельно заказывать нельзя!!!только к кухонному гарнитуру)ДОЗАКАЗЫ НЕ ПРИНИМАЕМ!
A106: Рисунок | B106: Наименование | C106: цена МДФ ПВХ | D106: формула | E106: цена МДФ ПВХ с патиной
B107: Багет 16мм 2000мм | C107: 630 | D107: =B107&". "&C107 -> Багет 16мм 2000мм. 630 | E107: 990
B108: Багет составной Н= 32 , L=2000* | C108: 900 | D108: =B108&". "&C108 -> Багет составной Н= 32 , L=2000*. 900 | E108: 1620
B109: Радиусные элементы БАГЕТ, шт. | C109: 1080 | D109: Радиусные элементы БАГЕТ, шт.. 1080 | E109: 1440
A110: *Фото ниже | B110: Колонны 1 (А;Б;В;Г) на 50 мм,шт.** | C110: 540 | E110: 810
B111: Колонны 2 (А;В;) на 100 мм,шт.** | C111: 720 | E111: 1080
B112: Колонны 2 ( Б; Г) на 100 мм,шт.** | C112: 1080 | E112: 1260
B113: Колонны 3 (А;В) на 146 мм, шт.** | C113: 1260 | E113: 1710
B114: Колонны 3 (Б;Г) на 146 мм,шт.** | C114: 900 | E114: 1350
B115: Залицовка (А,Б,В) H=200, L=596, шт. | C115: 360 | E115: 720
B116: Залицовка (Г,Д) H=200, L=596, шт. | C116: 1260 | E116: 1800
B117: Решетка (1010х535) руб/шт. матовая ХДФ 4(ПЛАСТИК С ОБРАТНОЙ СТОРОНЫ,ПЛЕНКА ПВХ) | C117: 1820 | E117: 2940
B118: Решетка (1010х535) руб/шт. глянец | C118: 1960 | E118: 3080
A120: БАРНАЯ СТОЙКА | B120: Цена Барной стойки за шт. максимальная длина 3000мм, глубина 400/600
A121: Рисунок | B121: Наименование | C121: 1 ц.к. | D121: 2 ц.к. | E121: 3 ц.к.
B122: Барная стойка, толщина 26 | C122: 1950 | D122: 2650 | E122: 3100
B123: Барная стойка, толщина 38в. | C123: 3150 | D123: 4390 | E123: 5090
A125: * | B125: Багеты , цоколя не изготавливаются отдельно.
A126: ** | B126: Доборы, колонны так же не изготавливаются отдельно.Заказы принимаются на кол-во кратное двум.
A130: колонны

Sheet доп.хар+мойки
A1: Мойки и посудосушители ВНИМАНИЕ!!!ВЫРЕЗ ПОД МОЙКУ ПЛАТНЫЙ-?????руб. | C1: цена, руб
A2: Мойка 500 накладная | C2: 1100
A3: Мойка 800 накладная | C3: 1400
A4: Мойка 600 накладная | C4: 1250
A5: Мойка овал врезная 50*77 | C5: 1900
A6: Посудосушитель 400 мм. | C6: 176
A7: Посудосушитель 500 мм. | C7: 186
A8: Посудосушитель 600 мм. | C8: 215
A9: Посудосушитель 700 мм. КОМПЛЕКТУЕТСЯ ПОДДОНОМ НА 600 | C9: 220
A10: Посудосушитель 800 мм. | C10: 240
A11: Посудосушитель 500 мм.(WARIANT) | C11: 530
A12: Посудосушитель 600 мм. (WARIANT) | C12: 670
A13: Посудосушитель 700 мм.(WARIANT) | C13: 750
A14: Посудосушитель 800 мм.(WARIANT) | C14: 860
A15: Мойка врезная ø490мм. | C15: 1070
A16: Посудосушитель в стол без доводчика 600 мм | C16: 3400
A17: Посудосушитель в стол с доводчиком 600 мм | C17: 3900
A35: Стеновая панель ФОТОПЕЧАТЬ 2800х600х6 мм (SP, FM) 3500 руб.
A37: Наименование | C37: Доп. информация | D37: формула | E37: Стоимость
A38: Крепежная полоса (шина) | C38: 2 метра | D38: =A38&". "&C38 -> Крепежная полоса (шина). 2 метра | E38: 120 | F38: руб./шт.
A39: Метабокс (малый) | C39: h=86мм | D39: Метабокс (малый). h=86мм | E39: 250 | F39: руб./компл.
A40: Метабокс (большой) | C40: h=150мм | D40: Метабокс (большой). h=150мм | E40: 350 | F40: руб./компл.
A41: Доводчик для метабокса | D41: Доводчик для метабокса. | E41: 250 | F41: руб./шт.
A42: Регулируемые навесы | D42: Регулируемые навесы. | E42: 50 | F42: руб./компл.
A43: Тандембокс (малый) | C43: h=86мм | D43: Тандембокс (малый). h=86мм | E43: 2000 | F43: руб./компл.
A44: Тандембокс (большой) | C44: h=164мм | D44: Тандембокс (большой) . h=164мм | E44: 2350 | F44: руб./компл.
A45: Туканы | D45: Туканы. | E45: 90 | F45: руб./шт.
A46: Ал.планки п/ф 26мм | C46: Т-обр торцевая угловая | D46: Ал.планки п/ф 26мм. Т-обр торцевая угловая | E46: 90 | F46: руб./шт.
A47: Ал.планки п/ф 38 мм | C47: Т-обр торцевая угловая | D47: Ал.планки п/ф 38 мм. Т-обр торцевая угловая | E47: 90 | F47: руб./шт.
A48: Стеновая панель Фотопечать 2800х600х6 мм (SP, FM) | C48: 2,8 м (1 шт) | D48: Стеновая панель Фотопечать 2800х600х6 мм (SP, FM) . 2,8 м (1 шт) | E48: 3500 | F48: руб./шт.
A49: Стеновая панель 1ц.кат | C49: 3м ( 0,5шт. для 1.5м) | D49: Стеновая панель 1ц.кат. 3м ( 0,5шт. для 1.5м) | E49: 2400 | F49: руб./шт.
A50: Стеновая панель 2ц.кат | C50: 3м ( 0,5шт. для 1.5м) | D50: Стеновая панель 2ц.кат. 3м ( 0,5шт. для 1.5м) | E50: 2900 | F50: руб./шт.
A51: Стеновая панель 3ц.кат. | C51: 3м ( 0,5шт. для 1.5м) | D51: Стеновая панель 3ц.кат. . 3м ( 0,5шт. для 1.5м) | E51: 3100 | F51: руб./шт.
A52: Профиля для стеновой панели(4ММ, 6ММ-ФОТОПЕЧАТЬ) УКАЗАТЬ В БЛАНКЕ | C52: Торцевой щелевой угловой | D52: Профиля для стеновой панели(4ММ, 6ММ-ФОТОПЕЧАТЬ) УКАЗАТЬ В БЛАНКЕ. Торцевой щелевой угловой | E52: 70 | F52: руб./шт.
A53: Заглушки | C53: комплект | D53: Заглушки . комплект | E53: 20 | F53: руб./шт.
A54: Отбортовка(плинтус) | C54: 3м (заглушки заказываем дополнительно) | D54: Отбортовка(плинтус). 3м (заглушки заказываем дополнительно) | E54: 200 | F54: руб./шт.
A55: Вставка 1ц.к. | C55: 3м | D55: Вставка 1ц.к.. 3м | E55: 120 | F55: руб./шт.
A56: Вставка 2ц.к. | C56: 3м | D56: Вставка 2ц.к.. 3м | E56: 200 | F56: руб./шт.
A57: Вставка 3 ц.к. | C57: 3м | D57: Вставка 3 ц.к.. 3м | E57: 260 | F57: руб./шт.
A58: Аллюминиевый плинтус | C58: 3м | D58: Аллюминиевый плинтус. 3м | E58: 600 | F58: руб./шт.
A59: Отбортовка- плинтус KORNER LB37 | C59: 3м | D59: =A59&". "&C59 -> Отбортовка- плинтус KORNER LB37. 3м | E59: 600 | F59: руб./шт.
A60: Заглушки к плинтусу KORNER LB37 ЦВЕТ: СЕРЫЙ, БЕЛЫЙ, ЧЕРНЫЙ, КОРИЧНЕВЫЙ, БЕЖЕВЫЙ | C60: компл. | D60: =A60&". "&C60 -> Заглушки к плинтусу KORNER LB37 ЦВЕТ: СЕРЫЙ, БЕЛЫЙ, ЧЕРНЫЙ, КОРИЧНЕВЫЙ, БЕЖЕВЫЙ. компл. | E60: 90 | F60: руб./шт.
A61: Цоколь H=100 | C61: 4м | D61: Цоколь H=100. 4м | E61: 700 | F61: руб./шт.
A62: Угол 90° для цоколя H=100 | D62: Угол 90° для цоколя H=100. | E62: 20 | F62: руб./шт.
A63: Соединительный элемент H=100 для цоколя | D63: Соединительный элемент H=100 для цоколя. | E63: 20 | F63: руб./шт.
A64: Угол 135⁰ для цоколя H=100 | D64: Угол 135⁰ для цоколя H=100. | E64: 30 | F64: руб./шт.
A65: Заглушка торцевая для цоколя H=100 | D65: Заглушка торцевая для цоколя H=100. | E65: 20 | F65: руб./шт.
A66: Цоколь радиусный H=100 | D66: =A66&". "&C66 -> Цоколь радиусный H=100. | E66: 320 | F66: руб./шт.
A67: Цоколь H=150 | C67: 4м | D67: Цоколь H=150. 4м | E67: 800 | F67: руб./шт.
A68: Угол 90° для цоколя H=150 | D68: Угол 90° для цоколя H=150. | E68: 30 | F68: руб./шт.
A69: Соединительный элемент для цоколя H=150 | D69: Соединительный элемент для цоколя H=150. | E69: 30 | F69: руб./шт.
A70: Угол 135⁰ для цоколя | D70: Угол 135⁰ для цоколя. | E70: 40 | F70: руб./шт.
A71: Заглушка торцевая для цоколя | D71: Заглушка торцевая для цоколя. | E71: 20 | F71: руб./шт.
A72: Цоколь радиусный | D72: =A72&". "&C72 -> Цоколь радиусный. | E72: 480 | F72: руб./шт.
A73: Шариковые направляющие | D73: Шариковые направляющие. | E73: 170 | F73: руб./компл.
A74: Шариковые направляющие BOYARD | C74: с довод-ом | D74: Шариковые направляющие BOYARD. с довод-ом | E74: 650 | F74: руб./компл.
A75: Петля с доводчиком | D75: Петля с доводчиком. | E75: 60 | F75: руб./шт.
A76: Бутылочница | D76: Бутылочница. | E76: 1200 | F76: руб./компл.
A77: Бутылочница с доводчиком | D77: =A77&". "&C77 -> Бутылочница с доводчиком. | E77: 3500 | F77: руб./компл.
A78: Бокальница,фруктовница | D78: Бокальница,фруктовница. | E78: 700 | F78: руб./шт.
A79: Ножки хром | C79: h=100мм | D79: Ножки хром . h=100мм | E79: 60 | F79: руб./шт.
A80: Ножки хром | C80: h=150мм | D80: Ножки хром . h=150мм | E80: 60 | F80: руб./шт.
A81: Светильник (комплект) | C81: комплект | D81: Светильник (комплект). комплект | E81: 650 | F81: руб./шт.
A82: Вырез под светильник | D82: Вырез под светильник. | E82: 100 | F82: руб./шт.
A83: Нога хром D 50 | C83: h=850мм | D83: Нога хром D 50. h=850мм | E83: 300 | F83: руб./шт.
A84: Фланцы | C84: D50 | D84: Фланцы . D50 | E84: 45 | F84: руб./шт.
A85: Стойки хром D 50 | C85: 3м | D85: Стойки хром D 50. 3м | E85: 600 | F85: руб./шт.
A86: Стойки хром D 50 | C86: 1,5м | D86: =A86&". "&C86 -> Стойки хром D 50. 1,5м | E86: 300 | F86: руб./шт.
A87: Лоток для столовых приборов 400 500 600 (для метабоксов\тандембоксов) | C87: шт | D87: Лоток для столовых приборов 400 500 600 (для метабоксов\тандембоксов). шт | E87: 320 | F87: руб./шт.
A88: Газ.лифт | C88: 60N (рекомендуеться для шкафов больше 600мм. Шириной) | D88: Газ.лифт. 60N (рекомендуеться для шкафов больше 600мм. Шириной) | E88: 80 | F88: руб./шт.
A89: Газ.лифт | C89: 80N (рекомендуеться для шкафов больше 600мм. Шириной) | D89: Газ.лифт. 80N (рекомендуеться для шкафов больше 600мм. Шириной) | E89: 80 | F89: руб./шт.
A90: Балясина, Lmax-2000мм. р\м.п. | D90: Балясина, Lmax-2000мм. р\м.п.. | E90: 1300 | F90: руб./м.п.
A91: Балясина (В) шкаф торц откр R. р.шт. | D91: Балясина (В) шкаф торц откр R. р.шт.. | E91: 1300 | F91: руб./шт.
A92: Балясина (НА) шкаф торц откр R р.шт. | D92: Балясина (НА) шкаф торц откр R р.шт.. | E92: 1300 | F92: руб./шт.

Sheet Материалы
H1: ООО Форт г.Ульяновск
H2: 14 Инженерный проезд, д.7а
H3: тел./факс:8 (8422) 24-94-54, 24-94-41
H4: www.fort-mebel.ru
H5: Ваши предложения и пожелания sinerkin@yandex.ru
H6: 8 917-050-76-70 Линда egorova@fort-mebel.ru
A9: Базовые цвета каркаса и фасадов из ЛДСП
A11: Белый | C11: Серый | E11: Венге светлый | G11: Венге линум | I11: Ясень шимо-темный | K11: Ясень-шимо светлый | M11: Бук бавария | O11: Ноче экко | Q11: Бежевый | R11: Белое дерево
A12: ДВП-белое | C12: ДВП-белое | E12: ДВП-белое | G12: ДВП-белое | I12: ДВП-белое | K12: ДВП-белое | M12: ДВП-белое | O12: ДВП-белое | Q12: ДВП-белое | R12: ДВП-белое
C15: Классификация цветов постформинга
D19: 26 | E19: 1к | F19: цвет | G19: пог.метр
A21: 1 кат (Базовая)
A22: 2338 Лунный металл | E22: 2236 Семолина бежевая | I22: 2235 Семолина серая | M22: 5004 Цветочный сатин
A23: 2424 Мрамор каррара | E23: 905 Белые камни | I23: 3842 Дуглас светлый | M23: 4026 аламбра светлая
A24: 3521 Тростник | E24: 2369 Ракушки | I24: 3844 Дуглас темный | M24: 5022 дуб беленый
A25: 2430 Антарес | E25: 2182 Мейсон ваниль | I25: 4011 Алеппо | M25: 3029 марквина черный
A26: 2 категория
A27: 700 Роза Альба | E27: 3845 Дуглас мокко | I27: 713 Черный гранит | M27: 715 Карамельная роза
A28: 2237 Семолина карамельная | E28: 1021Q черный | I28: 1111Q белый | M28: 2013 юрский камень
A29: 120 Олива жемчужная | E29: 400 Б Бриллиант белый | I29: 401 Бриллиант черный | M29: 1 Венге
A30: 3 категория
A31: 707Г королевский опал светлый | E31: 708Г лабрадор | I31: 905Г белые камни
A32: 713Г черный гранит
A33: ПЛЕНКА ПВХ
A34: 1-Я ЦЕНОВАЯ КАТЕГОРИЯ (МАТОВАЯ)
A62: 2 категория. Глянцевые
A71: 2-Я ЦЕНОВАЯ КАТЕГОРИЯ (ГЛЯНЕЦ)
A85: 3-Я ЦЕНОВАЯ КАТЕГОРИЯ (МЕТАЛЛИК)
A100: ПЛАСТИКИ на фасады кухонь
A101: 1-я ценовая категория
A102: 850 кожа | E102: 4206 черные листья | I102: 4257 зебрано легкий | M102: 6870 вишня темная
A103: 4136 осень | E103: 4207 белые листья | I103: 4259 дуб шато антрацит | M103: 2022 кожа бежевый
A104: 4203 белые лютики | E104: 4217 хамелеон | I104: 6114 ольха | M104: 8513 кожа шоколад
A105: 4204 голубые лютики | E105: 4271 хамелеон золотой | I105: 6280 латакция
A106: 101 белый | E106: 2007 красный | I106: 2011 оливковый | M106: 2024 каппучино
A107: 2071 черный | E107: 2093 салатовый | I107: 2094 мята | M107: 2683 сиреневый
A108: 8508 оранжевый | E108: 8510 бежевый
A109: 2-я ценовая категория
A110: ЦВЕТЫ ЛОТОСА
A111: 0029 цветы лотоса белые | E111: 2055 цветы лотоса бирюзовые | I111: 2683 цветы лотоса лиловые | M111: 8510 цветы лотоса бежевые
A112: 2007 цветы лотоса красные | E112: 2071 цветы лотоса черные | I112: 8506 цветы лотоса синие | M112: 8514 цветы лотоса шоколад
A113: 2024 цветы лотоса капучино | E113: 2093 цветы лотоса салатовые | I113: 8508 цветы лотоса оранжевые | M113: 8608 цветы лотоса серые
A114: ЛЕН
A115: 0029 лен белый | E115: 2093 лен салатовый | I115: 8506-1 лен синий | M115: 8510 лен бежевый
A116: 2071 лен черный | E116: 2094 лен мята | I116: 8508 лен оранжевый | M116: 8514 лен шоколад
A117: 8608 лен серый | E117: лен 2007 красный
A118: ПЛЕНКА ПВХ (МДФ ПАТИНА И БАГЕТНАЯ СЕРИЯ)
A119: Дуб светлый TP-207 | E119: Дуб беленый TP-208 | I119: Лайм TP-802UP | M119: Шафран TP-805UP
A122: Вишня оксфорд TP-211 | E122: Магнолия TP-800UP | I122: Индиго TP-804UP | M122: Тыква TP-806UP
A128: Белое дерево 1155BD | E128: Фуксия TP-801UP | I128: Фиолет TP-803UP | M128: Мята TP-807UP
A134: Ива ветлая TP-260 | E134: Шоколад TP-809UP | I134: Графит TP-810UP | M134: Бланж TP-811UP
A140: Жемчужный ясень TP-226 | E140: Венге 1998 | I140: Венге тангент | M140: Сирень Tp-808UP
A147: Текстура древесная цвет бургундия | E147: Текстура древесная черная | I147: Ясень жемчужный матовый DM677-GW
A154: БОСТОН (ТЕКСТУРЫ)
A156: №1 | C156: №2 | E156: №3 | G156: №4 | I156: №5 | K156: №6 | M156: №7 | O156: №8
A163: №9 | C163: №10 | E163: №11 | G163: №12

Sheet ФРЕЗЕРОВКИ
A1: БАГЕТНАЯ СЕРИЯ
A19: МЮНХЕН (декор:большая косичка) | F19: ПАЛЕРМО (декор:шарики) | K19: СОРЕНТО (декор:косичка малая) | P19: ФЛОРЕНЦИЯ (декор:косичка большая)
A24: МДФ ПАТИНА
A41: АНТИК ЛЮКС | E41: ЯНА | I41: ЛУВР | M41: МАДРИД | Q41: ЦЕЗАРЬ
A63: ФРЕЗЕРОВКИ МДФ ПВХ
A80: АРКА | E80: АРКА -Р | I80: АРКА 2 | M80: ВЕГА | Q80: КАНТРИ
A98: КВАДРО | E98: КЛАССИКА | I98: КОРВЕТ | M98: КУБ | Q98: ИРБИС
A117: ЛЖЕВЫБОРКА | E117: МОДЕРН | I117: МЫЛО | M117: ПРЕМЬЕРА | Q117: РАДУГА
A136: СТРАЙП | E136: ТЕХНО | I136: ФРИДА | M136: МЫЛО -2 | Q136: БОСТОН СТРАЙП
A155: БОСТОН

Sheet ПЛИНТУС KORNER
A1: ПЛИНТУСА KORNER
A11: плинтус-ГРЕНОБЛЬ LB37-307 | D11: плинтус-ДУГЛАС ТЕМНЫЙ LB37-309 | G11: плинтус - ВЕНГЕ СВЕТЛЫЙ LB37-314 | J11: плинтус - МЕЙСЕН ВАНИЛЬ LB37-317 | M11: плинтус-АНТРАЦИТ LB37-318
A12: столешница - ракушки 2369 | D12: столешница - дуглас темный 3844 | G12: столешница - дуглас светлый 3842 | J12: столешница - мейсен ваниль 2182 | M12: столешница - лунный металл 2338
A21: плинтус - МРАМОР СВЕТЛЫЙ LB 37-320 | D21: плинтус - ПЕТРО LB37-332 | G21: плинтус - ТРОСТНИК LB37-338 | J21: плинтус-ТРАВЕРТИН РИМСКИЙ LB37-347 | M21: плинтус-ГРАНИТ ЧЕРНЫЙ LB37-375
A22: столешница - мрамор каррара 2424 и белые камни 905 | D22: столешница - семолина карамельная 2237 | G22: столешница - тросник 3521 | J22: столешница - аламбра 4026 к | M22: столешница - гранит черный 713 и 713Г
A32: плинтус - МАДРИД LB37-376 | D32: плинтус - АЛЛЮМИНИЙ САТИНА LB37-450 | G32: плинтус - САХАРА LB37-452 | J32: плинтус - ДУБ БЕЛЫЙ LB37-453 | M32: плинтус - ЧЕРНЫЙ LB37-459
A33: столешница - карамельная роза 715 | D33: столешница - роза альба 700 | G33: столешница - антарес 2430 | J33: столешница - дуб выбеленный 5022 и алеппо 4011 | M33: столешница - черный 1021 Q
A43: плинтус - БРИЛЛИАНТ БЕЛЫЙ LB 37-460 | D43: плинтус - БРИЛЛИАНТ ФАНТАЗИЯ LB37-461 | G43: плинтус - КАШЕМИР БЕЛЫЙ LB37-464 | J43: плинтус - БРИЛЛИАНТ ЧЕРНЫЙ LB37-468 | M43: плинтус - БЕЛЫЙ БЛЕСК LB37-478
A44: столешница - семолина серая 2235 | D44: столешница - семолина бежевая 2236 | G44: столешница - королевский опал светлый 707Г | J44: столешница - лабрадор 708Г | M44: столешница - белый Q 1111 и цветочный сатин 5004
